Workbook

Sheet Sheet1
V1: Sum of columns | W1: Relative frequency | X1: To run program - Tools: Macro: Macros: Macro1: Run. It will take about 10 minutes to run. | AA1: Columns Y and Z are used to do pairwise comparisons between data columns. Y is the test column. Z is the predictor column. | AB1: Poisson Gamma. Shows expected frequency in the test column based on overall synoptic frequency | AC1: Probability of the actual result occuring in the test column, given a Poisson distrabution with Gamma1. | AD1: Ln(AH) Rather than multiply all the cells in AC, we can add up all the cells in AD. | AF1: Poisson Gamma. Shows expected frequency in the test column based on the predictor column frequency | AG1: This column is a weighted combination of Gamma1 and Gamma2. The weight is the beta found by the solver. | AH1: Probability of the actual result occuring in the test column, given a Poisson distrabution with the fitted Gamma. | AI1: Ln(AH) Rather than multiply all the cells in AH, we can add up all the cells in AI. | AJ1: Act - pred | AK1: test > 1 | AM1: The optimal beta is found by the solver. Chi is the test statistic. | AO1: Results are in the cells to the right and below. The bottom number in each pair reflects the probability of the relation being due to chance alone. | BL1: English gloss
B2: 222 | C2: 211 | D2: 112 | E2: 212 | F2: 221 | G2: 122 | H2: 121 | I2: 022 | J2: 012 | K2: 021 | L2: 220 | M2: 120 | N2: 210 | O2: 020 | P2: 202 | Q2: 201 | R2: 102 | S2: 200 | T2: 002 | Y2: 222 | Z2: 220 | AB2: Gamma1 | AC2: likely | AD2: Ln(likely) | AF2: Gamma2 | AG2: Gamma-fit | AH2: likely | AI2: Ln(likely) | AQ2: 222 | AR2: 211 | AS2: 112 | AT2: 212 | AU2: 221 | AV2: 122 | AW2: 121 | AX2: 022 | AY2: 012 | AZ2: 021 | BA2: 220 | BB2: 120 | BC2: 210 | BD2: 020 | BE2: 202 | BF2: 201 | BG2: 102 | BH2: 200 | BI2: 002
A3: Ἀβραάμ | B3: 1 | C3: 0 | D3: 0 | E3: 0 | F3: 0 | G3: 0 | H3: 0 | I3: 0 | J3: 0 | K3: 0 | L3: 0 | M3: 0 | N3: 0 | O3: 0 | P3: 3 | Q3: 0 | R3: 0 | S3: 3 | T3: 11 | V3: =SUM(B3:T3)-Y3 -> 17 | W3: =V3/V$811 -> 0.0006981519507 | Y3: 1 | Z3: 0 | AB3: =W3*Y$811 -> 1.042340862 | AC3: =EXP(-AB3)*(AB3)^Y3/FACT(Y3) -> 0.3675588455 | AD3: =LN(AC3) -> -1.000871849 | AF3: =Z3*Y$811/Z$811 -> 0 | AG3: =AB3*$AM$3+(1-$AM$3)*AF3 -> 0.8587151066 | AH3: =EXP(-AG3)*(AG3)^Y3/FACT(Y3) -> 0.3638428717 | AI3: =LN(AH3) -> -1.011033176 | AJ3: =AI3-AD3 -> -0.01016132631 | AK3: =IF(AG3>1,((Y3-AG3)^2)/AG3,"") ->  | AM3: 0.8238332944 | AP3: 222 | AQ3: 0.999 | AR3: 0 | AS3: 0 | AT3: 0 | AU3: 0.1341331822 | AV3: 0.07277138236 | AW3: 0 | AX3: 0.06678448159 | AY3: 0 | AZ3: 0 | BA3: 0.1761671357 | BB3: 0 | BC3: 0 | BD3: 0 | BE3: 0.005741146087 | BF3: 0 | BG3: 0 | BH3: 0 | BI3: 0 | BJ3: 222 | BL3: Abraham
A4: ἀγαθός | B4: 3 | C4: 0 | D4: 3 | E4: 0 | F4: 0 | G4: 0 | H4: 1 | I4: 0 | J4: 0 | K4: 0 | L4: 0 | M4: 0 | N4: 0 | O4: 0 | P4: 5 | Q4: 4 | R4: 0 | S4: 4 | T4: 5 | V4: 22 | W4: 0.0009034907598 | Y4: 3 | Z4: 0 | AB4: 1.348911704 | AC4: 0.1061632998 | AD4: -2.242776806 | AF4: 0 | AG4: 1.111278373 | AH4: 0.0752827148 | AI4: -2.586504722 | AJ4: -0.3437279153 | AK4: =IF(AG4>1,((Y4-AG4)^2)/AG4,"") -> 3.210059216 | AL4: beta | AM4: =1-AM3 -> 0.1761667056 | AQ4: 7.811658742e-300 | AR4: 1 | AS4: 1 | AT4: 1 | AU4: 5.502763135e-09 | AV4: 9.164095761e-05 | AW4: 1 | AX4: 5.141164513e-05 | AY4: 1 | AZ4: 1 | BA4: 2.685416425e-12 | BB4: 1 | BC4: 1 | BD4: 1 | BE4: 0.8438014428 | BF4: 1 | BG4: 1 | BH4: 1 | BI4: 1 | BL4: good
A5: ἀγαπάω | B5: 1 | C5: 1 | D5: 0 | E5: 0 | F5: 1 | G5: 0 | H5: 1 | I5: 0 | J5: 0 | K5: 0 | L5: 0 | M5: 0 | N5: 0 | O5: 2 | P5: 4 | Q5: 0 | R5: 3 | S5: 1 | T5: 5 | V5: 18 | W5: 0.0007392197125 | Y5: 1 | Z5: 0 | AB5: 1.103655031 | AC5: 0.3660345307 | AD5: -1.005027604 | AF5: 0 | AG5: 0.9092277599 | AH5: 0.3662689369 | AI5: -1.004387415 | AJ5: 0.0006401887367 | AM5: =-2*($AD811-$AI811) -> 48.90590069 | AP5: 211 | AQ5: 0 | AR5: 0.999 | AS5: 0 | AT5: 0.107511431 | AU5: 0.08219066134 | AV5: 0 | AW5: 0.01137504128 | AX5: 0.0008215002741 | AY5: 0 | AZ5: 0.01977913003 | BA5: 0 | BB5: 0 | BC5: 0.2595699658 | BD5: 0 | BE5: 0 | BF5: 0.06807542788 | BG5: 0 | BH5: 0.2371555331 | BI5: 0 | BJ5: 211 | BL5: to love
A6: ἄγγελος | B6: 1 | C6: 1 | D6: 0 | E6: 0 | F6: 1 | G6: 0 | H6: 0 | I6: 0 | J6: 0 | K6: 0 | L6: 3 | M6: 0 | N6: 0 | O6: 1 | P6: 2 | Q6: 0 | R6: 3 | S6: 12 | T6: 19 | V6: 42 | W6: 0.001724845996 | Y6: 1 | Z6: 3 | AB6: 2.575195072 | AC6: 0.1960726972 | AD6: -1.629269785 | AF6: 4.08295351 | AG6: 2.840811909 | AH6: 0.1658416247 | AI6: -1.796722014 | AJ6: -0.1674522294 | AK6: 1.19282395 | AL6: chi | AM6: =CHIDIST(AM5,1) -> 2.685416424e-12 | AQ6: 1 | AR6: 3.694527763e-275 | AS6: 1 | AT6: 9.46203362e-10 | AU6: 0.002652857273 | AV6: 1 | AW6: 0.6916596595 | AX6: 0.9529197906 | AY6: 1 | AZ6: 0.294668319 | BA6: 1 | BB6: 1 | BC6: 9.726044372e-23 | BD6: 1 | BE6: 1 | BF6: 0.01488744513 | BG6: 1 | BH6: 3.116046265e-07 | BI6: 1 | BL6: angel, messenger
A7: ἅγιος | B7: 0 | C7: 1 | D7: 1 | E7: 0 | F7: 0 | G7: 1 | H7: 1 | I7: 1 | J7: 0 | K7: 0 | L7: 0 | M7: 3 | N7: 0 | O7: 1 | P7: 2 | Q7: 1 | R7: 4 | S7: 6 | T7: 11 | V7: 33 | W7: 0.00135523614 | Y7: 0 | Z7: 0 | AB7: 2.023367556 | AC7: 0.1322094917 | AD7: -2.023367556 | AF7: 0 | AG7: 1.66691756 | AH7: 0.1888282212 | AI7: -1.66691756 | AJ7: 0.3564499966 | AK7: 1.66691756 | AP7: 112 | AQ7: 0 | AR7: 0 | AS7: 0.999 | AT7: 0.01634751752 | AU7: 0 | AV7: 0.06499422852 | AW7: 0 | AX7: 0 | AY7: 0.1992797486 | AZ7: 0.02059022618 | BA7: 0 | BB7: 0 | BC7: 0.03098942259 | BD7: 0.0004981557191 | BE7: 0 | BF7: 0 | BG7: 0.08585522271 | BH7: 0 | BI7: 0.477204454 | BJ7: 112 | BL7: holy, set apart
A8: ἀγορά | B8: 0 | C8: 0 | D8: 0 | E8: 0 | F8: 0 | G8: 1 | H8: 0 | I8: 0 | J8: 0 | K8: 0 | L8: 0 | M8: 1 | N8: 0 | O8: 1 | P8: 2 | Q8: 0 | R8: 0 | S8: 1 | T8: 0 | V8: 6 | W8: 0.0002464065708 | Y8: 0 | Z8: 0 | AB8: 0.3678850103 | AC8: 0.6921967726 | AD8: -0.3678850103 | AF8: 0 | AG8: 0.30307592 | AH8: 0.7385430241 | AI8: -0.30307592 | AJ8: 0.06480909029 | AQ8: 1 | AR8: 1 | AS8: 0 | AT8: 0.149321181 | AU8: 1 | AV8: 0.0005341476725 | AW8: 1 | AX8: 1 | AY8: 2.196060827e-35 | AZ8: 0.1240691616 | BA8: 1 | BB8: 1 | BC8: 0.1342934114 | BD8: 0.9775971806 | BE8: 1 | BF8: 1 | BG8: 0.001030965625 | BH8: 1 | BI8: 3.518804413e-30 | BL8: marketplace
A9: ἀγοράζω | B9: 0 | C9: 0 | D9: 0 | E9: 0 | F9: 2 | G9: 1 | H9: 2 | I9: 0 | J9: 0 | K9: 0 | L9: 0 | M9: 0 | N9: 0 | O9: 0 | P9: 0 | Q9: 0 | R9: 2 | S9: 5 | T9: 2 | V9: 14 | W9: 0.0005749486653 | Y9: 0 | Z9: 0 | AB9: 0.8583983573 | AC9: 0.4238403798 | AD9: -0.8583983573 | AF9: 0 | AG9: 0.7071771466 | AH9: 0.4930339976 | AI9: -0.7071771466 | AJ9: 0.1512212107 | AP9: 212 | AQ9: 0 | AR9: 0.4251584028 | AS9: 0.08853556305 | AT9: 0.999 | AU9: 0 | AV9: 0 | AW9: 0 | AX9: 0.09768747342 | AY9: 0.031011503 | AZ9: 0.02536212591 | BA9: 0 | BB9: 0 | BC9: 0.4257584128 | BD9: 0 | BE9: 0 | BF9: 0 | BG9: 0.1057677927 | BH9: 0 | BI9: 0.1571632711 | BJ9: 212 | BL9: to buy
A10: ἀγρός | B10: 1 | C10: 0 | D10: 0 | E10: 0 | F10: 1 | G10: 3 | H10: 2 | I10: 0 | J10: 0 | K10: 0 | L10: 0 | M10: 1 | N10: 0 | O10: 0 | P10: 2 | Q10: 3 | R10: 0 | S10: 10 | T10: 3 | V10: 25 | W10: 0.001026694045 | Y10: 1 | Z10: 0 | AB10: 1.532854209 | AC10: 0.3309715975 | AD10: -1.105722716 | AF10: 0 | AG10: 1.262816333 | AH10: 0.3571955381 | AI10: -1.029471921 | AJ10: 0.07625079407 | AK10: 0.05469712674 | AQ10: 1 | AR10: 8.504296811e-07 | AS10: 0.3135131155 | AT10: 1.545124507e-110 | AU10: 1 | AV10: 1 | AW10: 1 | AX10: 0.02860306033 | AY10: 0.6131253848 | AZ10: 0.6755760099 | BA10: 1 | BB10: 1 | BC10: 6.56893551e-09 | BD10: 1 | BE10: 1 | BF10: 1 | BG10: 0.1785335742 | BH10: 1 | BI10: 0.3214592202 | BL10: field, farm
A11: ἄγω | B11: 0 | C11: 1 | D11: 4 | E11: 2 | F11: 0 | G11: 0 | H11: 1 | I11: 0 | J11: 0 | K11: 1 | L11: 1 | M11: 0 | N11: 0 | O11: 0 | P11: 0 | Q11: 0 | R11: 2 | S11: 0 | T11: 5 | V11: 17 | W11: 0.0006981519507 | Y11: 0 | Z11: 1 | AB11: 1.042340862 | AC11: 0.3526282608 | AD11: -1.042340862 | AF11: 1.360984503 | AG11: 1.098475263 | AH11: 0.3333790117 | AI11: -1.098475263 | AJ11: -0.05613440044 | AK11: 1.098475263 | AP11: 221 | AQ11: 0.2035806614 | AR11: 0.08827104486 | AS11: 0 | AT11: 0 | AU11: 0.999 | AV11: 0 | AW11: 0.2794888187 | AX11: 0 | AY11: 0 | AZ11: 0.1000991011 | BA11: 0.1999487965 | BB11: 0.1011559386 | BC11: 0.06607581965 | BD11: 0.09681144077 | BE11: 0 | BF11: 0 | BG11: 0 | BH11: 0 | BI11: 0 | BJ11: 221 | BL11: to lead, bring
A12: ἀδελφή | B12: 0 | C12: 0 | D12: 0 | E12: 0 | F12: 2 | G12: 0 | H12: 2 | I12: 0 | J12: 0 | K12: 0 | L12: 1 | M12: 0 | N12: 0 | O12: 0 | P12: 0 | Q12: 0 | R12: 1 | S12: 0 | T12: 2 | V12: 8 | W12: 0.0003285420945 | Y12: 0 | Z12: 1 | AB12: 0.490513347 | AC12: 0.612311985 | AD12: -0.490513347 | AF12: 1.360984503 | AG12: 0.6438613829 | AH12: 0.5252602721 | AI12: -0.6438613829 | AJ12: -0.1533480359 | AQ12: 7.589378991e-09 | AR12: 0.005642880726 | AS12: 1 | AT12: 1 | AU12: 4.538128351e-259 | AV12: 1 | AW12: 2.113044147e-18 | AX12: 1 | AY12: 1 | AZ12: 1.985277294e-06 | BA12: 1.835462049e-10 | BB12: 0.0005602756353 | BC12: 0.01459959985 | BD12: 5.049513309e-05 | BE12: 1 | BF12: 1 | BG12: 1 | BH12: 1 | BI12: 1 | BL12: sister
A13: ἀδελφός | B13: 9 | C13: 3 | D13: 0 | E13: 1 | F13: 5 | G13: 1 | H13: 1 | I13: 0 | J13: 0 | K13: 1 | L13: 2 | M13: 1 | N13: 2 | O13: 0 | P13: 4 | Q13: 3 | R13: 2 | S13: 10 | T13: 7 | V13: 43 | W13: 0.001765913758 | Y13: 9 | Z13: 2 | AB13: 2.63650924 | AC13: 0.001214728532 | AD13: -6.713234658 | AF13: 2.721969006 | AG13: 2.651564406 | AH13: 0.001259496026 | AI13: -6.677043617 | AJ13: 0.03619104036 | AK13: 15.19956838 | AP13: 122 | AQ13: 0.09894762232 | AR13: 0 | AS13: 0.1023155503 | AT13: 0 | AU13: 0 | AV13: 0.999 | AW13: 0.17773621 | AX13: 0.0837147336 | AY13: 0.001435470857 | AZ13: 0.09282485996 | BA13: 0.01082280324 | BB13: 0.1767845974 | BC13: 0 | BD13: 0 | BE13: 0 | BF13: 0 | BG13: 0 | BH13: 0 | BI13: 0.1510396673 | BJ13: 122 | BL13: brother
A14: αἷμα | B14: 1 | C14: 0 | D14: 0 | E14: 0 | F14: 0 | G14: 2 | H14: 0 | I14: 0 | J14: 0 | K14: 0 | L14: 0 | M14: 0 | N14: 0 | O14: 0 | P14: 3 | Q14: 1 | R14: 0 | S14: 6 | T14: 2 | V14: 14 | W14: 0.0005749486653 | Y14: 1 | Z14: 0 | AB14: 0.8583983573 | AC14: 0.3638238858 | AD14: -1.011085359 | AF14: 0 | AG14: 0.7071771466 | AH14: 0.3486623756 | AI14: -1.05365123 | AJ14: -0.04256587145 | AQ14: 0.02866306396 | AR14: 1 | AS14: 0.04692280119 | AT14: 1 | AU14: 1 | AV14: 4.185421004e-168 | AW14: 0.000342935782 | AX14: 0.00857548038 | AY14: 0.9601659376 | AZ14: 0.006026795721 | BA14: 0.8061730733 | BB14: 0.0001075197289 | BC14: 1 | BD14: 1 | BE14: 1 | BF14: 1 | BG14: 1 | BH14: 1 | BI14: 0.0690610222 | BL14: blood
A15: αἴρω | B15: 5 | C15: 0 | D15: 2 | E15: 0 | F15: 3 | G15: 2 | H15: 3 | I15: 1 | J15: 0 | K15: 0 | L15: 3 | M15: 2 | N15: 0 | O15: 0 | P15: 3 | Q15: 1 | R15: 5 | S15: 4 | T15: 2 | V15: 31 | W15: 0.001273100616 | Y15: 5 | Z15: 3 | AB15: 1.90073922 | AC15: 0.03089945926 | AD15: -3.477016595 | AF15: 4.08295351 | AG15: 2.285172722 | AH15: 0.0528416058 | AI15: -2.94045641 | AJ15: 0.5365601851 | AK15: 3.225264803 | AP15: 121 | AQ15: 0 | AR15: 0.01702702779 | AS15: 0 | AT15: 0.005828435972 | AU15: 0.3003445011 | AV15: 0.1470135955 | AW15: 0.999 | AX15: 0.0535120245 | AY15: 0.02104161042 | AZ15: 0.3140131252 | BA15: 0.1049975492 | BB15: 0.3606634251 | BC15: 0.0007558815457 | BD15: 0.1584670981 | BE15: 0 | BF15: 0 | BG15: 0 | BH15: 0 | BI15: 0 | BJ15: 121 | BL15: to take up, take away
A16: αἰτέω | B16: 1 | C16: 1 | D16: 2 | E16: 0 | F16: 0 | G16: 0 | H16: 0 | I16: 0 | J16: 0 | K16: 0 | L16: 4 | M16: 3 | N16: 0 | O16: 1 | P16: 6 | Q16: 0 | R16: 0 | S16: 2 | T16: 2 | V16: 21 | W16: 0.0008624229979 | Y16: 1 | Z16: 4 | AB16: 1.287597536 | AC16: 0.3552905302 | AD16: -1.034819429 | AF16: 5.443938013 | AG16: 2.019806345 | AH16: 0.2679902427 | AI16: -1.316804707 | AJ16: -0.2819852778 | AK16: 0.5149033143 | AQ16: 1 | AR16: 0.5620441727 | AS16: 1 | AT16: 0.7135870986 | AU16: 7.093859008e-26 | AV16: 1.392868689e-08 | AW16: 0 | AX16: 0.0006376191712 | AY16: 0.1802609817 | AZ16: 9.390112827e-48 | BA16: 0.0001444369282 | BB16: 3.447841881e-38 | BC16: 0.9751173097 | BD16: 3.218395359e-10 | BE16: 1 | BF16: 1 | BG16: 1 | BH16: 1 | BI16: 1 | BL16: to ask, request
A17: αἰών | B17: 0 | C17: 1 | D17: 2 | E17: 0 | F17: 1 | G17: 1 | H17: 0 | I17: 0 | J17: 0 | K17: 0 | L17: 2 | M17: 0 | N17: 0 | O17: 0 | P17: 0 | Q17: 0 | R17: 0 | S17: 4 | T17: 4 | V17: 15 | W17: 0.0006160164271 | Y17: 0 | Z17: 2 | AB17: 0.9197125257 | AC17: 0.3986336215 | AD17: -0.9197125257 | AF17: 2.721969006 | AG17: 1.237210112 | AH17: 0.2901926946 | AI17: -1.237210112 | AJ17: -0.3174975868 | AK17: 1.237210112 | AP17: 022 | AQ17: 0.2155644677 | AR17: 0 | AS17: 0 | AT17: 0.06744441387 | AU17: 0 | AV17: 0.16941202 | AW17: 0.1619014566 | AX17: 0.999 | AY17: 0.02270435839 | AZ17: 0.1817801184 | BA17: 0.01998854738 | BB17: 0.2012825489 | BC17: 0 | BD17: 0.1334679 | BE17: 0.004708361135 | BF17: 0 | BG17: 0 | BH17: 0 | BI17: 0 | BJ17: 022 | BL17: age, eternity
A18: αἰώνιος | B18: 2 | C18: 0 | D18: 1 | E18: 0 | F18: 0 | G18: 0 | H18: 0 | I18: 0 | J18: 0 | K18: 0 | L18: 0 | M18: 1 | N18: 1 | O18: 0 | P18: 0 | Q18: 0 | R18: 0 | S18: 3 | T18: 1 | V18: 7 | W18: 0.0002874743326 | Y18: 2 | Z18: 0 | AB18: 0.4291991786 | AC18: 0.05996377057 | AD18: -2.814014723 | AF18: 0 | AG18: 0.3535885733 | AH18: 0.04389397193 | AI18: -3.125978282 | AJ18: -0.3119635589 | AQ18: 0.00281305907 | AR18: 1 | AS18: 1 | AT18: 0.03194147775 | AU18: 1 | AV18: 0.003974695226 | AW18: 0.01128452561 | AX18: 6.735337889e-130 | AY18: 0.4467837858 | AZ18: 7.06098102e-05 | BA18: 0.7474464075 | BB18: 0.002110609661 | BC18: 1 | BD18: 0.01336298059 | BE18: 0.9472996163 | BF18: 1 | BG18: 1 | BH18: 1 | BI18: 1 | BL18: eternal
A19: ἀκάθαρτος | B19: 0 | C19: 0 | D19: 1 | E19: 0 | F19: 1 | G19: 1 | H19: 2 | I19: 3 | J19: 0 | K19: 2 | L19: 0 | M19: 1 | N19: 0 | O19: 1 | P19: 1 | Q19: 0 | R19: 0 | S19: 0 | T19: 0 | V19: 13 | W19: 0.0005338809035 | Y19: 0 | Z19: 0 | AB19: 0.7970841889 | AC19: 0.4506410344 | AD19: -0.7970841889 | AF19: 0 | AG19: 0.6566644933 | AH19: 0.5185781739 | AI19: -0.6566644933 | AJ19: 0.1404196956 | AP19: 012 | AQ19: 0 | AR19: 0 | AS19: 0.5853241537 | AT19: 0.008808501498 | AU19: 0 | AV19: 0.004610974689 | AW19: 0.06793753992 | AX19: 0.02125490848 | AY19: 0.999 | AZ19: 0.03532205504 | BA19: 0 | BB19: 0.008171201524 | BC19: 0.03561095532 | BD19: 0.01336670541 | BE19: 0 | BF19: 0 | BG19: 0 | BH19: 0 | BI19: 0.3716525748 | BJ19: 012 | BL19: unclean, impure
A20: ἀκοή | B20: 0 | C20: 1 | D20: 0 | E20: 0 | F20: 1 | G20: 0 | H20: 0 | I20: 0 | J20: 0 | K20: 1 | L20: 0 | M20: 0 | N20: 0 | O20: 1 | P20: 0 | Q20: 0 | R20: 1 | S20: 2 | T20: 0 | V20: 7 | W20: 0.0002874743326 | Y20: 0 | Z20: 0 | AB20: 0.4291991786 | AC20: 0.6510302449 | AD20: -0.4291991786 | AF20: 0 | AG20: 0.3535885733 | AH20: 0.7021637969 | AI20: -0.3535885733 | AJ20: 0.07561060533 | AQ20: 1 | AR20: 1 | AS20: 3.494233347e-21 | AT20: 0.7657958628 | AU20: 1 | AV20: 0.9207039893 | AW20: 0.226527957 | AX20: 0.4142556933 | AY20: 3.018815672e-149 | AZ20: 0.3202279261 | BA20: 1 | BB20: 0.8787123765 | BC20: 0.4493734485 | BD20: 0.7558885138 | BE20: 1 | BF20: 1 | BG20: 1 | BH20: 1 | BI20: 0.0002114483407 | BL20: hearing, report
A21: ἀκολουθέω | B21: 8 | C21: 3 | D21: 1 | E21: 1 | F21: 3 | G21: 1 | H21: 5 | I21: 1 | J21: 0 | K21: 0 | L21: 0 | M21: 0 | N21: 2 | O21: 0 | P21: 3 | Q21: 2 | R21: 0 | S21: 3 | T21: 2 | V21: 27 | W21: 0.001108829569 | Y21: 8 | Z21: 0 | AB21: 1.655482546 | AC21: 0.0002672448794 | AD21: -8.227345169 | AF21: 0 | AG21: 1.36384164 | AH21: 7.590705555e-05 | AI21: -9.486000919 | AJ21: -1.258655751 | AK21: 32.29011088 | AP21: 021 | AQ21: 0 | AR21: 0.03776398696 | AS21: 0.04161471465 | AT21: 0.01133434626 | AU21: 0.2264239987 | AV21: 0.135621051 | AW21: 0.5656962612 | AX21: 0.129734413 | AY21: 0.0331984063 | AZ21: 0.999 | BA21: 0 | BB21: 0.2653913191 | BC21: 0.008425126361 | BD21: 0.2610051164 | BE21: 0 | BF21: 0 | BG21: 0 | BH21: 0 | BI21: 0 | BJ21: 021 | BL21: to follow
A22: ἀκούω | B22: 11 | C22: 8 | D22: 4 | E22: 2 | F22: 4 | G22: 3 | H22: 6 | I22: 2 | J22: 2 | K22: 1 | L22: 3 | M22: 10 | N22: 1 | O22: 3 | P22: 9 | Q22: 5 | R22: 7 | S22: 20 | T22: 25 | V22: 115 | W22: 0.004722792608 | Y22: 11 | Z22: 3 | AB22: 7.051129363 | AC22: 0.04649681618 | AD22: -3.068371438 | AF22: 4.08295351 | AG22: 6.528235602 | AH22: 0.03360636955 | AI22: -3.39303966 | AJ22: -0.324668222 | AK22: 3.063105876 | AQ22: 1 | AR22: 0.4901959088 | AS22: 0.4254337538 | AT22: 0.704378745 | AU22: 7.499748124e-06 | AV22: 0.003194716007 | AW22: 1.518414874e-28 | AX22: 9.627852092e-05 | AY22: 0.2373454199 | AZ22: 5.560175593e-163 | BA22: 1 | BB22: 7.197652425e-07 | BC22: 0.865673455 | BD22: 8.837584826e-08 | BE22: 1 | BF22: 1 | BG22: 1 | BH22: 1 | BI22: 1 | BL22: to hear
A23: ἀλήθεια | B23: 1 | C23: 0 | D23: 1 | E23: 0 | F23: 0 | G23: 0 | H23: 0 | I23: 0 | J23: 0 | K23: 2 | L23: 0 | M23: 0 | N23: 0 | O23: 0 | P23: 0 | Q23: 0 | R23: 0 | S23: 0 | T23: 1 | V23: 4 | W23: 0.0001642710472 | Y23: 1 | Z23: 0 | AB23: 0.2452566735 | AC23: 0.1919142458 | AD23: -1.650706643 | AF23: 0 | AG23: 0.2020506133 | AH23: 0.1650861756 | AI23: -1.801287665 | AJ23: -0.1505810219 | AP23: 220 | AQ23: 0.2422106773 | AR23: 0 | AS23: 0 | AT23: 0 | AU23: 0.182611653 | AV23: 0.007956501869 | AW23: 0.06615267488 | AX23: 0.01126220699 | AY23: 0 | AZ23: 0 | BA23: 0.999 | BB23: 0.09705941374 | BC23: 0.03166190285 | BD23: 0.08027458051 | BE23: 0.005762530278 | BF23: 0 | BG23: 0 | BH23: 0 | BI23: 0 | BJ23: 220 | BL23: truth
A24: ἀληθῶς | B24: 0 | C24: 0 | D24: 1 | E24: 0 | F24: 2 | G24: 0 | H24: 0 | I24: 0 | J24: 1 | K24: 0 | L24: 0 | M24: 0 | N24: 1 | O24: 0 | P24: 0 | Q24: 0 | R24: 1 | S24: 0 | T24: 0 | V24: 6 | W24: 0.0002464065708 | Y24: 0 | Z24: 0 | AB24: 0.3678850103 | AC24: 0.6921967726 | AD24: -0.3678850103 | AF24: 0 | AG24: 0.30307592 | AH24: 0.7385430241 | AI24: -0.30307592 | AJ24: 0.06480909029 | AQ24: 7.334007832e-13 | AR24: 1 | AS24: 1 | AT24: 1 | AU24: 9.306698395e-12 | AV24: 0.7160979408 | AW24: 0.0137517986 | AX24: 0.5282646037 | AY24: 1 | AZ24: 1 | BA24: 4.546490775e-260 | BB24: 0.0002700894151 | BC24: 0.1615341668 | BD24: 0.0001982310768 | BE24: 0.841701705 | BF24: 1 | BG24: 1 | BH24: 1 | BI24: 1 | BL24: truly
A25: ἀλλά | B25: 9 | C25: 2 | D25: 3 | E25: 0 | F25: 3 | G25: 1 | H25: 9 | I25: 0 | J25: 1 | K25: 5 | L25: 5 | M25: 10 | N25: 2 | O25: 3 | P25: 5 | Q25: 5 | R25: 3 | S25: 6 | T25: 13 | V25: 76 | W25: 0.003121149897 | Y25: 9 | Z25: 5 | AB25: 4.659876797 | AC25: 0.02703012774 | AD25: -3.610803193 | AF25: 6.804922516 | AG25: 5.037762434 | AH25: 0.03736833033 | AI25: -3.286931716 | AJ25: 0.3238714771 | AK25: 3.116329269 | AP25: 120 | AQ25: 0.01414283093 | AR25: 0 | AS25: 0 | AT25: 0 | AU25: 0.1077922692 | AV25: 0.142371662 | AW25: 0.3528968212 | AX25: 0.06952622131 | AY25: 0.003419175839 | AZ25: 0.1448711112 | BA25: 0.1279808281 | BB25: 0.999 | BC25: 0 | BD25: 0.1821962101 | BE25: 0 | BF25: 0 | BG25: 0 | BH25: 0 | BI25: 0 | BJ25: 120 | BL25: but
A26: ἀλλήλων | B26: 0 | C26: 0 | D26: 3 | E26: 0 | F26: 0 | G26: 1 | H26: 2 | I26: 0 | J26: 1 | K26: 0 | L26: 0 | M26: 1 | N26: 0 | O26: 1 | P26: 0 | Q26: 0 | R26: 1 | S26: 3 | T26: 5 | V26: 18 | W26: 0.0007392197125 | Y26: 0 | Z26: 0 | AB26: 1.103655031 | AC26: 0.3316566504 | AD26: -1.103655031 | AF26: 0 | AG26: 0.9092277599 | AH26: 0.4028351894 | AI26: -0.9092277599 | AJ26: 0.1944272709 | AQ26: 0.6219020172 | AR26: 1 | AS26: 1 | AT26: 1 | AU26: 0.0003544282325 | AV26: 5.925243267e-07 | AW26: 3.640319704e-27 | AX26: 0.0009187501098 | AY26: 0.8556787092 | AZ26: 7.030547745e-09 | BA26: 0.0001698984603 | BB26: 1.52014024e-246 | BC26: 1 | BD26: 8.477712525e-10 | BE26: 1 | BF26: 1 | BG26: 1 | BH26: 1 | BI26: 1 | BL26: one another
A27: ἄλλος | B27: 3 | C27: 6 | D27: 2 | E27: 0 | F27: 5 | G27: 1 | H27: 5 | I27: 1 | J27: 0 | K27: 2 | L27: 1 | M27: 2 | N27: 0 | O27: 2 | P27: 2 | Q27: 5 | R27: 1 | S27: 7 | T27: 1 | V27: 43 | W27: 0.001765913758 | Y27: 3 | Z27: 1 | AB27: 2.63650924 | AC27: 0.2187334628 | AD27: -1.519901355 | AF27: 1.360984503 | AG27: 2.411804249 | AH27: 0.2096243074 | AI27: -1.562438363 | AJ27: -0.04253700749 | AK27: 0.143450382 | AP27: 210 | AQ27: 0 | AR27: 0.2468434827 | AS27: 0.01848386582 | AT27: 0.1274527419 | AU27: 0.07003645656 | AV27: 0 | AW27: 0.001528020041 | AX27: 0.01164886298 | AY27: 0.02106438175 | AZ27: 0.0009735326374 | BA27: 0.0212855114 | BB27: 0 | BC27: 0.999 | BD27: 0 | BE27: 0 | BF27: 0.06064944571 | BG27: 0 | BH27: 0.0527197342 | BI27: 0 | BJ27: 210 | BL27: other, another
A28: ἁμαρτάνω | B28: 0 | C28: 0 | D28: 0 | E28: 0 | F28: 0 | G28: 0 | H28: 0 | I28: 0 | J28: 0 | K28: 0 | L28: 0 | M28: 0 | N28: 0 | O28: 0 | P28: 2 | Q28: 0 | R28: 0 | S28: 1 | T28: 2 | V28: 5 | W28: 0.000205338809 | Y28: 0 | Z28: 0 | AB28: 0.3065708419 | AC28: 0.7359663791 | AD28: -0.3065708419 | AF28: 0 | AG28: 0.2525632667 | AH28: 0.7768070653 | AI28: -0.2525632667 | AJ28: 0.05400757524 | AQ28: 1 | AR28: 1.688560489e-13 | AS28: 0.6193739395 | AT28: 3.306415707e-10 | AU28: 0.02638841236 | AV28: 1 | AW28: 0.9656324605 | AX28: 0.5043229682 | AY28: 0.3059875511 | AZ28: 0.9653296478 | BA28: 0.4554244067 | BB28: 1 | BC28: 2.294016542e-218 | BD28: 1 | BE28: 1 | BF28: 0.05172150291 | BG28: 1 | BH28: 0.3521698282 | BI28: 1 | BL28: to sin
A29: ἁμαρτία | B29: 3 | C29: 1 | D29: 0 | E29: 0 | F29: 0 | G29: 2 | H29: 0 | I29: 0 | J29: 0 | K29: 0 | L29: 1 | M29: 0 | N29: 1 | O29: 0 | P29: 0 | Q29: 0 | R29: 1 | S29: 1 | T29: 5 | V29: 12 | W29: 0.0004928131417 | Y29: 3 | Z29: 1 | AB29: 0.7357700205 | AC29: 0.03180783826 | AD29: -3.448042533 | AF29: 1.360984503 | AG29: 0.8459119962 | AH29: 0.04329616093 | AI29: -3.13969131 | AJ29: 0.3083512234 | AP29: 020 | AQ29: 0 | AR29: 0 | AS29: 0 | AT29: 0 | AU29: 0.1357496195 | AV29: 0 | AW29: 0.214631721 | AX29: 0.05158027151 | AY29: 0.003576257751 | AZ29: 0.1377974372 | BA29: 0.1238158539 | BB29: 0.2204119087 | BC29: 0 | BD29: 0.999 | BE29: 0.07145956431 | BF29: 0 | BG29: 0.04803880444 | BH29: 0 | BI29: 0 | BJ29: 020 | BL29: sin
A30: ἁμαρτωλός | B30: 2 | C30: 0 | D30: 0 | E30: 0 | F30: 1 | G30: 0 | H30: 2 | I30: 0 | J30: 0 | K30: 0 | L30: 1 | M30: 0 | N30: 0 | O30: 0 | P30: 1 | Q30: 0 | R30: 5 | S30: 0 | T30: 10 | V30: 20 | W30: 0.0008213552361 | Y30: 2 | Z30: 1 | AB30: 1.226283368 | AC30: 0.220588862 | AD30: -1.511454663 | AF30: 1.360984503 | AG30: 1.250013223 | AH30: 0.2238336483 | AI30: -1.496852144 | AJ30: 0.01460251862 | AK30: 0.4499793727 | AQ30: 1 | AR30: 1 | AS30: 1 | AT30: 1 | AU30: 0.0001373015717 | AV30: 1 | AW30: 4.720404274e-07 | AX30: 0.02231033131 | AY30: 0.8614520074 | AZ30: 9.667499174e-07 | BA30: 0.001088418361 | BB30: 6.379728085e-08 | BC30: 1 | BD30: 1.409066804e-191 | BE30: 0.07763367738 | BF30: 1 | BG30: 0.3022665032 | BH30: 1 | BI30: 1 | BL30: sinful, sinner
A31: ἀμήν | B31: 3 | C31: 2 | D31: 1 | E31: 0 | F31: 3 | G31: 0 | H31: 1 | I31: 0 | J31: 0 | K31: 1 | L31: 3 | M31: 2 | N31: 0 | O31: 0 | P31: 0 | Q31: 10 | R31: 0 | S31: 10 | T31: 3 | V31: 36 | W31: 0.001478439425 | Y31: 3 | Z31: 3 | AB31: 2.207310062 | AC31: 0.1971588148 | AD31: -1.623745708 | AF31: 4.08295351 | AG31: 2.537735989 | AH31: 0.2153095678 | AI31: -1.535678436 | AJ31: 0.08806727199 | AK31: 0.08420419506 | AP31: 202 | AQ31: 0.01424736814 | AR31: 0 | AS31: 0 | AT31: 0 | AU31: 0 | AV31: 0 | AW31: 0 | AX31: 0.003193120643 | AY31: 0 | AZ31: 0 | BA31: 0.01799336614 | BB31: 0 | BC31: 0.008235373244 | BD31: 0.05398075842 | BE31: 0.999 | BF31: 0.1576216029 | BG31: 0.1484202691 | BH31: 0.3454751654 | BI31: 0 | BJ31: 202 | BL31: amen, truly
A32: ἀμπελών | B32: 4 | C32: 0 | D32: 1 | E32: 0 | F32: 0 | G32: 1 | H32: 0 | I32: 0 | J32: 0 | K32: 0 | L32: 0 | M32: 0 | N32: 0 | O32: 0 | P32: 0 | Q32: 0 | R32: 0 | S32: 6 | T32: 1 | V32: 9 | W32: 0.0003696098563 | Y32: 4 | Z32: 0 | AB32: 0.5518275154 | AC32: 0.002225084558 | AD32: -6.10796036 | AF32: 0 | AG32: 0.45461388 | AH32: 0.001129596202 | AI32: -6.785895053 | AJ32: -0.6779346931 | AQ32: 0.619595167 | AR32: 1 | AS32: 1 | AT32: 1 | AU32: 1 | AV32: 1 | AW32: 1 | AX32: 0.8110280097 | AY32: 1 | AZ32: 1 | BA32: 0.3761171848 | BB32: 1 | BC32: 0.567424778 | BD32: 0.00269603994 | BE32: 0 | BF32: 4.846105442e-10 | BG32: 2.425345984e-08 | BH32: 4.950369935e-20 | BI32: 1 | BL32: vineyard
A33: ἄν | B33: 4 | C33: 0 | D33: 6 | E33: 1 | F33: 4 | G33: 2 | H33: 2 | I33: 0 | J33: 1 | K33: 0 | L33: 4 | M33: 4 | N33: 2 | O33: 0 | P33: 4 | Q33: 9 | R33: 6 | S33: 14 | T33: 8 | V33: 67 | W33: 0.002751540041 | Y33: 4 | Z33: 4 | AB33: 4.108049281 | AC33: 0.1950869431 | AD33: -1.634309958 | AF33: 5.443938013 | AG33: 4.343388398 | AH33: 0.1926610008 | AI33: -1.646823107 | AJ33: -0.01251314893 | AK33: 0.02714829556 | AP33: 201 | AQ33: 0 | AR33: 0.05352923522 | AS33: 0 | AT33: 0 | AU33: 0 | AV33: 0 | AW33: 0 | AX33: 0 | AY33: 0 | AZ33: 0 | BA33: 0 | BB33: 0 | BC33: 0.03377467355 | BD33: 0 | BE33: 0.1660248924 | BF33: 0.999 | BG33: 0 | BH33: 0.4584816482 | BI33: 0 | BJ33: 201 | BL33: (untranslatable particle)
A34: ἀναβαίνω | B34: 1 | C34: 0 | D34: 2 | E34: 0 | F34: 4 | G34: 0 | H34: 1 | I34: 0 | J34: 1 | K34: 0 | L34: 1 | M34: 1 | N34: 2 | O34: 1 | P34: 0 | Q34: 0 | R34: 0 | S34: 1 | T34: 5 | V34: 19 | W34: 0.0007802874743 | Y34: 1 | Z34: 1 | AB34: 1.164969199 | AC34: 0.3633914864 | AD34: -1.012274551 | AF34: 1.360984503 | AG34: 1.19950057 | AH34: 0.3614631093 | AI34: -1.017595291 | AJ34: -0.005320740442 | AK34: 0.03318087398 | AQ34: 1 | AR34: 0.03312691106 | AS34: 1 | AT34: 1 | AU34: 1 | AV34: 1 | AW34: 1 | AX34: 1 | AY34: 1 | AZ34: 1 | BA34: 1 | BB34: 1 | BC34: 0.08852688825 | BD34: 1 | BE34: 8.432476407e-09 | BF34: 0 | BG34: 1 | BH34: 1.583457351e-32 | BI34: 1 | BL34: to go up
A35: ἀναβλέπω | B35: 2 | C35: 0 | D35: 1 | E35: 0 | F35: 0 | G35: 1 | H35: 0 | I35: 0 | J35: 1 | K35: 1 | L35: 0 | M35: 0 | N35: 0 | O35: 2 | P35: 1 | Q35: 0 | R35: 0 | S35: 0 | T35: 1 | V35: 8 | W35: 0.0003285420945 | Y35: 2 | Z35: 0 | AB35: 0.490513347 | AC35: 0.07366215546 | AD35: -2.608266106 | AF35: 0 | AG35: 0.4041012266 | AH35: 0.05450689072 | AI35: -2.90942815 | AJ35: -0.3011620439 | AP35: 102 | AQ35: 0 | AR35: 0 | AS35: 0.07272568742 | AT35: 0.02345777948 | AU35: 0 | AV35: 0 | AW35: 0 | AX35: 0 | AY35: 0 | AZ35: 0 | BA35: 0 | BB35: 0 | BC35: 0 | BD35: 0.02470853659 | BE35: 0.1570766063 | BF35: 0 | BG35: 0.999 | BH35: 0 | BI35: 0.2946375149 | BJ35: 102 | BL35: to look up, regain sight
A36: ἀναγινώσκω | B36: 1 | C36: 0 | D36: 2 | E36: 0 | F36: 3 | G36: 0 | H36: 0 | I36: 0 | J36: 0 | K36: 0 | L36: 0 | M36: 0 | N36: 1 | O36: 0 | P36: 0 | Q36: 0 | R36: 0 | S36: 2 | T36: 0 | V36: 8 | W36: 0.0003285420945 | Y36: 1 | Z36: 0 | AB36: 0.490513347 | AC36: 0.3003472012 | AD36: -1.202816136 | AF36: 0 | AG36: 0.4041012266 | AH36: 0.2697684992 | AI36: -1.310191098 | AJ36: -0.1073749617 | AQ36: 1 | AR36: 1 | AS36: 0.0239157418 | AT36: 0.07141095921 | AU36: 1 | AV36: 1 | AW36: 1 | AX36: 1 | AY36: 1 | AZ36: 1 | BA36: 1 | BB36: 1 | BC36: 1 | BD36: 0.3147795432 | BE36: 1.655646541e-06 | BF36: 1 | BG36: 2.012651909e-264 | BH36: 1 | BI36: 6.053108492e-09 | BL36: to read
A37: ἀνάκειμαι | B37: 0 | C37: 1 | D37: 2 | E37: 0 | F37: 1 | G37: 0 | H37: 0 | I37: 0 | J37: 0 | K37: 0 | L37: 0 | M37: 1 | N37: 1 | O37: 0 | P37: 0 | Q37: 0 | R37: 0 | S37: 2 | T37: 0 | V37: 8 | W37: 0.0003285420945 | Y37: 0 | Z37: 0 | AB37: 0.490513347 | AC37: 0.612311985 | AD37: -0.490513347 | AF37: 0 | AG37: 0.4041012266 | AH37: 0.6675765413 | AI37: -0.4041012266 | AJ37: 0.08641212038 | AP37: 200 | AQ37: 0.02800969876 | AR37: 0.08829456773 | AS37: 0 | AT37: 0 | AU37: 0 | AV37: 0 | AW37: 0 | AX37: 0 | AY37: 0 | AZ37: 0 | BA37: 0 | BB37: 0 | BC37: 0.02514141718 | BD37: 0 | BE37: 0.1924583676 | BF37: 0.1864399059 | BG37: 0.005518418904 | BH37: 0.999 | BI37: 0 | BJ37: 200 | BL37: to recline (at table)
A38: ἀνάστασις | B38: 2 | C38: 1 | D38: 1 | E38: 1 | F38: 0 | G38: 0 | H38: 0 | I38: 0 | J38: 0 | K38: 0 | L38: 0 | M38: 0 | N38: 0 | O38: 0 | P38: 0 | Q38: 0 | R38: 0 | S38: 0 | T38: 2 | V38: 5 | W38: 0.000205338809 | Y38: 2 | Z38: 0 | AB38: 0.3065708419 | AC38: 0.0345851507 | AD38: -3.36433086 | AF38: 0 | AG38: 0.2525632667 | AH38: 0.02477556364 | AI38: -3.697897449 | AJ38: -0.333566589 | AQ38: 0.08476238558 | AR38: 6.073473926e-10 | AS38: 1 | AT38: 1 | AU38: 1 | AV38: 1 | AW38: 1 | AX38: 1 | AY38: 1 | AZ38: 1 | BA38: 1 | BB38: 1 | BC38: 0.0515079975 | BD38: 1 | BE38: 1.90095719e-33 | BF38: 2.212138203e-37 | BG38: 0.7021099841 | BH38: 0 | BI38: 1 | BL38: resurrection
A39: ἀναχωρέω | B39: 0 | C39: 3 | D39: 0 | E39: 0 | F39: 1 | G39: 0 | H39: 0 | I39: 0 | J39: 0 | K39: 0 | L39: 0 | M39: 0 | N39: 1 | O39: 0 | P39: 0 | Q39: 0 | R39: 0 | S39: 5 | T39: 0 | V39: 10 | W39: 0.0004106776181 | Y39: 0 | Z39: 0 | AB39: 0.6131416838 | AC39: 0.5416465111 | AD39: -0.6131416838 | AF39: 0 | AG39: 0.5051265333 | AH39: 0.6034292167 | AI39: -0.5051265333 | AJ39: 0.1080151505 | AP39: 002 | AQ39: 0.01566275917 | AR39: 0 | AS39: 0.239195281 | AT39: 0 | AU39: 0 | AV39: 0.06490152298 | AW39: 0 | AX39: 0.002624057873 | AY39: 0.07430892926 | AZ39: 0 | BA39: 0 | BB39: 0 | BC39: 0 | BD39: 0 | BE39: 0.0009320021089 | BF39: 0 | BG39: 0.1223916087 | BH39: 0 | BI39: 0.999 | BJ39: 002 | BL39: to withdraw
A40: ἄνεμος | B40: 2 | C40: 0 | D40: 0 | E40: 0 | F40: 0 | G40: 1 | H40: 1 | I40: 0 | J40: 0 | K40: 0 | L40: 3 | M40: 0 | N40: 0 | O40: 0 | P40: 1 | Q40: 2 | R40: 0 | S40: 1 | T40: 0 | V40: 9 | W40: 0.0003696098563 | Y40: 2 | Z40: 3 | AB40: 0.5518275154 | AC40: 0.0876841432 | AD40: -2.434014203 | AF40: 4.08295351 | AG40: 1.173894349 | AH40: 0.2130159828 | AI40: -1.54638808 | AJ40: 0.8876261235 | AK40: 0.5813560205 | AQ40: 0.2243388065 | AR40: 1 | AS40: 4.040409686e-61 | AT40: 1 | AU40: 1 | AV40: 1.489904381e-12 | AW40: 1 | AX40: 0.6033860343 | AY40: 1.959790135e-18 | AZ40: 1 | BA40: 1 | BB40: 1 | BC40: 1 | BD40: 1 | BE40: 0.9445351244 | BF40: 1 | BG40: 2.100628382e-20 | BH40: 1 | BI40: 0 | BL40: wind
A41: ἀνήρ | B41: 1 | C41: 0 | D41: 9 | E41: 0 | F41: 0 | G41: 0 | H41: 0 | I41: 0 | J41: 3 | K41: 0 | L41: 0 | M41: 2 | N41: 2 | O41: 1 | P41: 1 | Q41: 2 | R41: 3 | S41: 2 | T41: 10 | V41: 35 | W41: 0.001437371663 | Y41: 1 | Z41: 0 | AB41: 2.145995893 | AC41: 0.2509774555 | AD41: -1.382392163 | AF41: 0 | AG41: 1.767942867 | AH41: 0.3017591132 | AI41: -1.198126218 | AJ41: 0.1842659445 | AK41: 0.3335720048 | AQ41: 222 | AR41: 211 | AS41: 112 | AT41: 212 | AU41: 221 | AV41: 122 | AW41: 121 | AX41: 022 | AY41: 012 | AZ41: 021 | BA41: 220 | BB41: 120 | BC41: 210 | BD41: 020 | BE41: 202 | BF41: 201 | BG41: 102 | BH41: 200 | BI41: 002 | BL41: man, husband
A42: ἄνθρωπος | B42: 17 | C42: 13 | D42: 9 | E42: 0 | F42: 8 | G42: 4 | H42: 1 | I42: 2 | J42: 0 | K42: 1 | L42: 11 | M42: 6 | N42: 3 | O42: 6 | P42: 24 | Q42: 9 | R42: 8 | S42: 30 | T42: 31 | V42: 166 | W42: 0.00681724846 | Y42: 17 | Z42: 11 | AB42: 10.17815195 | AC42: 0.01442075738 | AD42: -4.239086625 | AF42: 14.97082954 | AG42: 11.02246217 | AH42: 0.02402555762 | AI42: -3.728637114 | AJ42: 0.510449511 | AK42: 3.241649455 | BL42: man, human being
A43: ὁ υἱὸς τοῦ ἀνθρώπου | B43: 8 | C43: 4 | D43: 2 | E43: 0 | F43: 3 | G43: 1 | H43: 0 | I43: 0 | J43: 0 | K43: 0 | L43: 2 | M43: 0 | N43: 0 | O43: 0 | P43: 8 | Q43: 1 | R43: 2 | S43: 4 | T43: 4 | V43: 31 | W43: 0.001273100616 | Y43: 8 | Z43: 2 | AB43: 1.90073922 | AC43: 0.0006315085138 | AD43: -7.367399134 | AF43: 2.721969006 | AG43: 2.045412566 | AH43: 0.0009826875261 | AI43: -6.925219366 | AJ43: 0.4421797682 | AK43: 17.33494362 | AO43: p-correction table | AQ43: 222 | AR43: 211 | AS43: 112 | AT43: 212 | AU43: 221 | AV43: 122 | AW43: 121 | AX43: 022 | AY43: 012 | AZ43: 021 | BA43: 220 | BB43: 120 | BC43: 210 | BD43: 020 | BE43: 202 | BF43: 201 | BG43: 102 | BH43: 200 | BI43: 002 | BL43: the Son of Man
A44: ἀνίστημι | B44: 1 | C44: 1 | D44: 9 | E44: 0 | F44: 0 | G44: 2 | H44: 6 | I44: 0 | J44: 2 | K44: 1 | L44: 1 | M44: 3 | N44: 0 | O44: 2 | P44: 1 | Q44: 0 | R44: 0 | S44: 0 | T44: 12 | V44: 40 | W44: 0.001642710472 | Y44: 1 | Z44: 1 | AB44: 2.452566735 | AC44: 0.2110982504 | AD44: -1.555431612 | AF44: 1.360984503 | AG44: 2.260266289 | AH44: 0.2357970843 | AI44: -1.444783656 | AJ44: 0.110647956 | AK44: 0.7026920358 | AP44: 222 | AQ44: =_xlfn.CHISQ.DIST.RT(AQ45/$AO$49,1) ->  | AR44: =_xlfn.CHISQ.DIST.RT(AR45/$AO$49,1) -> 1 | AS44: =_xlfn.CHISQ.DIST.RT(AS45/$AO$49,1) -> 1 | AT44: 1 | AU44: 7.542770815e-05 | AV44: 0.007920294166 | AW44: 1 | AX44: 0.0059828749 | AY44: 1 | AZ44: 1 | BA44: 2.061042365e-06 | BB44: 1 | BC44: 1 | BD44: 1 | BE44: 0.893596351 | BF44: 1 | BG44: 1 | BH44: 1 | BI44: 1 | BL44: to raise, rise
A45: ἀνοίγω | B45: 0 | C45: 1 | D45: 0 | E45: 1 | F45: 0 | G45: 0 | H45: 0 | I45: 0 | J45: 0 | K45: 0 | L45: 0 | M45: 0 | N45: 0 | O45: 1 | P45: 2 | Q45: 1 | R45: 0 | S45: 6 | T45: 3 | V45: 15 | W45: 0.0006160164271 | Y45: 0 | Z45: 0 | AB45: 0.9197125257 | AC45: 0.3986336215 | AD45: -0.9197125257 | AF45: 0 | AG45: 0.7576898 | AH45: 0.4687480789 | AI45: -0.7576898 | AJ45: 0.1620227257 | AQ45: =_xlfn.CHISQ.INV.RT(AQ4,1) ->  | AR45: 0 | AS45: 0 | AT45: 0 | AU45: 34.00298348 | AV45: 15.30155677 | AW45: 0 | AX45: 16.39533352 | AY45: 0 | AZ45: 0 | BA45: 48.90590724 | BB45: 0 | BC45: 0 | BD45: 0 | BE45: 0.0388221395 | BF45: 0 | BG45: 0 | BH45: 0 | BI45: 0 | BL45: to open
A46: ἀντί | B46: 0 | C46: 0 | D46: 0 | E46: 0 | F46: 1 | G46: 0 | H46: 0 | I46: 0 | J46: 0 | K46: 0 | L46: 0 | M46: 0 | N46: 0 | O46: 0 | P46: 0 | Q46: 0 | R46: 2 | S46: 4 | T46: 2 | V46: 9 | W46: 0.0003696098563 | Y46: 0 | Z46: 0 | AB46: 0.5518275154 | AC46: 0.5758963886 | AD46: -0.5518275154 | AF46: 0 | AG46: 0.45461388 | AH46: 0.6346929883 | AI46: -0.45461388 | AJ46: 0.09721363543 | AP46: 211 | AQ46: =_xlfn.CHISQ.DIST.RT(AQ47/$AO$49,1) -> 1 | AR46: =_xlfn.CHISQ.DIST.RT(AR47/$AO$49,1) ->  | AS46: =_xlfn.CHISQ.DIST.RT(AS47/$AO$49,1) -> 1 | AT46: =_xlfn.CHISQ.DIST.RT(AT47/$AO$49,1) -> 3.276784446e-05 | AU46: =_xlfn.CHISQ.DIST.RT(AU47/$AO$49,1) -> 0.0413347426 | AV46: =_xlfn.CHISQ.DIST.RT(AV47/$AO$49,1) -> 1 | AW46: =_xlfn.CHISQ.DIST.RT(AW47/$AO$49,1) -> 0.7877510076 | AX46: =_xlfn.CHISQ.DIST.RT(AX47/$AO$49,1) -> 0.968029862 | AY46: =_xlfn.CHISQ.DIST.RT(AY47/$AO$49,1) -> 1 | AZ46: =_xlfn.CHISQ.DIST.RT(AZ47/$AO$49,1) -> 0.4768457041 | BA46: =_xlfn.CHISQ.DIST.RT(BA47/$AO$49,1) -> 1 | BB46: =_xlfn.CHISQ.DIST.RT(BB47/$AO$49,1) -> 1 | BC46: =_xlfn.CHISQ.DIST.RT(BC47/$AO$49,1) ->  | BD46: =_xlfn.CHISQ.DIST.RT(BD47/$AO$49,1) -> 1 | BE46: =_xlfn.CHISQ.DIST.RT(BE47/$AO$49,1) -> 1 | BF46: =_xlfn.CHISQ.DIST.RT(BF47/$AO$49,1) -> 0.09831918625 | BG46: =_xlfn.CHISQ.DIST.RT(BG47/$AO$49,1) -> 1 | BH46: =_xlfn.CHISQ.DIST.RT(BH47/$AO$49,1) -> 0.0005143616322 | BI46: =_xlfn.CHISQ.DIST.RT(BI47/$AO$49,1) -> 1 | BL46: instead of, for
A47: ἄξιος | B47: 0 | C47: 0 | D47: 0 | E47: 0 | F47: 0 | G47: 0 | H47: 0 | I47: 0 | J47: 0 | K47: 0 | L47: 0 | M47: 0 | N47: 0 | O47: 0 | P47: 2 | Q47: 7 | R47: 0 | S47: 0 | T47: 6 | V47: 15 | W47: 0.0006160164271 | Y47: 0 | Z47: 0 | AB47: 0.9197125257 | AC47: 0.3986336215 | AD47: -0.9197125257 | AF47: 0 | AG47: 0.7576898 | AH47: 0.4687480789 | AI47: -0.7576898 | AJ47: 0.1620227257 | AQ47: =_xlfn.CHISQ.INV.RT(AQ6,1) -> 0 | AS47: 0 | AT47: 37.43274039 | AU47: 9.03205748 | AV47: 0 | AW47: 0.1572945638 | AX47: 0.003485789452 | AY47: 0 | AZ47: 1.098168839 | BA47: 0 | BB47: 0 | BD47: 0 | BE47: 0 | BF47: 5.929739181 | BG47: 0 | BH47: 26.17641857 | BI47: 0 | BL47: worthy
A48: ἀπαγγέλλω | B48: 1 | C48: 0 | D48: 4 | E48: 1 | F48: 0 | G48: 0 | H48: 0 | I48: 0 | J48: 1 | K48: 2 | L48: 0 | M48: 0 | N48: 1 | O48: 0 | P48: 1 | Q48: 0 | R48: 2 | S48: 4 | T48: 1 | V48: 17 | W48: 0.0006981519507 | Y48: 1 | Z48: 0 | AB48: 1.042340862 | AC48: 0.3675588455 | AD48: -1.000871849 | AF48: 0 | AG48: 0.8587151066 | AH48: 0.3638428717 | AI48: -1.011033176 | AJ48: -0.01016132631 | AO48: Disprsion correction | AP48: 112 | AQ48: =_xlfn.CHISQ.DIST.RT(AQ49/$AO$49,1) -> 1 | AR48: =_xlfn.CHISQ.DIST.RT(AR49/$AO$49,1) -> 1 | AS48: =_xlfn.CHISQ.DIST.RT(AS49/$AO$49,1) ->  | AT48: =_xlfn.CHISQ.DIST.RT(AT49/$AO$49,1) -> 0.3276550247 | AU48: =_xlfn.CHISQ.DIST.RT(AU49/$AO$49,1) -> 1 | AV48: =_xlfn.CHISQ.DIST.RT(AV49/$AO$49,1) -> 0.01873050714 | AW48: =_xlfn.CHISQ.DIST.RT(AW49/$AO$49,1) -> 1 | AX48: =_xlfn.CHISQ.DIST.RT(AX49/$AO$49,1) -> 1 | AY48: =_xlfn.CHISQ.DIST.RT(AY49/$AO$49,1) ->  | AZ48: =_xlfn.CHISQ.DIST.RT(AZ49/$AO$49,1) -> 0.2964828965 | BA48: =_xlfn.CHISQ.DIST.RT(BA49/$AO$49,1) -> 1 | BB48: =_xlfn.CHISQ.DIST.RT(BB49/$AO$49,1) -> 1 | BC48: =_xlfn.CHISQ.DIST.RT(BC49/$AO$49,1) -> 0.3093959249 | BD48: =_xlfn.CHISQ.DIST.RT(BD49/$AO$49,1) -> 0.9847908976 | BE48: =_xlfn.CHISQ.DIST.RT(BE49/$AO$49,1) -> 1 | BF48: =_xlfn.CHISQ.DIST.RT(BF49/$AO$49,1) -> 1 | BG48: =_xlfn.CHISQ.DIST.RT(BG49/$AO$49,1) -> 0.02588557386 | BH48: =_xlfn.CHISQ.DIST.RT(BH49/$AO$49,1) -> 1 | BI48: =_xlfn.CHISQ.DIST.RT(BI49/$AO$49,1) ->  | BL48: to report, announce
A49: ἀπάγω | B49: 0 | C49: 1 | D49: 1 | E49: 1 | F49: 1 | G49: 0 | H49: 0 | I49: 0 | J49: 0 | K49: 0 | L49: 0 | M49: 2 | N49: 0 | O49: 0 | P49: 0 | Q49: 2 | R49: 0 | S49: 0 | T49: 2 | V49: 10 | W49: 0.0004106776181 | Y49: 0 | Z49: 0 | AB49: 0.6131416838 | AC49: 0.5416465111 | AD49: -0.6131416838 | AF49: 0 | AG49: 0.5051265333 | AH49: 0.6034292167 | AI49: -0.5051265333 | AJ49: 0.1080151505 | AO49: 2.17 | AQ49: =_xlfn.CHISQ.INV.RT(AQ8,1) -> 0 | AR49: 0 | AT49: 2.079171744 | AU49: 0 | AV49: 11.99251107 | AW49: 0 | AX49: 0 | AZ49: 2.365185536 | BA49: 0 | BB49: 0 | BC49: 2.242158356 | BD49: 0.0007885684263 | BE49: 0 | BF49: 0 | BG49: 10.7711118 | BH49: 0 | BL49: to lead away
A50: ἀπαρνέομαι | B50: 2 | C50: 0 | D50: 0 | E50: 0 | F50: 1 | G50: 0 | H50: 0 | I50: 0 | J50: 0 | K50: 0 | L50: 1 | M50: 0 | N50: 0 | O50: 0 | P50: 0 | Q50: 0 | R50: 1 | S50: 0 | T50: 0 | V50: 3 | W50: 0.0001232032854 | Y50: 2 | Z50: 1 | AB50: 0.1839425051 | AC50: 0.01407501879 | AD50: -4.26335377 | AF50: 1.360984503 | AG50: 0.3912981162 | AH50: 0.05176627391 | AI50: -2.961016425 | AJ50: 1.302337346 | AP50: 212 | AQ50: =_xlfn.CHISQ.DIST.RT(AQ51/$AO$49,1) -> 1 | AR50: =_xlfn.CHISQ.DIST.RT(AR51/$AO$49,1) -> 0.0008310579795 | AS50: =_xlfn.CHISQ.DIST.RT(AS51/$AO$49,1) -> 0.4938538995 | AT50: =_xlfn.CHISQ.DIST.RT(AT51/$AO$49,1) ->  | AU50: =_xlfn.CHISQ.DIST.RT(AU51/$AO$49,1) -> 1 | AV50: =_xlfn.CHISQ.DIST.RT(AV51/$AO$49,1) -> 1 | AW50: =_xlfn.CHISQ.DIST.RT(AW51/$AO$49,1) -> 1 | AX50: =_xlfn.CHISQ.DIST.RT(AX51/$AO$49,1) -> 0.1372971254 | AY50: =_xlfn.CHISQ.DIST.RT(AY51/$AO$49,1) -> 0.7314214205 | AZ50: =_xlfn.CHISQ.DIST.RT(AZ51/$AO$49,1) -> 0.7763326047 | BA50: =_xlfn.CHISQ.DIST.RT(BA51/$AO$49,1) -> 1 | BB50: =_xlfn.CHISQ.DIST.RT(BB51/$AO$49,1) -> 1 | BC50: =_xlfn.CHISQ.DIST.RT(BC51/$AO$49,1) -> 8.203519666e-05 | BD50: =_xlfn.CHISQ.DIST.RT(BD51/$AO$49,1) -> 1 | BE50: =_xlfn.CHISQ.DIST.RT(BE51/$AO$49,1) -> 1 | BF50: =_xlfn.CHISQ.DIST.RT(BF51/$AO$49,1) -> 1 | BG50: =_xlfn.CHISQ.DIST.RT(BG51/$AO$49,1) -> 0.3611172717 | BH50: =_xlfn.CHISQ.DIST.RT(BH51/$AO$49,1) -> 1 | BI50: =_xlfn.CHISQ.DIST.RT(BI51/$AO$49,1) -> 0.5009158637 | BL50: to deny, disown
A51: ἅπας | B51: 0 | C51: 0 | D51: 9 | E51: 0 | F51: 0 | G51: 1 | H51: 0 | I51: 0 | J51: 0 | K51: 1 | L51: 0 | M51: 0 | N51: 0 | O51: 1 | P51: 0 | Q51: 2 | R51: 1 | S51: 1 | T51: 0 | V51: 16 | W51: 0.0006570841889 | Y51: 0 | Z51: 0 | AB51: 0.981026694 | AC51: 0.3749259669 | AD51: -0.981026694 | AF51: 0 | AG51: 0.8082024533 | AH51: 0.4456584385 | AI51: -0.8082024533 | AJ51: 0.1728242408 | AQ51: =_xlfn.CHISQ.INV.RT(AQ10,1) -> 0 | AR51: 24.24010266 | AS51: 1.015817722 | AU51: 0 | AV51: 0 | AW51: 0 | AX51: 4.791346366 | AY51: 0.2556487815 | AZ51: 0.1751486355 | BA51: 0 | BB51: 0 | BC51: 33.65843668 | BD51: 0 | BE51: 0 | BF51: 0 | BG51: 1.809788743 | BH51: 0 | BI51: 0.9830002231 | BL51: all, whole
A52: ἀπέρχομαι | B52: 0 | C52: 9 | D52: 2 | E52: 1 | F52: 2 | G52: 4 | H52: 7 | I52: 1 | J52: 1 | K52: 1 | L52: 2 | M52: 5 | N52: 1 | O52: 0 | P52: 2 | Q52: 2 | R52: 3 | S52: 16 | T52: 6 | V52: 65 | W52: 0.002669404517 | Y52: 0 | Z52: 2 | AB52: 3.985420945 | AC52: 0.01858461958 | AD52: -3.985420945 | AF52: 2.721969006 | AG52: 3.762842779 | AH52: 0.02321764384 | AI52: -3.762842779 | AJ52: 0.2225781656 | AK52: 3.762842779 | AP52: 221 | AQ52: =_xlfn.CHISQ.DIST.RT(AQ53/$AO$49,1) -> 8.784999448e-05 | AR52: =_xlfn.CHISQ.DIST.RT(AR53/$AO$49,1) -> 0.06025356411 | AS52: =_xlfn.CHISQ.DIST.RT(AS53/$AO$49,1) -> 1 | AT52: =_xlfn.CHISQ.DIST.RT(AT53/$AO$49,1) -> 1 | AU52: =_xlfn.CHISQ.DIST.RT(AU53/$AO$49,1) ->  | AV52: =_xlfn.CHISQ.DIST.RT(AV53/$AO$49,1) -> 1 | AW52: =_xlfn.CHISQ.DIST.RT(AW53/$AO$49,1) ->  | AX52: =_xlfn.CHISQ.DIST.RT(AX53/$AO$49,1) -> 1 | AY52: =_xlfn.CHISQ.DIST.RT(AY53/$AO$49,1) -> 1 | AZ52: =_xlfn.CHISQ.DIST.RT(AZ53/$AO$49,1) -> 0.001247251654 | BA52: =_xlfn.CHISQ.DIST.RT(BA53/$AO$49,1) -> 1.509477119e-05 | BB52: =_xlfn.CHISQ.DIST.RT(BB53/$AO$49,1) -> 0.01917484301 | BC52: =_xlfn.CHISQ.DIST.RT(BC53/$AO$49,1) -> 0.09734825393 | BD52: =_xlfn.CHISQ.DIST.RT(BD53/$AO$49,1) -> 0.005930940462 | BE52: =_xlfn.CHISQ.DIST.RT(BE53/$AO$49,1) -> 1 | BF52: =_xlfn.CHISQ.DIST.RT(BF53/$AO$49,1) -> 1 | BG52: =_xlfn.CHISQ.DIST.RT(BG53/$AO$49,1) -> 1 | BH52: =_xlfn.CHISQ.DIST.RT(BH53/$AO$49,1) -> 1 | BI52: =_xlfn.CHISQ.DIST.RT(BI53/$AO$49,1) -> 1 | BL52: to go away, depart
A53: ἀπέχω | B53: 0 | C53: 0 | D53: 0 | E53: 0 | F53: 0 | G53: 0 | H53: 0 | I53: 0 | J53: 0 | K53: 0 | L53: 1 | M53: 1 | N53: 1 | O53: 0 | P53: 0 | Q53: 0 | R53: 0 | S53: 3 | T53: 4 | V53: 10 | W53: 0.0004106776181 | Y53: 0 | Z53: 1 | AB53: 0.6131416838 | AC53: 0.5416465111 | AD53: -0.6131416838 | AF53: 1.360984503 | AG53: 0.7448866896 | AH53: 0.4747880953 | AI53: -0.7448866896 | AJ53: -0.1317450058 | AQ53: =_xlfn.CHISQ.INV.RT(AQ12,1) -> 33.37758166 | AR53: 7.660949268 | AS53: 0 | AT53: 0 | AV53: 0 | AX53: 0 | AY53: 0 | AZ53: 22.60923793 | BA53: 40.63440608 | BB53: 11.90353341 | BC53: 5.964154481 | BD53: 16.42943015 | BE53: 0 | BF53: 0 | BG53: 0 | BH53: 0 | BI53: 0 | BL53: to receive in full, be distant
A54: ἀπό | B54: 8 | C54: 16 | D54: 26 | E54: 4 | F54: 10 | G54: 5 | H54: 7 | I54: 0 | J54: 10 | K54: 2 | L54: 6 | M54: 6 | N54: 13 | O54: 3 | P54: 12 | Q54: 10 | R54: 10 | S54: 36 | T54: 50 | V54: 226 | W54: 0.009281314168 | Y54: 8 | Z54: 6 | AB54: 13.85700205 | AC54: 0.03234552463 | AD54: -3.43127961 | AF54: 8.165907019 | AG54: 12.85442059 | AH54: 0.0483387696 | AI54: -3.029521357 | AJ54: 0.4017582527 | AK54: 1.833252545 | AP54: 122 | AQ54: =_xlfn.CHISQ.DIST.RT(AQ55/$AO$49,1) -> 0.1374452763 | AR54: =_xlfn.CHISQ.DIST.RT(AR55/$AO$49,1) -> 1 | AS54: =_xlfn.CHISQ.DIST.RT(AS55/$AO$49,1) -> 0.1773816123 | AT54: =_xlfn.CHISQ.DIST.RT(AT55/$AO$49,1) -> 1 | AU54: =_xlfn.CHISQ.DIST.RT(AU55/$AO$49,1) -> 1 | AV54: =_xlfn.CHISQ.DIST.RT(AV55/$AO$49,1) ->  | AW54: =_xlfn.CHISQ.DIST.RT(AW55/$AO$49,1) -> 0.01507373821 | AX54: =_xlfn.CHISQ.DIST.RT(AX55/$AO$49,1) -> 0.07436479692 | AY54: =_xlfn.CHISQ.DIST.RT(AY55/$AO$49,1) -> 0.9729528156 | AZ54: =_xlfn.CHISQ.DIST.RT(AZ55/$AO$49,1) -> 0.06227629443 | BA54: =_xlfn.CHISQ.DIST.RT(BA55/$AO$49,1) -> 0.8677121177 | BB54: =_xlfn.CHISQ.DIST.RT(BB55/$AO$49,1) -> 0.008560129967 | BC54: =_xlfn.CHISQ.DIST.RT(BC55/$AO$49,1) -> 1 | BD54: =_xlfn.CHISQ.DIST.RT(BD55/$AO$49,1) -> 1 | BE54: =_xlfn.CHISQ.DIST.RT(BE55/$AO$49,1) -> 1 | BF54: =_xlfn.CHISQ.DIST.RT(BF55/$AO$49,1) -> 1 | BG54: =_xlfn.CHISQ.DIST.RT(BG55/$AO$49,1) -> 1 | BH54: =_xlfn.CHISQ.DIST.RT(BH55/$AO$49,1) -> 1 | BI54: =_xlfn.CHISQ.DIST.RT(BI55/$AO$49,1) -> 0.2171460343 | BL54: from, away from
A55: ἀποδίδωμι | B55: 1 | C55: 2 | D55: 1 | E55: 0 | F55: 0 | G55: 0 | H55: 0 | I55: 0 | J55: 0 | K55: 0 | L55: 0 | M55: 0 | N55: 1 | O55: 0 | P55: 1 | Q55: 0 | R55: 0 | S55: 13 | T55: 5 | V55: 23 | W55: 0.0009445585216 | Y55: 1 | Z55: 0 | AB55: 1.410225873 | AC55: 0.344219416 | AD55: -1.066475988 | AF55: 0 | AG55: 1.161791027 | AH55: 0.3635537141 | AI55: -1.011828224 | AJ55: 0.05464776398 | AK55: 0.02253101951 | AQ55: =_xlfn.CHISQ.INV.RT(AQ14,1) -> 4.78773684 | AR55: 0 | AS55: 3.9481545 | AT55: 0 | AU55: 0 | AW55: 12.81998877 | AX55: 6.909169697 | AY55: 0.00249453807 | AZ55: 7.54227325 | BA55: 0.0602044608 | BB55: 14.99984989 | BC55: 0 | BD55: 0 | BE55: 0 | BF55: 0 | BG55: 0 | BH55: 0 | BI55: 3.305198 | BL55: to give back, pay
A56: ἀποθνῄσκω | B56: 3 | C56: 1 | D56: 3 | E56: 0 | F56: 0 | G56: 2 | H56: 1 | I56: 0 | J56: 0 | K56: 1 | L56: 0 | M56: 0 | N56: 1 | O56: 1 | P56: 0 | Q56: 0 | R56: 0 | S56: 0 | T56: 2 | V56: 12 | W56: 0.0004928131417 | Y56: 3 | Z56: 0 | AB56: 0.7357700205 | AC56: 0.03180783826 | AD56: -3.448042533 | AF56: 0 | AG56: 0.60615184 | AH56: 0.02024625179 | AI56: -3.899785599 | AJ56: -0.4517430658 | AP56: 121 | AQ56: =_xlfn.CHISQ.DIST.RT(AQ57/$AO$49,1) -> 1 | AR56: =_xlfn.CHISQ.DIST.RT(AR57/$AO$49,1) -> 0.6938769379 | AS56: =_xlfn.CHISQ.DIST.RT(AS57/$AO$49,1) -> 1 | AT56: =_xlfn.CHISQ.DIST.RT(AT57/$AO$49,1) -> 0.8032332423 | AU56: =_xlfn.CHISQ.DIST.RT(AU57/$AO$49,1) ->  | AV56: =_xlfn.CHISQ.DIST.RT(AV57/$AO$49,1) -> 0.0001171853432 | AW56: =_xlfn.CHISQ.DIST.RT(AW57/$AO$49,1) ->  | AX56: =_xlfn.CHISQ.DIST.RT(AX57/$AO$49,1) -> 0.02043240768 | AY56: =_xlfn.CHISQ.DIST.RT(AY57/$AO$49,1) -> 0.3630236736 | AZ56: =_xlfn.CHISQ.DIST.RT(AZ57/$AO$49,1) ->  | BA56: =_xlfn.CHISQ.DIST.RT(BA57/$AO$49,1) -> 0.009882616919 | BB56: =_xlfn.CHISQ.DIST.RT(BB57/$AO$49,1) ->  | BC56: =_xlfn.CHISQ.DIST.RT(BC57/$AO$49,1) -> 0.9831070525 | BD56: =_xlfn.CHISQ.DIST.RT(BD57/$AO$49,1) -> 1.968023086e-05 | BE56: =_xlfn.CHISQ.DIST.RT(BE57/$AO$49,1) -> 1 | BF56: =_xlfn.CHISQ.DIST.RT(BF57/$AO$49,1) -> 1 | BG56: =_xlfn.CHISQ.DIST.RT(BG57/$AO$49,1) -> 1 | BH56: =_xlfn.CHISQ.DIST.RT(BH57/$AO$49,1) -> 1 | BI56: =_xlfn.CHISQ.DIST.RT(BI57/$AO$49,1) -> 1 | BL56: to die
A57: ἀποκαλύπτω | B57: 0 | C57: 0 | D57: 0 | E57: 0 | F57: 0 | G57: 0 | H57: 0 | I57: 0 | J57: 0 | K57: 0 | L57: 0 | M57: 0 | N57: 0 | O57: 0 | P57: 3 | Q57: 0 | R57: 1 | S57: 1 | T57: 1 | V57: 6 | W57: 0.0002464065708 | Y57: 0 | Z57: 0 | AB57: 0.3678850103 | AC57: 0.6921967726 | AD57: -0.3678850103 | AF57: 0 | AG57: 0.30307592 | AH57: 0.7385430241 | AI57: -0.30307592 | AJ57: 0.06480909029 | AQ57: =_xlfn.CHISQ.INV.RT(AQ16,1) -> 0 | AR57: 0.3361771955 | AS57: 0 | AT57: 0.1347204114 | AV57: 32.19726247 | AX57: 11.6628112 | AY57: 1.795471107 | BA57: 14.44337628 | BC57: 0.0009728712607 | BD57: 39.53738007 | BE57: 0 | BF57: 0 | BG57: 0 | BH57: 0 | BI57: 0 | BL57: to reveal
A58: ἀποκρίνομαι | B58: 4 | C58: 9 | D58: 6 | E58: 1 | F58: 1 | G58: 1 | H58: 9 | I58: 1 | J58: 3 | K58: 1 | L58: 5 | M58: 8 | N58: 9 | O58: 0 | P58: 2 | Q58: 6 | R58: 3 | S58: 18 | T58: 25 | V58: 108 | W58: 0.004435318275 | Y58: 4 | Z58: 5 | AB58: 6.621930185 | AC58: 0.1066250898 | AD58: -2.238436431 | AF58: 6.804922516 | AG58: 6.654167341 | AH58: 0.1052677824 | AI58: -2.251247866 | AJ58: -0.01281143592 | AK58: 1.058675551 | AP58: 022 | AQ58: =_xlfn.CHISQ.DIST.RT(AQ59/$AO$49,1) -> 0.0425581927 | AR58: =_xlfn.CHISQ.DIST.RT(AR59/$AO$49,1) -> 1 | AS58: =_xlfn.CHISQ.DIST.RT(AS59/$AO$49,1) -> 1 | AT58: =_xlfn.CHISQ.DIST.RT(AT59/$AO$49,1) -> 0.145332524 | AU58: =_xlfn.CHISQ.DIST.RT(AU59/$AO$49,1) -> 1 | AV58: =_xlfn.CHISQ.DIST.RT(AV59/$AO$49,1) -> 0.05056158104 | AW58: =_xlfn.CHISQ.DIST.RT(AW59/$AO$49,1) -> 0.08542700441 | AX58: =_xlfn.CHISQ.DIST.RT(AX59/$AO$49,1) ->  | AY58: =_xlfn.CHISQ.DIST.RT(AY59/$AO$49,1) -> 0.6055356464 | AZ58: =_xlfn.CHISQ.DIST.RT(AZ59/$AO$49,1) -> 0.00697831373 | BA58: =_xlfn.CHISQ.DIST.RT(BA59/$AO$49,1) -> 0.8269667347 | BB58: =_xlfn.CHISQ.DIST.RT(BB59/$AO$49,1) -> 0.03689630889 | BC58: =_xlfn.CHISQ.DIST.RT(BC59/$AO$49,1) -> 1 | BD58: =_xlfn.CHISQ.DIST.RT(BD59/$AO$49,1) -> 0.09306941303 | BE58: =_xlfn.CHISQ.DIST.RT(BE59/$AO$49,1) -> 0.9642106061 | BF58: =_xlfn.CHISQ.DIST.RT(BF59/$AO$49,1) -> 1 | BG58: =_xlfn.CHISQ.DIST.RT(BG59/$AO$49,1) -> 1 | BH58: =_xlfn.CHISQ.DIST.RT(BH59/$AO$49,1) -> 1 | BI58: =_xlfn.CHISQ.DIST.RT(BI59/$AO$49,1) -> 1 | BL58: to answer
A59: ἀποκτείνω | B59: 3 | C59: 0 | D59: 0 | E59: 0 | F59: 3 | G59: 1 | H59: 3 | I59: 0 | J59: 0 | K59: 0 | L59: 1 | M59: 0 | N59: 0 | O59: 0 | P59: 3 | Q59: 1 | R59: 3 | S59: 2 | T59: 2 | V59: 19 | W59: 0.0007802874743 | Y59: 3 | Z59: 1 | AB59: 1.164969199 | AC59: 0.08219632189 | AD59: -2.498644724 | AF59: 1.360984503 | AG59: 1.19950057 | AH59: 0.08667895099 | AI59: -2.445544204 | AJ59: 0.05310051937 | AK59: 2.70262331 | AQ59: =_xlfn.CHISQ.INV.RT(AQ18,1) -> 8.924918529 | AR59: 0 | AS59: 0 | AT59: 4.601635139 | AU59: 0 | AV59: 8.295339351 | AW59: 6.419951293 | AY59: 0.57879817 | AZ59: 15.79443704 | BA59: 0.1036893445 | BB59: 9.450765748 | BC59: 0 | BD59: 6.120409966 | BE59: 0.004368976627 | BF59: 0 | BG59: 0 | BH59: 0 | BI59: 0 | BL59: to kill
A60: ἀπόλλυμι | B60: 5 | C60: 1 | D60: 2 | E60: 0 | F60: 1 | G60: 0 | H60: 0 | I60: 2 | J60: 0 | K60: 0 | L60: 1 | M60: 1 | N60: 0 | O60: 0 | P60: 2 | Q60: 2 | R60: 4 | S60: 7 | T60: 12 | V60: 35 | W60: 0.001437371663 | Y60: 5 | Z60: 1 | AB60: 2.145995893 | AC60: 0.04435769924 | AD60: -3.115468983 | AF60: 1.360984503 | AG60: 2.007703023 | AH60: 0.03650747313 | AI60: -3.310238296 | AJ60: -0.1947693128 | AK60: 4.459743846 | AP60: 012 | AQ60: =_xlfn.CHISQ.DIST.RT(AQ61/$AO$49,1) -> 1 | AR60: =_xlfn.CHISQ.DIST.RT(AR61/$AO$49,1) -> 1 | AS60: =_xlfn.CHISQ.DIST.RT(AS61/$AO$49,1) ->  | AT60: =_xlfn.CHISQ.DIST.RT(AT61/$AO$49,1) -> 0.8397501064 | AU60: =_xlfn.CHISQ.DIST.RT(AU61/$AO$49,1) -> 1 | AV60: =_xlfn.CHISQ.DIST.RT(AV61/$AO$49,1) -> 0.9461224504 | AW60: =_xlfn.CHISQ.DIST.RT(AW61/$AO$49,1) -> 0.4116684416 | AX60: =_xlfn.CHISQ.DIST.RT(AX61/$AO$49,1) -> 0.5794234498 | AY60: =_xlfn.CHISQ.DIST.RT(AY61/$AO$49,1) ->  | AZ60: =_xlfn.CHISQ.DIST.RT(AZ61/$AO$49,1) -> 0.4998256432 | BA60: =_xlfn.CHISQ.DIST.RT(BA61/$AO$49,1) -> 1 | BB60: =_xlfn.CHISQ.DIST.RT(BB61/$AO$49,1) -> 0.917492509 | BC60: =_xlfn.CHISQ.DIST.RT(BC61/$AO$49,1) -> 0.6075886691 | BD60: =_xlfn.CHISQ.DIST.RT(BD61/$AO$49,1) -> 0.8328544406 | BE60: =_xlfn.CHISQ.DIST.RT(BE61/$AO$49,1) -> 1 | BF60: =_xlfn.CHISQ.DIST.RT(BF61/$AO$49,1) -> 1 | BG60: =_xlfn.CHISQ.DIST.RT(BG61/$AO$49,1) -> 1 | BH60: =_xlfn.CHISQ.DIST.RT(BH61/$AO$49,1) -> 1 | BI60: =_xlfn.CHISQ.DIST.RT(BI61/$AO$49,1) -> 0.01190084151 | BL60: to destroy, lose
A61: ἀπολύω | B61: 2 | C61: 0 | D61: 2 | E61: 0 | F61: 0 | G61: 1 | H61: 0 | I61: 0 | J61: 1 | K61: 0 | L61: 8 | M61: 0 | N61: 3 | O61: 1 | P61: 2 | Q61: 0 | R61: 2 | S61: 4 | T61: 4 | V61: 28 | W61: 0.001149897331 | Y61: 2 | Z61: 8 | AB61: 1.716796715 | AC61: 0.2647356398 | AD61: -1.329023537 | AF61: 10.88787603 | AG61: 3.332435543 | AH61: 0.1982600231 | AI61: -1.618175862 | AJ61: -0.289152325 | AK61: 0.5327588348 | AQ61: =_xlfn.CHISQ.INV.RT(AQ20,1) -> 0 | AR61: 0 | AT61: 0.08873162819 | AU61: 0 | AV61: 0.009909601012 | AW61: 1.462530271 | AX61: 0.6665538064 | AZ61: 0.9880153434 | BA61: 0 | BB61: 0.02328728187 | BC61: 0.5722317255 | BD61: 0.09664910235 | BE61: 0 | BF61: 0 | BG61: 0 | BH61: 0 | BI61: 13.72651322 | BL61: to release, dismiss
A62: ἀποστέλλω | B62: 4 | C62: 1 | D62: 1 | E62: 0 | F62: 3 | G62: 2 | H62: 5 | I62: 0 | J62: 1 | K62: 1 | L62: 1 | M62: 1 | N62: 1 | O62: 3 | P62: 6 | Q62: 1 | R62: 0 | S62: 5 | T62: 12 | V62: 44 | W62: 0.00180698152 | Y62: 4 | Z62: 1 | AB62: 2.697823409 | AC62: 0.1486596183 | AD62: -1.906096027 | AF62: 1.360984503 | AG62: 2.462316903 | AH62: 0.1305551175 | AI62: -2.035959785 | AJ62: -0.1298637575 | AK62: 0.9602619812 | AP62: 021 | AQ62: =_xlfn.CHISQ.DIST.RT(AQ63/$AO$49,1) -> 1 | AR62: =_xlfn.CHISQ.DIST.RT(AR63/$AO$49,1) -> 0.6394980942 | AS62: =_xlfn.CHISQ.DIST.RT(AS63/$AO$49,1) -> 0.5884668829 | AT62: =_xlfn.CHISQ.DIST.RT(AT63/$AO$49,1) -> 0.7967429761 | AU62: =_xlfn.CHISQ.DIST.RT(AU63/$AO$49,1) -> 0.002361576988 | AV62: =_xlfn.CHISQ.DIST.RT(AV63/$AO$49,1) -> 0.04534147098 | AW62: =_xlfn.CHISQ.DIST.RT(AW63/$AO$49,1) ->  | AX62: =_xlfn.CHISQ.DIST.RT(AX63/$AO$49,1) -> 0.008112632046 | AY62: =_xlfn.CHISQ.DIST.RT(AY63/$AO$49,1) -> 0.4224633638 | AZ62: =_xlfn.CHISQ.DIST.RT(AZ63/$AO$49,1) ->  | BA62: =_xlfn.CHISQ.DIST.RT(BA63/$AO$49,1) -> 1 | BB62: =_xlfn.CHISQ.DIST.RT(BB63/$AO$49,1) -> 0.0007673244043 | BC62: =_xlfn.CHISQ.DIST.RT(BC63/$AO$49,1) -> 0.9085790835 | BD62: =_xlfn.CHISQ.DIST.RT(BD63/$AO$49,1) -> 0.0002820746354 | BE62: =_xlfn.CHISQ.DIST.RT(BE63/$AO$49,1) -> 1 | BF62: =_xlfn.CHISQ.DIST.RT(BF63/$AO$49,1) -> 1 | BG62: =_xlfn.CHISQ.DIST.RT(BG63/$AO$49,1) -> 1 | BH62: =_xlfn.CHISQ.DIST.RT(BH63/$AO$49,1) -> 1 | BI62: =_xlfn.CHISQ.DIST.RT(BI63/$AO$49,1) -> 1 | BL62: to send
A63: ἀπόστολος | B63: 0 | C63: 1 | D63: 1 | E63: 0 | F63: 0 | G63: 1 | H63: 0 | I63: 1 | J63: 0 | K63: 0 | L63: 0 | M63: 0 | N63: 0 | O63: 0 | P63: 0 | Q63: 0 | R63: 1 | S63: 0 | T63: 2 | V63: 7 | W63: 0.0002874743326 | Y63: 0 | Z63: 0 | AB63: 0.4291991786 | AC63: 0.6510302449 | AD63: -0.4291991786 | AF63: 0 | AG63: 0.3535885733 | AH63: 0.7021637969 | AI63: -0.3535885733 | AJ63: 0.07561060533 | AQ63: =_xlfn.CHISQ.INV.RT(AQ22,1) -> 0 | AR63: 0.4760962224 | AS63: 0.6352564217 | AT63: 0.143956732 | AU63: 20.06134034 | AV63: 8.692787899 | AX63: 15.20831569 | AY63: 1.396291873 | BA63: 0 | BB63: 24.56147257 | BC63: 0.02861396005 | BD63: 28.61323987 | BE63: 0 | BF63: 0 | BG63: 0 | BH63: 0 | BI63: 0 | BL63: apostle, messenger
A64: ἅπτω | B64: 2 | C64: 2 | D64: 0 | E64: 0 | F64: 0 | G64: 2 | H64: 0 | I64: 2 | J64: 2 | K64: 0 | L64: 3 | M64: 0 | N64: 0 | O64: 2 | P64: 0 | Q64: 0 | R64: 1 | S64: 2 | T64: 4 | V64: 20 | W64: 0.0008213552361 | Y64: 2 | Z64: 3 | AB64: 1.226283368 | AC64: 0.220588862 | AD64: -1.511454663 | AF64: 4.08295351 | AG64: 1.729533535 | AH64: 0.2652779229 | AI64: -1.326977237 | AJ64: 0.1844774259 | AK64: 0.04229586012 | AP64: 220 | AQ64: =_xlfn.CHISQ.DIST.RT(AQ65/$AO$49,1) -> 1.119442206e-06 | AR64: =_xlfn.CHISQ.DIST.RT(AR65/$AO$49,1) -> 1 | AS64: =_xlfn.CHISQ.DIST.RT(AS65/$AO$49,1) -> 1 | AT64: =_xlfn.CHISQ.DIST.RT(AT65/$AO$49,1) -> 1 | AU64: =_xlfn.CHISQ.DIST.RT(AU65/$AO$49,1) -> 3.699822393e-06 | AV64: =_xlfn.CHISQ.DIST.RT(AV65/$AO$49,1) -> 0.8050001684 | AW64: =_xlfn.CHISQ.DIST.RT(AW65/$AO$49,1) -> 0.09443434924 | AX64: =_xlfn.CHISQ.DIST.RT(AX65/$AO$49,1) -> 0.668565145 | AY64: =_xlfn.CHISQ.DIST.RT(AY65/$AO$49,1) -> 1 | AZ64: =_xlfn.CHISQ.DIST.RT(AZ65/$AO$49,1) -> 1 | BA64: =_xlfn.CHISQ.DIST.RT(BA65/$AO$49,1) ->  | BB64: =_xlfn.CHISQ.DIST.RT(BB65/$AO$49,1) -> 0.01341213453 | BC64: =_xlfn.CHISQ.DIST.RT(BC65/$AO$49,1) -> 0.3419422292 | BD64: =_xlfn.CHISQ.DIST.RT(BD65/$AO$49,1) -> 0.01153182599 | BE64: =_xlfn.CHISQ.DIST.RT(BE65/$AO$49,1) -> 0.8921557535 | BF64: =_xlfn.CHISQ.DIST.RT(BF65/$AO$49,1) -> 1 | BG64: =_xlfn.CHISQ.DIST.RT(BG65/$AO$49,1) -> 1 | BH64: =_xlfn.CHISQ.DIST.RT(BH65/$AO$49,1) -> 1 | BI64: =_xlfn.CHISQ.DIST.RT(BI65/$AO$49,1) -> 1 | BL64: to touch, kindle
A65: ἄρα | B65: 0 | C65: 3 | D65: 1 | E65: 0 | F65: 0 | G65: 1 | H65: 0 | I65: 0 | J65: 0 | K65: 0 | L65: 0 | M65: 1 | N65: 0 | O65: 0 | P65: 2 | Q65: 0 | R65: 1 | S65: 2 | T65: 1 | V65: 12 | W65: 0.0004928131417 | Y65: 0 | Z65: 0 | AB65: 0.7357700205 | AC65: 0.479136372 | AD65: -0.7357700205 | AF65: 0 | AG65: 0.60615184 | AH65: 0.5454457984 | AI65: -0.60615184 | AJ65: 0.1296181806 | AQ65: =_xlfn.CHISQ.INV.RT(AQ24,1) -> 51.4527458 | AR65: 0 | AS65: 0 | AT65: 0 | AU65: 46.4692452 | AV65: 0.1322622065 | AW65: 6.069729931 | AX65: 0.3977286698 | AY65: 0 | AZ65: 0 | BB65: 13.2672062 | BC65: 1.959805076 | BD65: 13.84777725 | BE65: 0.03988698863 | BF65: 0 | BG65: 0 | BH65: 0 | BI65: 0 | BL65: then, therefore
A66: ἀργύριον | B66: 1 | C66: 0 | D66: 1 | E66: 0 | F66: 0 | G66: 0 | H66: 0 | I66: 0 | J66: 0 | K66: 0 | L66: 0 | M66: 0 | N66: 0 | O66: 0 | P66: 1 | Q66: 0 | R66: 1 | S66: 7 | T66: 0 | V66: 10 | W66: 0.0004106776181 | Y66: 1 | Z66: 0 | AB66: 0.6131416838 | AC66: 0.3321060539 | AD66: -1.102300922 | AF66: 0 | AG66: 0.5051265333 | AH66: 0.3048081083 | AI66: -1.188072853 | AJ66: -0.08577193165 | AP66: 120 | AQ66: =_xlfn.CHISQ.DIST.RT(AQ67/$AO$49,1) -> 0.7377937336 | AR66: =_xlfn.CHISQ.DIST.RT(AR67/$AO$49,1) -> 1 | AS66: =_xlfn.CHISQ.DIST.RT(AS67/$AO$49,1) -> 1 | AT66: =_xlfn.CHISQ.DIST.RT(AT67/$AO$49,1) -> 1 | AU66: =_xlfn.CHISQ.DIST.RT(AU67/$AO$49,1) -> 0.01531893479 | AV66: =_xlfn.CHISQ.DIST.RT(AV67/$AO$49,1) -> 0.0006991753313 | AW66: =_xlfn.CHISQ.DIST.RT(AW67/$AO$49,1) ->  | AX66: =_xlfn.CHISQ.DIST.RT(AX67/$AO$49,1) -> 0.02445599009 | AY66: =_xlfn.CHISQ.DIST.RT(AY67/$AO$49,1) -> 0.9017376018 | AZ66: =_xlfn.CHISQ.DIST.RT(AZ67/$AO$49,1) -> 8.47202867e-05 | BA66: =_xlfn.CHISQ.DIST.RT(BA67/$AO$49,1) -> 0.01069623642 | BB66: =_xlfn.CHISQ.DIST.RT(BB67/$AO$49,1) ->  | BC66: =_xlfn.CHISQ.DIST.RT(BC67/$AO$49,1) -> 1 | BD66: =_xlfn.CHISQ.DIST.RT(BD67/$AO$49,1) -> 3.110870685e-05 | BE66: =_xlfn.CHISQ.DIST.RT(BE67/$AO$49,1) -> 1 | BF66: =_xlfn.CHISQ.DIST.RT(BF67/$AO$49,1) -> 1 | BG66: =_xlfn.CHISQ.DIST.RT(BG67/$AO$49,1) -> 1 | BH66: =_xlfn.CHISQ.DIST.RT(BH67/$AO$49,1) -> 1 | BI66: =_xlfn.CHISQ.DIST.RT(BI67/$AO$49,1) -> 1 | BL66: silver, money
A67: ἀρνέομαι | B67: 1 | C67: 0 | D67: 1 | E67: 0 | F67: 1 | G67: 0 | H67: 0 | I67: 0 | J67: 1 | K67: 0 | L67: 0 | M67: 0 | N67: 0 | O67: 0 | P67: 1 | Q67: 1 | R67: 0 | S67: 0 | T67: 0 | V67: =SUM(B67:T67)-Y67 -> 5 | W67: =V67/V$811 -> 0.000205338809 | Y67: 1 | Z67: 0 | AB67: =W67*Y$811 -> 0.3065708419 | AC67: =EXP(-AB67)*(AB67)^Y67/FACT(Y67) -> 0.2256258324 | AD67: =LN(AC67) -> -1.48887726 | AF67: =Z67*Y$811/Z$811 -> 0 | AG67: =AB67*$AM$3+(1-$AM$3)*AF67 -> 0.2525632667 | AH67: =EXP(-AG67)*(AG67)^Y67/FACT(Y67) -> 0.19619293 | AI67: =LN(AH67) -> -1.628656767 | AJ67: =AI67-AD67 -> -0.1397795069 | AQ67: =_xlfn.CHISQ.INV.RT(AQ26,1) -> 0.2432033256 | AR67: 0 | AS67: 0 | AT67: 0 | AU67: 12.75832453 | AV67: 24.93641981 | AX67: 10.98454147 | AY67: 0.033079496 | AZ67: 33.52633814 | BA67: 14.13776494 | BC67: 0 | BD67: 37.64699638 | BE67: 0 | BF67: 0 | BG67: 0 | BH67: 0 | BI67: 0 | BL67: to deny
A68: ἄρτος | B68: 0 | C68: 3 | D68: 0 | E68: 0 | F68: 0 | G68: 0 | H68: 0 | I68: 0 | J68: 0 | K68: 0 | L68: 0 | M68: 0 | N68: 0 | O68: 0 | P68: 0 | Q68: 2 | R68: 0 | S68: 2 | T68: 0 | V68: 7 | W68: 0.0002874743326 | Y68: 0 | Z68: 0 | AB68: 0.4291991786 | AC68: 0.6510302449 | AD68: -0.4291991786 | AF68: 0 | AG68: 0.3535885733 | AH68: 0.7021637969 | AI68: -0.3535885733 | AJ68: 0.07561060533 | AK68: =IF(AG68>1,((Y68-AG68)^2)/AG68,"") ->  | AP68: 210 | AQ68: =_xlfn.CHISQ.DIST.RT(AQ69/$AO$49,1) -> 1 | AR68: =_xlfn.CHISQ.DIST.RT(AR69/$AO$49,1) -> 5.614636933e-07 | AS68: =_xlfn.CHISQ.DIST.RT(AS69/$AO$49,1) -> 0.7359603984 | AT68: =_xlfn.CHISQ.DIST.RT(AT69/$AO$49,1) -> 1.993273416e-05 | AU68: =_xlfn.CHISQ.DIST.RT(AU69/$AO$49,1) -> 0.131724064 | AV68: =_xlfn.CHISQ.DIST.RT(AV69/$AO$49,1) -> 1 | AW68: =_xlfn.CHISQ.DIST.RT(AW69/$AO$49,1) -> 0.9766659024 | AX68: =_xlfn.CHISQ.DIST.RT(AX69/$AO$49,1) -> 0.6503568006 | AY68: =_xlfn.CHISQ.DIST.RT(AY69/$AO$49,1) -> 0.4871068949 | AZ68: =_xlfn.CHISQ.DIST.RT(AZ69/$AO$49,1) -> 0.9764602358 | BA68: =_xlfn.CHISQ.DIST.RT(BA69/$AO$49,1) -> 0.6123717 | BB68: =_xlfn.CHISQ.DIST.RT(BB69/$AO$49,1) -> 1 | BC68: =_xlfn.CHISQ.DIST.RT(BC69/$AO$49,1) ->  | BD68: =_xlfn.CHISQ.DIST.RT(BD69/$AO$49,1) -> 1 | BE68: =_xlfn.CHISQ.DIST.RT(BE69/$AO$49,1) -> 1 | BF68: =_xlfn.CHISQ.DIST.RT(BF69/$AO$49,1) -> 0.1866168312 | BG68: =_xlfn.CHISQ.DIST.RT(BG69/$AO$49,1) -> 1 | BH68: =_xlfn.CHISQ.DIST.RT(BH69/$AO$49,1) -> 0.5276554404 | BI68: =_xlfn.CHISQ.DIST.RT(BI69/$AO$49,1) -> 1 | BL68: bread, loaf
A69: ἀρχή | B69: 0 | C69: 0 | D69: 1 | E69: 0 | F69: 1 | G69: 0 | H69: 0 | I69: 0 | J69: 0 | K69: 0 | L69: 2 | M69: 0 | N69: 1 | O69: 1 | P69: 0 | Q69: 0 | R69: 1 | S69: 0 | T69: 1 | V69: 8 | W69: 0.0003285420945 | Y69: 0 | Z69: 2 | AB69: 0.490513347 | AC69: 0.612311985 | AD69: -0.490513347 | AF69: 2.721969006 | AG69: 0.8836215392 | AH69: 0.4132834759 | AI69: -0.8836215392 | AJ69: -0.3931081921 | AQ69: =_xlfn.CHISQ.INV.RT(AQ28,1) -> 0 | AR69: 54.3373107 | AS69: 0.2467484748 | AT69: 39.48469015 | AU69: 4.930386665 | AV69: 0 | AW69: 0.001856459476 | AX69: 0.4458277698 | AY69: 1.047915949 | AZ69: 0.001889338871 | BA69: 0.5571164518 | BB69: 0 | BD69: 0 | BE69: 0 | BF69: 3.784754316 | BG69: 0 | BH69: 0.8656232731 | BI69: 0 | BL69: beginning, ruler
A70: ἀρχιερεύς | B70: 6 | C70: 2 | D70: 2 | E70: 0 | F70: 8 | G70: 1 | H70: 1 | I70: 1 | J70: 0 | K70: 0 | L70: 3 | M70: 2 | N70: 0 | O70: 0 | P70: 0 | Q70: 0 | R70: 0 | S70: 6 | T70: 5 | V70: 31 | W70: 0.001273100616 | Y70: 6 | Z70: 3 | AB70: 1.90073922 | AC70: 0.00978863568 | AD70: -4.626533191 | AF70: 4.08295351 | AG70: 2.285172722 | AH70: 0.02012536603 | AI70: -3.905774268 | AJ70: 0.7207589225 | AK70: 6.038905319 | AP70: 020 | AQ70: =_xlfn.CHISQ.DIST.RT(AQ71/$AO$49,1) -> 1 | AR70: =_xlfn.CHISQ.DIST.RT(AR71/$AO$49,1) -> 1 | AS70: =_xlfn.CHISQ.DIST.RT(AS71/$AO$49,1) -> 1 | AT70: =_xlfn.CHISQ.DIST.RT(AT71/$AO$49,1) -> 1 | AU70: =_xlfn.CHISQ.DIST.RT(AU71/$AO$49,1) -> 0.009641760234 | AV70: =_xlfn.CHISQ.DIST.RT(AV71/$AO$49,1) -> 1 | AW70: =_xlfn.CHISQ.DIST.RT(AW71/$AO$49,1) -> 0.0006272003075 | AX70: =_xlfn.CHISQ.DIST.RT(AX71/$AO$49,1) -> 0.1208566427 | AY70: =_xlfn.CHISQ.DIST.RT(AY71/$AO$49,1) -> 0.9056904723 | AZ70: =_xlfn.CHISQ.DIST.RT(AZ71/$AO$49,1) -> 0.0008836307108 | BA70: =_xlfn.CHISQ.DIST.RT(BA71/$AO$49,1) -> 0.02658741942 | BB70: =_xlfn.CHISQ.DIST.RT(BB71/$AO$49,1) -> 0.0002415410298 | BC70: =_xlfn.CHISQ.DIST.RT(BC71/$AO$49,1) -> 1 | BD70: =_xlfn.CHISQ.DIST.RT(BD71/$AO$49,1) ->  | BE70: =_xlfn.CHISQ.DIST.RT(BE71/$AO$49,1) -> 0.2309645974 | BF70: =_xlfn.CHISQ.DIST.RT(BF71/$AO$49,1) -> 1 | BG70: =_xlfn.CHISQ.DIST.RT(BG71/$AO$49,1) -> 0.4837489469 | BH70: =_xlfn.CHISQ.DIST.RT(BH71/$AO$49,1) -> 1 | BI70: =_xlfn.CHISQ.DIST.RT(BI71/$AO$49,1) -> 1 | BL70: high priest
A71: ἄρχω | B71: 1 | C71: 1 | D71: 5 | E71: 0 | F71: 3 | G71: 2 | H71: 11 | I71: 0 | J71: 0 | K71: 2 | L71: 2 | M71: 6 | N71: 0 | O71: 0 | P71: 2 | Q71: 0 | R71: 4 | S71: 4 | T71: 17 | V71: 59 | W71: 0.002422997947 | Y71: 1 | Z71: 2 | AB71: 3.617535934 | AC71: 0.09712632566 | AD71: -2.331742821 | AF71: 2.721969006 | AG71: 3.459766859 | AH71: 0.1087650036 | AI71: -2.218565654 | AJ71: 0.1131771674 | AK71: 1.748803676 | AQ71: =_xlfn.CHISQ.INV.RT(AQ30,1) -> 0 | AR71: 0 | AS71: 0 | AT71: 0 | AU71: 14.53881175 | AV71: 0 | AW71: 25.37481645 | AX71: 5.22141958 | AY71: 0.03045936547 | AZ71: 23.99323083 | BA71: 10.67076939 | BB71: 29.24449319 | BC71: 0 | BE71: 3.113757303 | BF71: 0 | BG71: 1.064167908 | BH71: 0 | BI71: 0 | BL71: to rule, begin
A72: ἄρχων | B72: 0 | C72: 2 | D72: 2 | E72: 1 | F72: 0 | G72: 0 | H72: 0 | I72: 0 | J72: 0 | K72: 0 | L72: 0 | M72: 0 | N72: 0 | O72: 1 | P72: 1 | Q72: 0 | R72: 1 | S72: 1 | T72: 3 | V72: 12 | W72: 0.0004928131417 | Y72: 0 | Z72: 0 | AB72: 0.7357700205 | AC72: 0.479136372 | AD72: -0.7357700205 | AF72: 0 | AG72: 0.60615184 | AH72: 0.5454457984 | AI72: -0.60615184 | AJ72: 0.1296181806 | AP72: 202 | AQ72: =_xlfn.CHISQ.DIST.RT(AQ73/$AO$49,1) -> 0.7361209003 | AR72: =_xlfn.CHISQ.DIST.RT(AR73/$AO$49,1) -> 1 | AS72: =_xlfn.CHISQ.DIST.RT(AS73/$AO$49,1) -> 1 | AT72: =_xlfn.CHISQ.DIST.RT(AT73/$AO$49,1) -> 1 | AU72: =_xlfn.CHISQ.DIST.RT(AU73/$AO$49,1) -> 1 | AV72: =_xlfn.CHISQ.DIST.RT(AV73/$AO$49,1) -> 1 | AW72: =_xlfn.CHISQ.DIST.RT(AW73/$AO$49,1) -> 1 | AX72: =_xlfn.CHISQ.DIST.RT(AX73/$AO$49,1) -> 0.871060414 | AY72: =_xlfn.CHISQ.DIST.RT(AY73/$AO$49,1) -> 1 | AZ72: =_xlfn.CHISQ.DIST.RT(AZ73/$AO$49,1) -> 1 | BA72: =_xlfn.CHISQ.DIST.RT(BA73/$AO$49,1) -> 0.5479553537 | BB72: =_xlfn.CHISQ.DIST.RT(BB73/$AO$49,1) -> 1 | BC72: =_xlfn.CHISQ.DIST.RT(BC73/$AO$49,1) -> 0.6978710709 | BD72: =_xlfn.CHISQ.DIST.RT(BD73/$AO$49,1) -> 0.04166802786 | BE72: =_xlfn.CHISQ.DIST.RT(BE73/$AO$49,1) ->  | BF72: =_xlfn.CHISQ.DIST.RT(BF73/$AO$49,1) -> 2.388004122e-05 | BG72: =_xlfn.CHISQ.DIST.RT(BG73/$AO$49,1) -> 0.0001524984988 | BH72: =_xlfn.CHISQ.DIST.RT(BH73/$AO$49,1) ->  | BI72: =_xlfn.CHISQ.DIST.RT(BI73/$AO$49,1) -> 1 | BL72: ruler
A73: ἀσθένεια | B73: 0 | C73: 0 | D73: 0 | E73: 0 | F73: 0 | G73: 0 | H73: 0 | I73: 0 | J73: 1 | K73: 0 | L73: 0 | M73: 0 | N73: 0 | O73: 0 | P73: 0 | Q73: 0 | R73: 0 | S73: 1 | T73: 3 | V73: 5 | W73: 0.000205338809 | Y73: 0 | Z73: 0 | AB73: 0.3065708419 | AC73: 0.7359663791 | AD73: -0.3065708419 | AF73: 0 | AG73: 0.2525632667 | AH73: 0.7768070653 | AI73: -0.2525632667 | AJ73: 0.05400757524 | AQ73: =_xlfn.CHISQ.INV.RT(AQ32,1) -> 0.2464369689 | AR73: 0 | AS73: 0 | AT73: 0 | AU73: 0 | AV73: 0 | AW73: 0 | AX73: 0.0571688298 | AY73: 0 | AZ73: 0 | BA73: 0.7833544642 | BB73: 0 | BC73: 0.3270104344 | BD73: 9.002544387 | BF73: 38.73828275 | BG73: 31.12019742 | BI73: 0 | BL73: weakness, sickness
A74: ἀσθενέω | B74: 0 | C74: 0 | D74: 1 | E74: 0 | F74: 0 | G74: 0 | H74: 0 | I74: 0 | J74: 0 | K74: 0 | L74: 0 | M74: 1 | N74: 0 | O74: 0 | P74: 0 | Q74: 1 | R74: 0 | S74: 2 | T74: 0 | V74: 5 | W74: 0.000205338809 | Y74: 0 | Z74: 0 | AB74: 0.3065708419 | AC74: 0.7359663791 | AD74: -0.3065708419 | AF74: 0 | AG74: 0.2525632667 | AH74: 0.7768070653 | AI74: -0.2525632667 | AJ74: 0.05400757524 | AP74: 201 | AQ74: =_xlfn.CHISQ.DIST.RT(AQ75/$AO$49,1) -> 1 | AR74: =_xlfn.CHISQ.DIST.RT(AR75/$AO$49,1) -> 0.148091395 | AS74: =_xlfn.CHISQ.DIST.RT(AS75/$AO$49,1) -> 1 | AT74: =_xlfn.CHISQ.DIST.RT(AT75/$AO$49,1) -> 1 | AU74: =_xlfn.CHISQ.DIST.RT(AU75/$AO$49,1) -> 1 | AV74: =_xlfn.CHISQ.DIST.RT(AV75/$AO$49,1) -> 1 | AW74: =_xlfn.CHISQ.DIST.RT(AW75/$AO$49,1) -> 1 | AX74: =_xlfn.CHISQ.DIST.RT(AX75/$AO$49,1) -> 1 | AY74: =_xlfn.CHISQ.DIST.RT(AY75/$AO$49,1) -> 1 | AZ74: =_xlfn.CHISQ.DIST.RT(AZ75/$AO$49,1) -> 1 | BA74: =_xlfn.CHISQ.DIST.RT(BA75/$AO$49,1) -> 1 | BB74: =_xlfn.CHISQ.DIST.RT(BB75/$AO$49,1) -> 1 | BC74: =_xlfn.CHISQ.DIST.RT(BC75/$AO$49,1) -> 0.2475907164 | BD74: =_xlfn.CHISQ.DIST.RT(BD75/$AO$49,1) -> 1 | BE74: =_xlfn.CHISQ.DIST.RT(BE75/$AO$49,1) -> 9.235118325e-05 | BF74: =_xlfn.CHISQ.DIST.RT(BF75/$AO$49,1) ->  | BG74: =_xlfn.CHISQ.DIST.RT(BG75/$AO$49,1) -> 1 | BH74: =_xlfn.CHISQ.DIST.RT(BH75/$AO$49,1) ->  | BI74: =_xlfn.CHISQ.DIST.RT(BI75/$AO$49,1) -> 1 | BL74: to be weak, sick
A75: ἀσθενής | B75: 0 | C75: 0 | D75: 1 | E75: 0 | F75: 1 | G75: 0 | H75: 0 | I75: 0 | J75: 0 | K75: 0 | L75: 0 | M75: 0 | N75: 0 | O75: 0 | P75: 0 | Q75: 0 | R75: 1 | S75: 2 | T75: 0 | V75: 5 | W75: 0.000205338809 | Y75: 0 | Z75: 0 | AB75: 0.3065708419 | AC75: 0.7359663791 | AD75: -0.3065708419 | AF75: 0 | AG75: 0.2525632667 | AH75: 0.7768070653 | AI75: -0.2525632667 | AJ75: 0.05400757524 | AQ75: =_xlfn.CHISQ.INV.RT(AQ34,1) -> 0 | AR75: 4.539208238 | AS75: 0 | AT75: 0 | AU75: 0 | AV75: 0 | AW75: 0 | AX75: 0 | AY75: 0 | AZ75: 0 | BA75: 0 | BB75: 0 | BC75: 2.900958677 | BD75: 0 | BE75: 33.17273234 | BG75: 0 | BI75: 0 | BL75: weak, sick
A76: ἀσπάζομαι | B76: 0 | C76: 0 | D76: 0 | E76: 0 | F76: 0 | G76: 0 | H76: 0 | I76: 0 | J76: 0 | K76: 1 | L76: 0 | M76: 1 | N76: 0 | O76: 0 | P76: 0 | Q76: 2 | R76: 1 | S76: 0 | T76: 1 | V76: 6 | W76: 0.0002464065708 | Y76: 0 | Z76: 0 | AB76: 0.3678850103 | AC76: 0.6921967726 | AD76: -0.3678850103 | AF76: 0 | AG76: 0.30307592 | AH76: 0.7385430241 | AI76: -0.30307592 | AJ76: 0.06480909029 | AP76: 102 | AQ76: =_xlfn.CHISQ.DIST.RT(AQ77/$AO$49,1) -> 1 | AR76: =_xlfn.CHISQ.DIST.RT(AR77/$AO$49,1) -> 1 | AS76: =_xlfn.CHISQ.DIST.RT(AS77/$AO$49,1) -> 0.1252373697 | AT76: =_xlfn.CHISQ.DIST.RT(AT77/$AO$49,1) -> 0.2210058556 | AU76: =_xlfn.CHISQ.DIST.RT(AU77/$AO$49,1) -> 1 | AV76: =_xlfn.CHISQ.DIST.RT(AV77/$AO$49,1) -> 1 | AW76: =_xlfn.CHISQ.DIST.RT(AW77/$AO$49,1) -> 1 | AX76: =_xlfn.CHISQ.DIST.RT(AX77/$AO$49,1) -> 1 | AY76: =_xlfn.CHISQ.DIST.RT(AY77/$AO$49,1) -> 1 | AZ76: =_xlfn.CHISQ.DIST.RT(AZ77/$AO$49,1) -> 1 | BA76: =_xlfn.CHISQ.DIST.RT(BA77/$AO$49,1) -> 1 | BB76: =_xlfn.CHISQ.DIST.RT(BB77/$AO$49,1) -> 1 | BC76: =_xlfn.CHISQ.DIST.RT(BC77/$AO$49,1) -> 1 | BD76: =_xlfn.CHISQ.DIST.RT(BD77/$AO$49,1) -> 0.4949836204 | BE76: =_xlfn.CHISQ.DIST.RT(BE77/$AO$49,1) -> 0.001143297827 | BF76: =_xlfn.CHISQ.DIST.RT(BF77/$AO$49,1) -> 1 | BG76: =_xlfn.CHISQ.DIST.RT(BG77/$AO$49,1) ->  | BH76: =_xlfn.CHISQ.DIST.RT(BH77/$AO$49,1) -> 1 | BI76: =_xlfn.CHISQ.DIST.RT(BI77/$AO$49,1) -> 7.891485156e-05 | BL76: to greet
A77: ἀσπασμός | B77: 0 | C77: 0 | D77: 0 | E77: 0 | F77: 0 | G77: 1 | H77: 0 | I77: 0 | J77: 0 | K77: 0 | L77: 0 | M77: 0 | N77: 0 | O77: 0 | P77: 1 | Q77: 0 | R77: 0 | S77: 0 | T77: 3 | V77: 5 | W77: 0.000205338809 | Y77: 0 | Z77: 0 | AB77: 0.3065708419 | AC77: 0.7359663791 | AD77: -0.3065708419 | AF77: 0 | AG77: 0.2525632667 | AH77: 0.7768070653 | AI77: -0.2525632667 | AJ77: 0.05400757524 | AQ77: =_xlfn.CHISQ.INV.RT(AQ36,1) -> 0 | AR77: 0 | AS77: 5.100732512 | AT77: 3.250286853 | AU77: 0 | AV77: 0 | AW77: 0 | AX77: 0 | AY77: 0 | AZ77: 0 | BA77: 0 | BB77: 0 | BC77: 0 | BD77: 1.010514789 | BE77: 22.9581746 | BF77: 0 | BH77: 0 | BI77: 33.81752621 | BL77: greeting
A78: αὐλή | B78: 1 | C78: 1 | D78: 1 | E78: 0 | F78: 0 | G78: 0 | H78: 0 | I78: 0 | J78: 0 | K78: 0 | L78: 1 | M78: 1 | N78: 0 | O78: 0 | P78: 0 | Q78: 0 | R78: 0 | S78: 0 | T78: 0 | V78: 4 | W78: 0.0001642710472 | Y78: 1 | Z78: 1 | AB78: 0.2452566735 | AC78: 0.1919142458 | AD78: -1.650706643 | AF78: 1.360984503 | AG78: 0.4418107696 | AH78: 0.2840274526 | AI78: -1.258684381 | AJ78: 0.3920222621 | AP78: 200 | AQ78: =_xlfn.CHISQ.DIST.RT(AQ79/$AO$49,1) -> 0.2419517104 | AR78: =_xlfn.CHISQ.DIST.RT(AR79/$AO$49,1) -> 2.656966098e-05 | AS78: =_xlfn.CHISQ.DIST.RT(AS79/$AO$49,1) -> 1 | AT78: =_xlfn.CHISQ.DIST.RT(AT79/$AO$49,1) -> 1 | AU78: =_xlfn.CHISQ.DIST.RT(AU79/$AO$49,1) -> 1 | AV78: =_xlfn.CHISQ.DIST.RT(AV79/$AO$49,1) -> 1 | AW78: =_xlfn.CHISQ.DIST.RT(AW79/$AO$49,1) -> 1 | AX78: =_xlfn.CHISQ.DIST.RT(AX79/$AO$49,1) -> 1 | AY78: =_xlfn.CHISQ.DIST.RT(AY79/$AO$49,1) -> 1 | AZ78: =_xlfn.CHISQ.DIST.RT(AZ79/$AO$49,1) -> 1 | BA78: =_xlfn.CHISQ.DIST.RT(BA79/$AO$49,1) -> 1 | BB78: =_xlfn.CHISQ.DIST.RT(BB79/$AO$49,1) -> 1 | BC78: =_xlfn.CHISQ.DIST.RT(BC79/$AO$49,1) -> 0.1862143915 | BD78: =_xlfn.CHISQ.DIST.RT(BD79/$AO$49,1) -> 1 | BE78: =_xlfn.CHISQ.DIST.RT(BE79/$AO$49,1) ->  | BF78: =_xlfn.CHISQ.DIST.RT(BF79/$AO$49,1) ->  | BG78: =_xlfn.CHISQ.DIST.RT(BG79/$AO$49,1) -> 0.7951413934 | BH78: =_xlfn.CHISQ.DIST.RT(BH79/$AO$49,1) ->  | BI78: =_xlfn.CHISQ.DIST.RT(BI79/$AO$49,1) -> 1 | BL78: courtyard
A79: αὐξάνω, αὐξω | B79: 0 | C79: 0 | D79: 0 | E79: 0 | F79: 0 | G79: 0 | H79: 1 | I79: 0 | J79: 0 | K79: 0 | L79: 0 | M79: 0 | N79: 0 | O79: 0 | P79: 2 | Q79: 0 | R79: 0 | S79: 0 | T79: 2 | V79: 5 | W79: 0.000205338809 | Y79: 0 | Z79: 0 | AB79: 0.3065708419 | AC79: 0.7359663791 | AD79: -0.3065708419 | AF79: 0 | AG79: 0.2525632667 | AH79: 0.7768070653 | AI79: -0.2525632667 | AJ79: 0.05400757524 | AQ79: =_xlfn.CHISQ.INV.RT(AQ38,1) -> 2.971134617 | AR79: 38.29768224 | AS79: 0 | AT79: 0 | AU79: 0 | AV79: 0 | AW79: 0 | AX79: 0 | AY79: 0 | AZ79: 0 | BA79: 0 | BB79: 0 | BC79: 3.791677669 | BD79: 0 | BG79: 0.1462861818 | BI79: 0 | BL79: to grow, increase
A80: αὐτός | B80: 0 | C80: 4 | D80: 7 | E80: 0 | F80: 2 | G80: 3 | H80: 4 | I80: 0 | J80: 3 | K80: 1 | L80: 1 | M80: 2 | N80: 1 | O80: 2 | P80: 1 | Q80: 0 | R80: 4 | S80: 3 | T80: 28 | V80: 66 | W80: 0.002710472279 | Y80: 0 | Z80: 1 | AB80: 4.046735113 | AC80: 0.01747934968 | AD80: -4.046735113 | AF80: 1.360984503 | AG80: 3.573595276 | AH80: 0.02805480737 | AI80: -3.573595276 | AJ80: 0.4731398369 | AK80: 3.573595276 | AP80: 002 | AQ80: =_xlfn.CHISQ.DIST.RT(AQ81/$AO$49,1) -> 0.4094599872 | AR80: =_xlfn.CHISQ.DIST.RT(AR81/$AO$49,1) -> 1 | AS80: =_xlfn.CHISQ.DIST.RT(AS81/$AO$49,1) ->  | AT80: =_xlfn.CHISQ.DIST.RT(AT81/$AO$49,1) -> 1 | AU80: =_xlfn.CHISQ.DIST.RT(AU81/$AO$49,1) -> 1 | AV80: =_xlfn.CHISQ.DIST.RT(AV81/$AO$49,1) -> 1.562191158e-06 | AW80: =_xlfn.CHISQ.DIST.RT(AW81/$AO$49,1) -> 1 | AX80: =_xlfn.CHISQ.DIST.RT(AX81/$AO$49,1) -> 0.7243246264 | AY80: =_xlfn.CHISQ.DIST.RT(AY81/$AO$49,1) ->  | AZ80: =_xlfn.CHISQ.DIST.RT(AZ81/$AO$49,1) -> 1 | BA80: =_xlfn.CHISQ.DIST.RT(BA81/$AO$49,1) -> 1 | BB80: =_xlfn.CHISQ.DIST.RT(BB81/$AO$49,1) -> 1 | BC80: =_xlfn.CHISQ.DIST.RT(BC81/$AO$49,1) -> 1 | BD80: =_xlfn.CHISQ.DIST.RT(BD81/$AO$49,1) -> 1 | BE80: =_xlfn.CHISQ.DIST.RT(BE81/$AO$49,1) -> 0.9623316168 | BF80: =_xlfn.CHISQ.DIST.RT(BF81/$AO$49,1) -> 1 | BG80: =_xlfn.CHISQ.DIST.RT(BG81/$AO$49,1) ->  | BH80: =_xlfn.CHISQ.DIST.RT(BH81/$AO$49,1) -> 1 | BI80: =_xlfn.CHISQ.DIST.RT(BI81/$AO$49,1) ->  | BL80: he, self, same
A81: αὐτό | B81: 1 | C81: 3 | D81: 1 | E81: 1 | F81: 1 | G81: 3 | H81: 1 | I81: 0 | J81: 0 | K81: 0 | L81: 1 | M81: 1 | N81: 1 | O81: 1 | P81: 2 | Q81: 2 | R81: 4 | S81: 1 | T81: 5 | V81: 28 | W81: 0.001149897331 | Y81: 1 | Z81: 1 | AB81: 1.716796715 | AC81: 0.3084065079 | AD81: -1.176336535 | AF81: 1.360984503 | AG81: 1.654114449 | AH81: 0.3163681665 | AI81: -1.15084866 | AJ81: 0.02548787567 | AK81: 0.2586675385 | AQ81: =_xlfn.CHISQ.INV.RT(AQ40,1) -> 1.476398852 | AR81: 0 | AT81: 0 | AU81: 0 | AV81: 50.06163228 | AW81: 0 | AX81: 0.2699191172 | AZ81: 0 | BA81: 0 | BB81: 0 | BC81: 0 | BD81: 0 | BE81: 0.004840123204 | BF81: 0 | BH81: 0 | BL81: it (neut.)
A82: αὐτοῦ | B82: 30 | C82: 36 | D82: 29 | E82: 7 | F82: 21 | G82: 7 | H82: 35 | I82: 5 | J82: 10 | K82: 9 | L82: 16 | M82: 31 | N82: 15 | O82: 18 | P82: 27 | Q82: 29 | R82: 14 | S82: 84 | T82: 125 | V82: 518 | W82: 0.02127310062 | Y82: 30 | Z82: 16 | AB82: 31.76073922 | AC82: 0.069110526 | AD82: -2.67204823 | AF82: 21.77575205 | AG82: 30.00171693 | AH82: 0.0726345229 | AI82: -2.622314948 | AJ82: 0.04973328181 | AK82: 9.825543395e-08 | BL82: of him, his
A83: αὐτῆς | B83: 0 | C83: 1 | D83: 3 | E83: 2 | F83: 2 | G83: 2 | H83: 0 | I83: 1 | J83: 1 | K83: 2 | L83: 3 | M83: 3 | N83: 2 | O83: 1 | P83: 1 | Q83: 5 | R83: 2 | S83: 7 | T83: 17 | V83: 55 | W83: 0.002258726899 | Y83: 0 | Z83: 3 | AB83: 3.372279261 | AC83: 0.03431134365 | AD83: -3.372279261 | AF83: 4.08295351 | AG83: 3.497476402 | AH83: 0.03027368572 | AI83: -3.497476402 | AJ83: -0.1251971411 | AK83: 3.497476402 | BL83: of her, hers
A84: αὐτῷ | B84: 18 | C84: 33 | D84: 19 | E84: 2 | F84: 18 | G84: 9 | H84: 27 | I84: 5 | J84: 4 | K84: 12 | L84: 11 | M84: 13 | N84: 16 | O84: 8 | P84: 16 | Q84: 18 | R84: 8 | S84: 38 | T84: 72 | V84: 329 | W84: 0.01351129363 | Y84: 18 | Z84: 11 | AB84: 20.1723614 | AC84: 0.08289628358 | AD84: -2.490165048 | AF84: 14.97082954 | AG84: 19.25602466 | AH84: 0.08975799201 | AI84: -2.410638208 | AJ84: 0.07952683988 | AK84: 0.08192749984 | BL84: to him
A85: αὐτῷ (statistics for ΑΥΤΩ and verbum dicendi) | B85: 6 | C85: 11 | D85: 4 | E85: 1 | F85: 8 | G85: 5 | H85: 18 | I85: 3 | J85: 1 | K85: 8 | L85: 4 | M85: 6 | N85: 7 | O85: 2 | P85: 9 | Q85: 8 | R85: 4 | S85: 19 | T85: 31 | V85: 149 | W85: 0.006119096509 | Y85: 6 | Z85: 4 | AB85: 9.135811088 | AC85: 0.08699971376 | AD85: -2.44185045 | AF85: 5.443938013 | AG85: 8.485425971 | AH85: 0.1070374419 | AI85: -2.234576582 | AJ85: 0.2072738689 | AK85: 0.7279943611 | BL85: to him
A86: αὐτῇ | B86: 0 | C86: 1 | D86: 1 | E86: 0 | F86: 0 | G86: 1 | H86: 2 | I86: 1 | J86: 0 | K86: 1 | L86: 4 | M86: 3 | N86: 2 | O86: 0 | P86: 1 | Q86: 1 | R86: 4 | S86: 3 | T86: 22 | V86: 47 | W86: 0.001930184805 | Y86: 0 | Z86: 4 | AB86: 2.881765914 | AC86: 0.05603572116 | AD86: -2.881765914 | AF86: 5.443938013 | AG86: 3.333135332 | AH86: 0.03568105756 | AI86: -3.333135332 | AJ86: -0.4513694178 | AK86: 3.333135332 | BL86: she, this (fem.)
A87: αὐτόν | B87: 21 | C87: 12 | D87: 35 | E87: 2 | F87: 15 | G87: 21 | H87: 34 | I87: 10 | J87: 7 | K87: 13 | L87: 23 | M87: 25 | N87: 8 | O87: 13 | P87: 6 | Q87: 6 | R87: 8 | S87: 32 | T87: 101 | V87: 371 | W87: 0.01523613963 | Y87: 21 | Z87: 23 | AB87: 22.74755647 | AC87: 0.08093709732 | AD87: -2.514083002 | AF87: 31.30264357 | AG87: 24.25467798 | AH87: 0.0689745785 | AI87: -2.67401727 | AJ87: -0.1599342675 | AK87: 0.4367375546 | BL87: him
A88: αὐτόν (statistics for ΠΡΟΣ ΑΥΤΟΝ and verbum dicendi) | B88: 0 | C88: 0 | D88: 3 | E88: 0 | F88: 0 | G88: 0 | H88: 0 | I88: 0 | J88: 1 | K88: 0 | L88: 0 | M88: 0 | N88: 0 | O88: 0 | P88: 0 | Q88: 0 | R88: 3 | S88: 1 | T88: 10 | V88: 18 | W88: 0.0007392197125 | Y88: 0 | Z88: 0 | AB88: 1.103655031 | AC88: 0.3316566504 | AD88: -1.103655031 | AF88: 0 | AG88: 0.9092277599 | AH88: 0.4028351894 | AI88: -0.9092277599 | AJ88: 0.1944272709 | BL88: him
A89: αὐτήν | B89: 4 | C89: 2 | D89: 2 | E89: 0 | F89: 0 | G89: 2 | H89: 3 | I89: 0 | J89: 0 | K89: 0 | L89: 1 | M89: 6 | N89: 2 | O89: 1 | P89: 5 | Q89: 5 | R89: 4 | S89: 7 | T89: 12 | V89: 52 | W89: 0.002135523614 | Y89: 4 | Z89: 1 | AB89: 3.188336756 | AC89: 0.1775695287 | AD89: -1.728393036 | AF89: 1.360984503 | AG89: 2.866418129 | AH89: 0.1600579867 | AI89: -1.832219113 | AJ89: -0.103826077 | AK89: 0.4482974218 | BL89: her
A90: αὐτοί | B90: 0 | C90: 0 | D90: 4 | E90: 0 | F90: 0 | G90: 0 | H90: 0 | I90: 0 | J90: 0 | K90: 0 | L90: 0 | M90: 0 | N90: 0 | O90: 2 | P90: 2 | Q90: 2 | R90: 3 | S90: 6 | T90: 10 | V90: 29 | W90: 0.001190965092 | Y90: 0 | Z90: 0 | AB90: 1.778110883 | AC90: 0.1689570256 | AD90: -1.778110883 | AF90: 0 | AG90: 1.464866947 | AH90: 0.2311087392 | AI90: -1.464866947 | AJ90: 0.3132439364 | AK90: 1.464866947 | BL90: they (masc.)
A91: αὐτά | B91: 1 | C91: 2 | D91: 2 | E91: 0 | F91: 0 | G91: 0 | H91: 1 | I91: 0 | J91: 1 | K91: 1 | L91: 0 | M91: 2 | N91: 1 | O91: 1 | P91: 1 | Q91: 2 | R91: 3 | S91: 6 | T91: 2 | V91: 25 | W91: 0.001026694045 | Y91: 1 | Z91: 0 | AB91: 1.532854209 | AC91: 0.3309715975 | AD91: -1.105722716 | AF91: 0 | AG91: 1.262816333 | AH91: 0.3571955381 | AI91: -1.029471921 | AJ91: 0.07625079407 | AK91: 0.05469712674 | BL91: they (neut.)
A92: αὐτῶν | B92: 7 | C92: 20 | D92: 24 | E92: 1 | F92: 8 | G92: 6 | H92: 5 | I92: 0 | J92: 7 | K92: 1 | L92: 4 | M92: 5 | N92: 11 | O92: 3 | P92: 5 | Q92: 9 | R92: 5 | S92: 35 | T92: 43 | V92: 192 | W92: 0.007885010267 | Y92: 7 | Z92: 4 | AB92: 11.77232033 | AC92: 0.04796784434 | AD92: -3.037224402 | AF92: 5.443938013 | AG92: 10.65747006 | AH92: 0.07288998714 | AI92: -2.618804 | AJ92: 0.4184204022 | AK92: 1.255184128 | BL92: of them
A93: αὐτοῖς | B93: 11 | C93: 10 | D93: 11 | E93: 4 | F93: 22 | G93: 8 | H93: 29 | I93: 3 | J93: 1 | K93: 8 | L93: 13 | M93: 18 | N93: 6 | O93: 5 | P93: 4 | Q93: 8 | R93: 4 | S93: 25 | T93: 45 | V93: 224 | W93: 0.009199178645 | Y93: 11 | Z93: 13 | AB93: 13.73437372 | AC93: 0.0891207905 | AD93: -2.417762633 | AF93: 17.69279854 | AG93: 14.43171638 | AH93: 0.0765116085 | AI93: -2.570312805 | AJ93: -0.1525501718 | AK93: 0.8160274902 | BL93: to them
A94: αὐτοῖς (statistics for ΑΥΤΟΙΣ and verbum dicendi) | B94: 6 | C94: 9 | D94: 6 | E94: 4 | F94: 17 | G94: 5 | H94: 22 | I94: 2 | J94: 0 | K94: 8 | L94: 12 | M94: 13 | N94: 4 | O94: 5 | P94: 2 | Q94: 7 | R94: 4 | S94: 14 | T94: 22 | V94: 156 | W94: 0.006406570842 | Y94: 6 | Z94: 12 | AB94: 9.565010267 | AC94: 0.07460174197 | AD94: -2.595591421 | AF94: 16.33181404 | AG94: 10.75709579 | AH94: 0.04582372347 | AI94: -3.082953342 | AJ94: -0.4873619209 | AK94: 2.103723982 | BL94: to them
A95: αὐταῖς | B95: 0 | C95: 0 | D95: 1 | E95: 0 | F95: 0 | G95: 0 | H95: 1 | I95: 0 | J95: 1 | K95: 0 | L95: 0 | M95: 0 | N95: 0 | O95: 0 | P95: 0 | Q95: 0 | R95: 0 | S95: 2 | T95: 3 | V95: 8 | W95: 0.0003285420945 | Y95: 0 | Z95: 0 | AB95: 0.490513347 | AC95: 0.612311985 | AD95: -0.490513347 | AF95: 0 | AG95: 0.4041012266 | AH95: 0.6675765413 | AI95: -0.4041012266 | AJ95: 0.08641212038 | BL95: to them (fem.)
A96: αὐτούς | B96: 1 | C96: 6 | D96: 25 | E96: 2 | F96: 5 | G96: 4 | H96: 17 | I96: 0 | J96: 3 | K96: 1 | L96: 7 | M96: 5 | N96: 4 | O96: 5 | P96: 1 | Q96: 5 | R96: 9 | S96: 17 | T96: 42 | V96: 158 | W96: 0.006488706366 | Y96: 1 | Z96: 7 | AB96: 9.687638604 | AC96: 0.0006010767657 | AD96: -7.416787902 | AF96: 9.526891522 | AG96: 9.65932032 | AH96: 0.0006165340323 | AI96: -7.391397034 | AJ96: 0.02539086719 | AK96: 7.762847273 | BL96: them
A97: αὐτούς (statistics for ΠΡΟΣ ΑΥΤΟΥΣ and verbum dicendi) | B97: 0 | C97: 0 | D97: 16 | E97: 0 | F97: 0 | G97: 1 | H97: 0 | I97: 0 | J97: 2 | K97: 0 | L97: 0 | M97: 0 | N97: 0 | O97: 0 | P97: 0 | Q97: 0 | R97: 3 | S97: 0 | T97: 19 | V97: 41 | W97: 0.001683778234 | Y97: 0 | Z97: 0 | AB97: 2.513880903 | AC97: 0.08095345626 | AD97: -2.513880903 | AF97: 0 | AG97: 2.071018787 | AH97: 0.1260572908 | AI97: -2.071018787 | AJ97: 0.442862117 | AK97: 2.071018787 | BL97: them
A98: ἄφεσις | B98: 0 | C98: 1 | D98: 0 | E98: 0 | F98: 0 | G98: 1 | H98: 0 | I98: 0 | J98: 0 | K98: 0 | L98: 0 | M98: 1 | N98: 0 | O98: 0 | P98: 0 | Q98: 0 | R98: 0 | S98: 0 | T98: 4 | V98: 7 | W98: 0.0002874743326 | Y98: 0 | Z98: 0 | AB98: 0.4291991786 | AC98: 0.6510302449 | AD98: -0.4291991786 | AF98: 0 | AG98: 0.3535885733 | AH98: 0.7021637969 | AI98: -0.3535885733 | AJ98: 0.07561060533 | BL98: forgiveness, release
A99: ἀφίημι | B99: 9 | C99: 3 | D99: 0 | E99: 0 | F99: 0 | G99: 1 | H99: 7 | I99: 1 | J99: 0 | K99: 3 | L99: 6 | M99: 4 | N99: 2 | O99: 3 | P99: 10 | Q99: 7 | R99: 2 | S99: 10 | T99: 8 | V99: 67 | W99: 0.002751540041 | Y99: 9 | Z99: 6 | AB99: 4.108049281 | AC99: 0.01509574798 | AD99: -4.193342166 | AF99: 8.165907019 | AG99: 4.822908711 | AH99: 0.03129361256 | AI99: -3.464341274 | AJ99: 0.7290008918 | AK99: 3.617752831 | BL99: to forgive, leave, permit
A100: βάλλω | B100: 2 | C100: 2 | D100: 2 | E100: 1 | F100: 0 | G100: 0 | H100: 1 | I100: 5 | J100: 0 | K100: 2 | L100: 3 | M100: 2 | N100: 5 | O100: 3 | P100: 5 | Q100: 4 | R100: 1 | S100: 12 | T100: 3 | V100: 51 | W100: 0.002094455852 | Y100: 2 | Z100: 3 | AB100: 3.127022587 | AC100: 0.2143795655 | AD100: -1.540007164 | AF100: 4.08295351 | AG100: 3.295425789 | AH100: 0.2011906718 | AI100: -1.603502205 | AJ100: -0.06349504034 | AK100: 0.509229484 | BL100: to throw, put
A101: βαπτίζω | B101: 1 | C101: 1 | D101: 1 | E101: 0 | F101: 0 | G101: 0 | H101: 1 | I101: 0 | J101: 0 | K101: 1 | L101: 1 | M101: 5 | N101: 0 | O101: 3 | P101: 2 | Q101: 0 | R101: 3 | S101: 2 | T101: 3 | V101: 23 | W101: 0.0009445585216 | Y101: 1 | Z101: 1 | AB101: 1.410225873 | AC101: 0.344219416 | AD101: -1.066475988 | AF101: 1.360984503 | AG101: 1.401551183 | AH101: 0.345082565 | AI101: -1.063971572 | AJ101: 0.002504415889 | AK101: 0.1150463532 | BL101: to baptize
A102: βάπτισμα | B102: 1 | C102: 0 | D102: 0 | E102: 0 | F102: 0 | G102: 1 | H102: 0 | I102: 0 | J102: 0 | K102: 0 | L102: 0 | M102: 2 | N102: 0 | O102: 0 | P102: 0 | Q102: 1 | R102: 1 | S102: 0 | T102: 1 | V102: 6 | W102: 0.0002464065708 | Y102: 1 | Z102: 0 | AB102: 0.3678850103 | AC102: 0.2546488168 | AD102: -1.367869872 | AF102: 0 | AG102: 0.30307592 | AH102: 0.2238346065 | AI102: -1.496847864 | AJ102: -0.1289779918 | BL102: baptism
A103: βαπτιστής | B103: 1 | C103: 2 | D103: 0 | E103: 0 | F103: 0 | G103: 0 | H103: 0 | I103: 0 | J103: 0 | K103: 0 | L103: 1 | M103: 0 | N103: 0 | O103: 0 | P103: 0 | Q103: 2 | R103: 1 | S103: 1 | T103: 1 | V103: 8 | W103: 0.0003285420945 | Y103: 1 | Z103: 1 | AB103: 0.490513347 | AC103: 0.3003472012 | AD103: -1.202816136 | AF103: 1.360984503 | AG103: 0.6438613829 | AH103: 0.3381948052 | AI103: -1.084133203 | AJ103: 0.1186829334 | BL103: baptist, baptizer
A104: βασιλεία | B104: 9 | C104: 4 | D104: 4 | E104: 0 | F104: 0 | G104: 1 | H104: 1 | I104: 0 | J104: 1 | K104: 1 | L104: 1 | M104: 3 | N104: 3 | O104: 4 | P104: 13 | Q104: 4 | R104: 6 | S104: 21 | T104: 12 | V104: 79 | W104: 0.003244353183 | Y104: 9 | Z104: 1 | AB104: 4.843819302 | AC104: 0.03186283203 | AD104: -3.446315088 | AF104: 1.360984503 | AG104: 4.230259769 | AH104: 0.01739249256 | AI104: -4.051716628 | AJ104: -0.6054015397 | AK104: 5.378020053 | BL104: kingdom, reign
A105: βασιλεύς | B105: 3 | C105: 0 | D105: 3 | E105: 0 | F105: 1 | G105: 0 | H105: 2 | I105: 0 | J105: 0 | K105: 0 | L105: 2 | M105: 3 | N105: 0 | O105: 1 | P105: 0 | Q105: 3 | R105: 1 | S105: 13 | T105: 4 | V105: 33 | W105: 0.00135523614 | Y105: 3 | Z105: 2 | AB105: 2.023367556 | AC105: 0.1825306209 | AD105: -1.700837334 | AF105: 2.721969006 | AG105: 2.146437872 | AH105: 0.192671551 | AI105: -1.646768348 | AJ105: 0.05406898635 | AK105: 0.3394313504 | BL105: king
A106: βαστάζω | B106: 0 | C106: 0 | D106: 0 | E106: 0 | F106: 0 | G106: 1 | H106: 0 | I106: 0 | J106: 0 | K106: 0 | L106: 0 | M106: 0 | N106: 0 | O106: 0 | P106: 0 | Q106: 1 | R106: 2 | S106: 2 | T106: 2 | V106: 8 | W106: 0.0003285420945 | Y106: 0 | Z106: 0 | AB106: 0.490513347 | AC106: 0.612311985 | AD106: -0.490513347 | AF106: 0 | AG106: 0.4041012266 | AH106: 0.6675765413 | AI106: -0.4041012266 | AJ106: 0.08641212038 | BL106: to bear, carry
A107: βλασφημέω | B107: 0 | C107: 1 | D107: 1 | E107: 0 | F107: 2 | G107: 0 | H107: 0 | I107: 0 | J107: 0 | K107: 0 | L107: 0 | M107: 2 | N107: 0 | O107: 0 | P107: 0 | Q107: 0 | R107: 1 | S107: 0 | T107: 1 | V107: 8 | W107: 0.0003285420945 | Y107: 0 | Z107: 0 | AB107: 0.490513347 | AC107: 0.612311985 | AD107: -0.490513347 | AF107: 0 | AG107: 0.4041012266 | AH107: 0.6675765413 | AI107: -0.4041012266 | AJ107: 0.08641212038 | BL107: to blaspheme, slander
A108: βλασφημία | B108: 0 | C108: 0 | D108: 1 | E108: 0 | F108: 1 | G108: 0 | H108: 0 | I108: 0 | J108: 0 | K108: 0 | L108: 2 | M108: 0 | N108: 1 | O108: 0 | P108: 0 | Q108: 0 | R108: 0 | S108: 0 | T108: 0 | V108: 5 | W108: 0.000205338809 | Y108: 0 | Z108: 2 | AB108: 0.3065708419 | AC108: 0.7359663791 | AD108: -0.3065708419 | AF108: 2.721969006 | AG108: 0.7320835792 | AH108: 0.4809059399 | AI108: -0.7320835792 | AJ108: -0.4255127373 | BL108: blasphemy, slander
A109: βλέπω | B109: 3 | C109: 0 | D109: 1 | E109: 0 | F109: 2 | G109: 0 | H109: 4 | I109: 1 | J109: 1 | K109: 1 | L109: 0 | M109: 2 | N109: 2 | O109: 2 | P109: 3 | Q109: 1 | R109: 3 | S109: 9 | T109: 4 | V109: 36 | W109: 0.001478439425 | Y109: 3 | Z109: 0 | AB109: 2.207310062 | AC109: 0.1971588148 | AD109: -1.623745708 | AF109: 0 | AG109: 1.81845552 | AH109: 0.1626340957 | AI109: -1.816252413 | AJ109: -0.1925067046 | AK109: 0.7677104792 | BL109: to see, look
A110: Γαλιλαία | B110: 2 | C110: 0 | D110: 3 | E110: 0 | F110: 3 | G110: 0 | H110: 0 | I110: 0 | J110: 2 | K110: 1 | L110: 5 | M110: 1 | N110: 1 | O110: 1 | P110: 0 | Q110: 0 | R110: 0 | S110: 5 | T110: 6 | V110: 28 | W110: 0.001149897331 | Y110: 2 | Z110: 5 | AB110: 1.716796715 | AC110: 0.2647356398 | AD110: -1.329023537 | AF110: 6.804922516 | AG110: 2.613155075 | AH110: 0.2502773463 | AI110: -1.385185591 | AJ110: -0.05616205417 | AK110: 0.1438717316 | BL110: Galilee
A111: Γαλιλαῖος | B111: 0 | C111: 1 | D111: 0 | E111: 0 | F111: 0 | G111: 1 | H111: 0 | I111: 0 | J111: 0 | K111: 0 | L111: 0 | M111: 0 | N111: 0 | O111: 0 | P111: 0 | Q111: 0 | R111: 0 | S111: 0 | T111: 4 | V111: 6 | W111: 0.0002464065708 | Y111: 0 | Z111: 0 | AB111: 0.3678850103 | AC111: 0.6921967726 | AD111: -0.3678850103 | AF111: 0 | AG111: 0.30307592 | AH111: 0.7385430241 | AI111: -0.30307592 | AJ111: 0.06480909029 | BL111: Galilean
A112: γαμέω | B112: 1 | C112: 1 | D112: 1 | E112: 0 | F112: 0 | G112: 0 | H112: 1 | I112: 0 | J112: 0 | K112: 0 | L112: 1 | M112: 0 | N112: 0 | O112: 1 | P112: 2 | Q112: 0 | R112: 1 | S112: 1 | T112: 1 | V112: 10 | W112: 0.0004106776181 | Y112: 1 | Z112: 1 | AB112: 0.6131416838 | AC112: 0.3321060539 | AD112: -1.102300922 | AF112: 1.360984503 | AG112: 0.7448866896 | AH112: 0.3536633326 | AI112: -1.039409856 | AJ112: 0.06289106547 | BL112: to marry
A113: γάμος | B113: 0 | C113: 0 | D113: 0 | E113: 0 | F113: 0 | G113: 0 | H113: 0 | I113: 0 | J113: 0 | K113: 0 | L113: 0 | M113: 0 | N113: 0 | O113: 0 | P113: 0 | Q113: 5 | R113: 0 | S113: 4 | T113: 2 | V113: 11 | W113: 0.0004517453799 | Y113: 0 | Z113: 0 | AB113: 0.6744558522 | AC113: 0.5094335524 | AD113: -0.6744558522 | AF113: 0 | AG113: 0.5556391866 | AH113: 0.5737054391 | AI113: -0.5556391866 | AJ113: 0.1188166655 | BL113: wedding, marriage
A114: γάρ | B114: 11 | C114: 10 | D114: 17 | E114: 3 | F114: 6 | G114: 3 | H114: 12 | I114: 4 | J114: 1 | K114: 4 | L114: 12 | M114: 8 | N114: 8 | O114: 6 | P114: 16 | Q114: 20 | R114: 12 | S114: 38 | T114: 30 | V114: 210 | W114: 0.008624229979 | Y114: 11 | Z114: 12 | AB114: 12.87597536 | AC114: 0.1033857637 | AD114: -2.269288008 | AF114: 16.33181404 | AG114: 13.48477907 | AH114: 0.09348917611 | AI114: -2.369909613 | AJ114: -0.1006216049 | AK114: 0.4578589693 | BL114: for, because
A115: γε | B115: 0 | C115: 0 | D115: 1 | E115: 1 | F115: 0 | G115: 0 | H115: 0 | I115: 0 | J115: 0 | K115: 0 | L115: 0 | M115: 0 | N115: 0 | O115: 0 | P115: 0 | Q115: 0 | R115: 1 | S115: 3 | T115: 5 | V115: 11 | W115: 0.0004517453799 | Y115: 0 | Z115: 0 | AB115: 0.6744558522 | AC115: 0.5094335524 | AD115: -0.6744558522 | AF115: 0 | AG115: 0.5556391866 | AH115: 0.5737054391 | AI115: -0.5556391866 | AJ115: 0.1188166655 | BL115: indeed, at least
A116: γέεννα | B116: 0 | C116: 0 | D116: 0 | E116: 0 | F116: 0 | G116: 0 | H116: 0 | I116: 0 | J116: 0 | K116: 0 | L116: 1 | M116: 1 | N116: 0 | O116: 1 | P116: 1 | Q116: 0 | R116: 0 | S116: 5 | T116: 0 | V116: 9 | W116: 0.0003696098563 | Y116: 0 | Z116: 1 | AB116: 0.5518275154 | AC116: 0.5758963886 | AD116: -0.5518275154 | AF116: 1.360984503 | AG116: 0.6943740362 | AH116: 0.4993869483 | AI116: -0.6943740362 | AJ116: -0.1425465208 | BL116: Gehenna, hell
A117: γενεά | B117: 2 | C117: 0 | D117: 0 | E117: 0 | F117: 0 | G117: 0 | H117: 1 | I117: 0 | J117: 0 | K117: 0 | L117: 1 | M117: 1 | N117: 0 | O117: 0 | P117: 5 | Q117: 1 | R117: 3 | S117: 4 | T117: 5 | V117: 21 | W117: 0.0008624229979 | Y117: 2 | Z117: 1 | AB117: 1.287597536 | AC117: 0.2287356056 | AD117: -1.475188503 | AF117: 1.360984503 | AG117: 1.300525876 | AH117: 0.2303545463 | AI117: -1.468135651 | AJ117: 0.007052851874 | AK117: 0.376204779 | BL117: generation
A118: γεωργός | B118: 3 | C118: 2 | D118: 0 | E118: 1 | F118: 0 | G118: 1 | H118: 1 | I118: 0 | J118: 0 | K118: 0 | L118: 0 | M118: 0 | N118: 0 | O118: 0 | P118: 0 | Q118: 0 | R118: 0 | S118: 0 | T118: 0 | V118: 5 | W118: 0.000205338809 | Y118: 3 | Z118: 0 | AB118: 0.3065708419 | AC118: 0.003534266256 | AD118: -5.645249567 | AF118: 0 | AG118: 0.2525632667 | AH118: 0.002085799096 | AI118: -6.172603238 | AJ118: -0.5273536711 | BL118: farmer, vinedresser
A119: γῆ | B119: 5 | C119: 1 | D119: 4 | E119: 0 | F119: 2 | G119: 0 | H119: 3 | I119: 0 | J119: 1 | K119: 1 | L119: 2 | M119: 3 | N119: 1 | O119: 3 | P119: 4 | Q119: 7 | R119: 3 | S119: 21 | T119: 8 | V119: 64 | W119: 0.002628336756 | Y119: 5 | Z119: 2 | AB119: 3.924106776 | AC119: 0.1532162806 | AD119: -1.875904757 | AF119: 2.721969006 | AG119: 3.712330126 | AH119: 0.1434852351 | AI119: -1.94152314 | AJ119: -0.06561838301 | AK119: 0.4466450044 | BL119: earth, land
A120: γίνομαι | B120: 6 | C120: 4 | D120: 30 | E120: 1 | F120: 13 | G120: 8 | H120: 12 | I120: 1 | J120: 5 | K120: 2 | L120: 4 | M120: 3 | N120: 10 | O120: 5 | P120: 7 | Q120: 12 | R120: 11 | S120: 18 | T120: 62 | V120: 208 | W120: 0.008542094456 | Y120: 6 | Z120: 4 | AB120: 12.75334702 | AC120: 0.01728639087 | AD120: -4.057835742 | AF120: 5.443938013 | AG120: 11.46567252 | AH120: 0.03308159174 | AI120: -3.408778292 | AJ120: 0.64905745 | AK120: 2.60547962 | BL120: to become, happen
A121: γινώσκω | B121: 3 | C121: 2 | D121: 2 | E121: 1 | F121: 0 | G121: 0 | H121: 3 | I121: 0 | J121: 2 | K121: 1 | L121: 1 | M121: 4 | N121: 1 | O121: 0 | P121: 3 | Q121: 4 | R121: 4 | S121: 5 | T121: 13 | V121: 46 | W121: 0.001889117043 | Y121: 3 | Z121: 1 | AB121: 2.820451745 | AC121: 0.2227912559 | AD121: -1.501520018 | AF121: 1.360984503 | AG121: 2.563342209 | AH121: 0.2162833758 | AI121: -1.531165806 | AJ121: -0.02964578792 | AK121: 0.07438336768 | BL121: to know
A122: γραμματεύς | B122: 3 | C122: 1 | D122: 2 | E122: 0 | F122: 3 | G122: 4 | H122: 4 | I122: 2 | J122: 0 | K122: 0 | L122: 2 | M122: 2 | N122: 0 | O122: 1 | P122: 0 | Q122: 8 | R122: 0 | S122: 5 | T122: 3 | V122: 37 | W122: 0.001519507187 | Y122: 3 | Z122: 2 | AB122: 2.26862423 | AC122: 0.2013193241 | AD122: -1.602862954 | AF122: 2.721969006 | AG122: 2.348488486 | AH122: 0.2061951592 | AI122: -1.578932184 | AJ122: 0.02393077019 | AK122: 0.180740615 | BL122: scribe
A123: γράφω | B123: 1 | C123: 1 | D123: 3 | E123: 0 | F123: 1 | G123: 2 | H123: 0 | I123: 0 | J123: 0 | K123: 0 | L123: 1 | M123: 5 | N123: 0 | O123: 0 | P123: 4 | Q123: 1 | R123: 0 | S123: 1 | T123: 10 | V123: 29 | W123: 0.001190965092 | Y123: 1 | Z123: 1 | AB123: 1.778110883 | AC123: 0.3004243259 | AD123: -1.202559384 | AF123: 1.360984503 | AG123: 1.704627103 | AH123: 0.3099697013 | AI123: -1.171280724 | AJ123: 0.03127865991 | AK123: 0.2912656693 | BL123: to write
A124: γρηγορέω | B124: 0 | C124: 1 | D124: 0 | E124: 0 | F124: 2 | G124: 0 | H124: 0 | I124: 0 | J124: 0 | K124: 0 | L124: 2 | M124: 0 | N124: 0 | O124: 2 | P124: 0 | Q124: 1 | R124: 0 | S124: 0 | T124: 1 | V124: 9 | W124: 0.0003696098563 | Y124: 0 | Z124: 2 | AB124: 0.5518275154 | AC124: 0.5758963886 | AD124: -0.5518275154 | AF124: 2.721969006 | AG124: 0.9341341925 | AH124: 0.3929259165 | AI124: -0.9341341925 | AJ124: -0.3823066771 | BL124: to watch, stay awake
A125: γυνή | B125: 6 | C125: 4 | D125: 4 | E125: 0 | F125: 0 | G125: 3 | H125: 0 | I125: 1 | J125: 0 | K125: 0 | L125: 5 | M125: 2 | N125: 4 | O125: 0 | P125: 3 | Q125: 0 | R125: 1 | S125: 7 | T125: 23 | V125: 57 | W125: 0.002340862423 | Y125: 6 | Z125: 5 | AB125: 3.494907598 | AC125: 0.07681793109 | AD125: -2.566317188 | AF125: 6.804922516 | AG125: 4.078022021 | AH125: 0.1082187324 | AI125: -2.2236008 | AJ125: 0.3427163879 | AK125: 0.9058311437 | BL125: woman, wife
A126: δαιμονίζομαι | B126: 1 | C126: 1 | D126: 0 | E126: 0 | F126: 1 | G126: 0 | H126: 1 | I126: 0 | J126: 0 | K126: 1 | L126: 0 | M126: 0 | N126: 1 | O126: 0 | P126: 0 | Q126: 1 | R126: 0 | S126: 1 | T126: 0 | V126: 7 | W126: 0.0002874743326 | Y126: 1 | Z126: 0 | AB126: 0.4291991786 | AC126: 0.2794216464 | AD126: -1.275033361 | AF126: 0 | AG126: 0.3535885733 | AH126: 0.2482770952 | AI126: -1.393209837 | AJ126: -0.1181764768 | BL126: to be demon-possessed
A127: δαιμόνιον | B127: 0 | C127: 1 | D127: 4 | E127: 0 | F127: 0 | G127: 1 | H127: 1 | I127: 1 | J127: 6 | K127: 2 | L127: 0 | M127: 4 | N127: 0 | O127: 2 | P127: 6 | Q127: 2 | R127: 2 | S127: 2 | T127: 3 | V127: 37 | W127: 0.001519507187 | Y127: 0 | Z127: 0 | AB127: 2.26862423 | AC127: 0.1034544117 | AD127: -2.26862423 | AF127: 0 | AG127: 1.868968173 | AH127: 0.1542827728 | AI127: -1.868968173 | AJ127: 0.3996560568 | AK127: 1.868968173 | BL127: demon
A128: Δαυίδ | B128: 6 | C128: 1 | D128: 0 | E128: 0 | F128: 0 | G128: 0 | H128: 1 | I128: 0 | J128: 0 | K128: 0 | L128: 0 | M128: 0 | N128: 1 | O128: 0 | P128: 0 | Q128: 0 | R128: 0 | S128: 9 | T128: 7 | V128: 19 | W128: 0.0007802874743 | Y128: 6 | Z128: 0 | AB128: 1.164969199 | AC128: 0.001082965116 | AD128: -6.828052522 | AF128: 0 | AG128: 0.9597404133 | AH128: 0.0004157002007 | AI128: -7.785546229 | AJ128: -0.9574937068 | BL128: David
A129: δεῖ | B129: 2 | C129: 0 | D129: 1 | E129: 0 | F129: 0 | G129: 0 | H129: 1 | I129: 0 | J129: 1 | K129: 0 | L129: 2 | M129: 1 | N129: 0 | O129: 0 | P129: 1 | Q129: 1 | R129: 1 | S129: 2 | T129: 12 | V129: 23 | W129: 0.0009445585216 | Y129: 2 | Z129: 2 | AB129: 1.410225873 | AC129: 0.2427135632 | AD129: -1.415873283 | AF129: 2.721969006 | AG129: 1.641311339 | AH129: 0.260939296 | AI129: -1.343467481 | AJ129: 0.07240580236 | AK129: 0.07838705088 | BL129: it is necessary
A130: δείκνυμι | B130: 1 | C130: 1 | D130: 1 | E130: 0 | F130: 0 | G130: 0 | H130: 0 | I130: 1 | J130: 0 | K130: 0 | L130: 0 | M130: 0 | N130: 0 | O130: 0 | P130: 1 | Q130: 0 | R130: 0 | S130: 0 | T130: 1 | V130: 5 | W130: 0.000205338809 | Y130: 1 | Z130: 0 | AB130: 0.3065708419 | AC130: 0.2256258324 | AD130: -1.48887726 | AF130: 0 | AG130: 0.2525632667 | AH130: 0.19619293 | AI130: -1.628656767 | AJ130: -0.1397795069 | BL130: to show
A131: δέκα | B131: 0 | C131: 0 | D131: 0 | E131: 0 | F131: 0 | G131: 0 | H131: 0 | I131: 0 | J131: 0 | K131: 0 | L131: 1 | M131: 0 | N131: 0 | O131: 0 | P131: 1 | Q131: 0 | R131: 4 | S131: 1 | T131: 6 | V131: =SUM(B131:T131)-Y131 -> 13 | W131: =V131/V$811 -> 0.0005338809035 | Y131: 0 | Z131: 1 | AB131: =W131*Y$811 -> 0.7970841889 | AC131: =EXP(-AB131)*(AB131)^Y131/FACT(Y131) -> 0.4506410344 | AD131: =LN(AC131) -> -0.7970841889 | AF131: =Z131*Y$811/Z$811 -> 1.360984503 | AG131: =AB131*$AM$3+(1-$AM$3)*AF131 -> 0.8964246495 | AH131: =EXP(-AG131)*(AG131)^Y131/FACT(Y131) -> 0.4080258905 | AI131: =LN(AH131) -> -0.8964246495 | AJ131: =AI131-AD131 -> -0.09934046063 | BL131: ten
A132: δένδρον | B132: 0 | C132: 1 | D132: 1 | E132: 0 | F132: 0 | G132: 0 | H132: 0 | I132: 0 | J132: 0 | K132: 0 | L132: 0 | M132: 0 | N132: 0 | O132: 1 | P132: 5 | Q132: 0 | R132: 1 | S132: 6 | T132: 0 | V132: 15 | W132: 0.0006160164271 | Y132: 0 | Z132: 0 | AB132: 0.9197125257 | AC132: 0.3986336215 | AD132: -0.9197125257 | AF132: 0 | AG132: 0.7576898 | AH132: 0.4687480789 | AI132: -0.7576898 | AJ132: 0.1620227257 | AK132: =IF(AG132>1,((Y132-AG132)^2)/AG132,"") ->  | BL132: tree
A133: δεξιός | B133: 3 | C133: 0 | D133: 2 | E133: 0 | F133: 0 | G133: 0 | H133: 0 | I133: 0 | J133: 0 | K133: 1 | L133: 2 | M133: 0 | N133: 1 | O133: 0 | P133: 0 | Q133: 1 | R133: 0 | S133: 5 | T133: 1 | V133: 13 | W133: 0.0005338809035 | Y133: 3 | Z133: 2 | AB133: 0.7970841889 | AC133: 0.03803575736 | AD133: -3.269228579 | AF133: 2.721969006 | AG133: 1.136184806 | AH133: 0.07847961964 | AI133: -2.54491631 | AJ133: 0.7243122683 | AK133: 3.057431379 | BL133: right (hand)
A134: δέομαι | B134: 0 | C134: 0 | D134: 5 | E134: 0 | F134: 0 | G134: 0 | H134: 0 | I134: 0 | J134: 1 | K134: 0 | L134: 0 | M134: 0 | N134: 0 | O134: 0 | P134: 1 | Q134: 0 | R134: 0 | S134: 0 | T134: 1 | V134: 8 | W134: 0.0003285420945 | Y134: 0 | Z134: 0 | AB134: 0.490513347 | AC134: 0.612311985 | AD134: -0.490513347 | AF134: 0 | AG134: 0.4041012266 | AH134: 0.6675765413 | AI134: -0.4041012266 | AJ134: 0.08641212038 | BL134: to beg, pray
A135: δέρω | B135: 1 | C135: 0 | D135: 2 | E135: 0 | F135: 0 | G135: 0 | H135: 1 | I135: 0 | J135: 0 | K135: 1 | L135: 0 | M135: 0 | N135: 0 | O135: 0 | P135: 0 | Q135: 0 | R135: 0 | S135: 0 | T135: 2 | V135: 6 | W135: 0.0002464065708 | Y135: 1 | Z135: 0 | AB135: 0.3678850103 | AC135: 0.2546488168 | AD135: -1.367869872 | AF135: 0 | AG135: 0.30307592 | AH135: 0.2238346065 | AI135: -1.496847864 | AJ135: -0.1289779918 | BL135: to beat, flog
A136: δεῦτε | B136: 0 | C136: 1 | D136: 0 | E136: 0 | F136: 2 | G136: 0 | H136: 0 | I136: 0 | J136: 0 | K136: 0 | L136: 0 | M136: 0 | N136: 0 | O136: 1 | P136: 0 | Q136: 1 | R136: 0 | S136: 2 | T136: 0 | V136: 7 | W136: 0.0002874743326 | Y136: 0 | Z136: 0 | AB136: 0.4291991786 | AC136: 0.6510302449 | AD136: -0.4291991786 | AF136: 0 | AG136: 0.3535885733 | AH136: 0.7021637969 | AI136: -0.3535885733 | AJ136: 0.07561060533 | BL136: come!
A137: δεύτερος | B137: 1 | C137: 0 | D137: 0 | E137: 0 | F137: 1 | G137: 0 | H137: 1 | I137: 0 | J137: 0 | K137: 0 | L137: 0 | M137: 0 | N137: 1 | O137: 0 | P137: 0 | Q137: 0 | R137: 1 | S137: 0 | T137: 1 | V137: 5 | W137: 0.000205338809 | Y137: 1 | Z137: 0 | AB137: 0.3065708419 | AC137: 0.2256258324 | AD137: -1.48887726 | AF137: 0 | AG137: 0.2525632667 | AH137: 0.19619293 | AI137: -1.628656767 | AJ137: -0.1397795069 | BL137: second
A138: δέχομαι | B138: 3 | C138: 0 | D138: 1 | E138: 0 | F138: 0 | G138: 3 | H138: 0 | I138: 0 | J138: 0 | K138: 0 | L138: 0 | M138: 0 | N138: 0 | O138: 0 | P138: 0 | Q138: 4 | R138: 2 | S138: 3 | T138: 7 | V138: 20 | W138: 0.0008213552361 | Y138: 3 | Z138: 0 | AB138: 1.226283368 | AC138: 0.09016815085 | AD138: -2.406079009 | AF138: 0 | AG138: 1.010253067 | AH138: 0.06257371643 | AI138: -2.771409954 | AJ138: -0.3653309454 | AK138: 3.918911993 | BL138: to receive, welcome
A139: δέω | B139: 1 | C139: 0 | D139: 0 | E139: 0 | F139: 3 | G139: 0 | H139: 4 | I139: 0 | J139: 0 | K139: 0 | L139: 0 | M139: 0 | N139: 0 | O139: 0 | P139: 0 | Q139: 0 | R139: 0 | S139: 6 | T139: 1 | V139: 14 | W139: 0.0005749486653 | Y139: 1 | Z139: 0 | AB139: 0.8583983573 | AC139: 0.3638238858 | AD139: -1.011085359 | AF139: 0 | AG139: 0.7071771466 | AH139: 0.3486623756 | AI139: -1.05365123 | AJ139: -0.04256587145 | BL139: to bind
A140: δηνάριον | B140: 1 | C140: 0 | D140: 0 | E140: 0 | F140: 0 | G140: 0 | H140: 1 | I140: 0 | J140: 0 | K140: 0 | L140: 0 | M140: 1 | N140: 0 | O140: 0 | P140: 0 | Q140: 0 | R140: 0 | S140: 5 | T140: 2 | V140: 9 | W140: 0.0003696098563 | Y140: 1 | Z140: 0 | AB140: 0.5518275154 | AC140: 0.3177954732 | AD140: -1.146347269 | AF140: 0 | AG140: 0.45461388 | AH140: 0.288540242 | AI140: -1.242920716 | AJ140: -0.09657344669 | BL140: denarius
A141: διά | B141: 6 | C141: 6 | D141: 6 | E141: 1 | F141: 4 | G141: 0 | H141: 4 | I141: 1 | J141: 3 | K141: 2 | L141: 6 | M141: 4 | N141: 6 | O141: 4 | P141: 6 | Q141: 4 | R141: 2 | S141: 20 | T141: 14 | V141: 93 | W141: 0.003819301848 | Y141: 6 | Z141: 6 | AB141: 5.702217659 | AC141: 0.159400098 | AD141: -1.836337898 | AF141: 8.165907019 | AG141: 6.136237697 | AH141: 0.1603785853 | AI141: -1.830218101 | AJ141: 0.006119797548 | AK141: 0.003024770399 | BL141: through, on account of
A142: διάβολος | B142: 0 | C142: 0 | D142: 1 | E142: 0 | F142: 0 | G142: 0 | H142: 0 | I142: 0 | J142: 0 | K142: 0 | L142: 0 | M142: 0 | N142: 0 | O142: 0 | P142: 2 | Q142: 2 | R142: 2 | S142: 2 | T142: 0 | V142: 9 | W142: 0.0003696098563 | Y142: 0 | Z142: 0 | AB142: 0.5518275154 | AC142: 0.5758963886 | AD142: -0.5518275154 | AF142: 0 | AG142: 0.45461388 | AH142: 0.6346929883 | AI142: -0.45461388 | AJ142: 0.09721363543 | BL142: devil, slanderer
A143: διακονέω | B143: 2 | C143: 0 | D143: 2 | E143: 0 | F143: 2 | G143: 0 | H143: 0 | I143: 0 | J143: 0 | K143: 0 | L143: 1 | M143: 0 | N143: 0 | O143: 0 | P143: 0 | Q143: 0 | R143: 0 | S143: 1 | T143: 4 | V143: 10 | W143: 0.0004106776181 | Y143: 2 | Z143: 1 | AB143: 0.6131416838 | AC143: 0.1018140325 | AD143: -2.28460734 | AF143: 1.360984503 | AG143: 0.7448866896 | AH143: 0.1317195545 | AI143: -2.027080204 | AJ143: 0.2575271367 | BL143: to serve, minister
A144: διαλογίζομαι | B144: 0 | C144: 0 | D144: 1 | E144: 0 | F144: 1 | G144: 2 | H144: 2 | I144: 0 | J144: 0 | K144: 0 | L144: 2 | M144: 0 | N144: 0 | O144: 0 | P144: 0 | Q144: 0 | R144: 0 | S144: 0 | T144: 3 | V144: 11 | W144: 0.0004517453799 | Y144: 0 | Z144: 2 | AB144: 0.6744558522 | AC144: 0.5094335524 | AD144: -0.6744558522 | AF144: 2.721969006 | AG144: 1.035159499 | AH144: 0.3551697271 | AI144: -1.035159499 | AJ144: -0.360703647 | AK144: 1.035159499 | BL144: to reason, discuss
A145: διαμερίζω | B145: 1 | C145: 0 | D145: 0 | E145: 0 | F145: 0 | G145: 0 | H145: 0 | I145: 0 | J145: 0 | K145: 0 | L145: 0 | M145: 0 | N145: 0 | O145: 0 | P145: 0 | Q145: 0 | R145: 3 | S145: 0 | T145: 2 | V145: 5 | W145: 0.000205338809 | Y145: 1 | Z145: 0 | AB145: 0.3065708419 | AC145: 0.2256258324 | AD145: -1.48887726 | AF145: 0 | AG145: 0.2525632667 | AH145: 0.19619293 | AI145: -1.628656767 | AJ145: -0.1397795069 | BL145: to divide, distribute
A146: διαστέλλομαι | B146: 0 | C146: 1 | D146: 0 | E146: 0 | F146: 0 | G146: 0 | H146: 2 | I146: 0 | J146: 0 | K146: 1 | L146: 0 | M146: 0 | N146: 0 | O146: 2 | P146: 0 | Q146: 0 | R146: 0 | S146: 0 | T146: 0 | V146: 6 | W146: 0.0002464065708 | Y146: 0 | Z146: 0 | AB146: 0.3678850103 | AC146: 0.6921967726 | AD146: -0.3678850103 | AF146: 0 | AG146: 0.30307592 | AH146: 0.7385430241 | AI146: -0.30307592 | AJ146: 0.06480909029 | BL146: to order, charge
A147: διδάσκαλος | B147: 4 | C147: 1 | D147: 1 | E147: 1 | F147: 0 | G147: 1 | H147: 3 | I147: 2 | J147: 0 | K147: 1 | L147: 0 | M147: 1 | N147: 0 | O147: 0 | P147: 2 | Q147: 2 | R147: 0 | S147: 2 | T147: 6 | V147: 23 | W147: 0.0009445585216 | Y147: 4 | Z147: 0 | AB147: 1.410225873 | AC147: 0.04022445386 | AD147: -3.213280163 | AF147: 0 | AG147: 1.161791027 | AH147: 0.02375425407 | AI147: -3.739993646 | AJ147: -0.5267134824 | AK147: 6.933630913 | BL147: teacher
A148: διδάσκω | B148: 1 | C148: 1 | D148: 3 | E148: 1 | F148: 3 | G148: 0 | H148: 6 | I148: 1 | J148: 2 | K148: 1 | L148: 2 | M148: 2 | N148: 0 | O148: 1 | P148: 0 | Q148: 1 | R148: 2 | S148: 5 | T148: 7 | V148: 38 | W148: 0.001560574949 | Y148: 1 | Z148: 2 | AB148: 2.329938398 | AC148: 0.2267070622 | AD148: -1.48409657 | AF148: 2.721969006 | AG148: 2.399001139 | AH148: 0.2178499665 | AI148: -1.52394868 | AJ148: -0.03985211079 | AK148: 0.8158412913 | BL148: to teach
A149: διδαχή | B149: 1 | C149: 0 | D149: 0 | E149: 0 | F149: 1 | G149: 0 | H149: 2 | I149: 0 | J149: 0 | K149: 1 | L149: 0 | M149: 0 | N149: 0 | O149: 0 | P149: 0 | Q149: 0 | R149: 0 | S149: 1 | T149: 0 | V149: 5 | W149: 0.000205338809 | Y149: 1 | Z149: 0 | AB149: 0.3065708419 | AC149: 0.2256258324 | AD149: -1.48887726 | AF149: 0 | AG149: 0.2525632667 | AH149: 0.19619293 | AI149: -1.628656767 | AJ149: -0.1397795069 | BL149: teaching
A150: δίδωμι, διδῶ | B150: 9 | C150: 3 | D150: 4 | E150: 0 | F150: 5 | G150: 3 | H150: 6 | I150: 1 | J150: 0 | K150: 0 | L150: 11 | M150: 2 | N150: 2 | O150: 2 | P150: 11 | Q150: 0 | R150: 6 | S150: 15 | T150: 26 | V150: 97 | W150: 0.003983572895 | Y150: 9 | Z150: 11 | AB150: 5.947474333 | AC150: 0.06703087231 | AD150: -2.702601985 | AF150: 14.97082954 | AG150: 7.537089092 | AH150: 0.1152799036 | AI150: -2.160392163 | AJ150: 0.5422098215 | AK150: 0.2839436153 | BL150: to give
A151: διέρχομαι | B151: 0 | C151: 0 | D151: 0 | E151: 0 | F151: 1 | G151: 1 | H151: 0 | I151: 0 | J151: 2 | K151: 0 | L151: 0 | M151: 0 | N151: 0 | O151: 0 | P151: 1 | Q151: 0 | R151: 0 | S151: 0 | T151: 6 | V151: 11 | W151: 0.0004517453799 | Y151: 0 | Z151: 0 | AB151: 0.6744558522 | AC151: 0.5094335524 | AD151: -0.6744558522 | AF151: 0 | AG151: 0.5556391866 | AH151: 0.5737054391 | AI151: -0.5556391866 | AJ151: 0.1188166655 | BL151: to go through
A152: δίκαιος | B152: 1 | C152: 0 | D152: 3 | E152: 0 | F152: 0 | G152: 0 | H152: 0 | I152: 0 | J152: 0 | K152: 0 | L152: 0 | M152: 1 | N152: 0 | O152: 0 | P152: 0 | Q152: 5 | R152: 1 | S152: 11 | T152: 6 | V152: 27 | W152: 0.001108829569 | Y152: 1 | Z152: 0 | AB152: 1.655482546 | AC152: 0.3161969465 | AD152: -1.151390011 | AF152: 0 | AG152: 1.36384164 | AH152: 0.3487024891 | AI152: -1.053536187 | AJ152: 0.09785382417 | AK152: 0.09706459684 | BL152: righteous, just
A153: δικαιοσύνη | B153: 0 | C153: 0 | D153: 0 | E153: 0 | F153: 0 | G153: 0 | H153: 0 | I153: 0 | J153: 0 | K153: 0 | L153: 0 | M153: 0 | N153: 0 | O153: 0 | P153: 0 | Q153: 3 | R153: 0 | S153: 4 | T153: 1 | V153: 8 | W153: 0.0003285420945 | Y153: 0 | Z153: 0 | AB153: 0.490513347 | AC153: 0.612311985 | AD153: -0.490513347 | AF153: 0 | AG153: 0.4041012266 | AH153: 0.6675765413 | AI153: -0.4041012266 | AJ153: 0.08641212038 | BL153: righteousness
A154: δικαιόω | B154: 0 | C154: 0 | D154: 0 | E154: 0 | F154: 0 | G154: 0 | H154: 0 | I154: 0 | J154: 0 | K154: 0 | L154: 0 | M154: 0 | N154: 0 | O154: 0 | P154: 1 | Q154: 0 | R154: 1 | S154: 1 | T154: 3 | V154: 6 | W154: 0.0002464065708 | Y154: 0 | Z154: 0 | AB154: 0.3678850103 | AC154: 0.6921967726 | AD154: -0.3678850103 | AF154: 0 | AG154: 0.30307592 | AH154: 0.7385430241 | AI154: -0.30307592 | AJ154: 0.06480909029 | BL154: to justify
A155: διώκω | B155: 0 | C155: 0 | D155: 1 | E155: 0 | F155: 0 | G155: 0 | H155: 0 | I155: 0 | J155: 0 | K155: 0 | L155: 0 | M155: 0 | N155: 0 | O155: 0 | P155: 1 | Q155: 3 | R155: 1 | S155: 2 | T155: 0 | V155: 8 | W155: 0.0003285420945 | Y155: 0 | Z155: 0 | AB155: 0.490513347 | AC155: 0.612311985 | AD155: -0.490513347 | AF155: 0 | AG155: 0.4041012266 | AH155: 0.6675765413 | AI155: -0.4041012266 | AJ155: 0.08641212038 | BL155: to pursue, persecute
A156: δοκέω | B156: 0 | C156: 2 | D156: 1 | E156: 0 | F156: 0 | G156: 0 | H156: 1 | I156: 0 | J156: 0 | K156: 0 | L156: 0 | M156: 1 | N156: 1 | O156: 0 | P156: 1 | Q156: 2 | R156: 1 | S156: 4 | T156: 7 | V156: 21 | W156: 0.0008624229979 | Y156: 0 | Z156: 0 | AB156: 1.287597536 | AC156: 0.2759329063 | AD156: -1.287597536 | AF156: 0 | AG156: 1.06076572 | AH156: 0.3461906238 | AI156: -1.06076572 | AJ156: 0.226831816 | AK156: 1.06076572 | BL156: to think, seem
A157: δόξα | B157: 2 | C157: 0 | D157: 2 | E157: 0 | F157: 0 | G157: 0 | H157: 0 | I157: 0 | J157: 0 | K157: 0 | L157: 0 | M157: 1 | N157: 0 | O157: 0 | P157: 2 | Q157: 1 | R157: 0 | S157: 2 | T157: 7 | V157: 15 | W157: 0.0006160164271 | Y157: 2 | Z157: 0 | AB157: 0.9197125257 | AC157: 0.1685963359 | AD157: -1.780247966 | AF157: 0 | AG157: 0.7576898 | AH157: 0.1345526907 | AI157: -2.005799404 | AJ157: -0.2255514385 | BL157: glory
A158: δοξάζω | B158: 1 | C158: 0 | D158: 4 | E158: 0 | F158: 0 | G158: 0 | H158: 0 | I158: 0 | J158: 0 | K158: 0 | L158: 0 | M158: 0 | N158: 1 | O158: 0 | P158: 0 | Q158: 0 | R158: 0 | S158: 2 | T158: 4 | V158: 11 | W158: 0.0004517453799 | Y158: 1 | Z158: 0 | AB158: 0.6744558522 | AC158: 0.3435904407 | AD158: -1.06830491 | AF158: 0 | AG158: 0.5556391866 | AH158: 0.3187732236 | AI158: -1.143275327 | AJ158: -0.0749704166 | BL158: to glorify
A159: δοῦλος | B159: 3 | C159: 1 | D159: 0 | E159: 0 | F159: 1 | G159: 0 | H159: 0 | I159: 0 | J159: 0 | K159: 0 | L159: 0 | M159: 0 | N159: 0 | O159: 1 | P159: 10 | Q159: 5 | R159: 5 | S159: 10 | T159: 8 | V159: 41 | W159: 0.001683778234 | Y159: 3 | Z159: 0 | AB159: 2.513880903 | AC159: 0.2143474108 | AD159: -1.540157166 | AF159: 0 | AG159: 2.071018787 | AH159: 0.186624576 | AI159: -1.678656295 | AJ159: -0.1384991294 | AK159: 0.4167060678 | BL159: servant, slave
A160: δύναμαι | B160: 3 | C160: 1 | D160: 3 | E160: 1 | F160: 2 | G160: 1 | H160: 3 | I160: 0 | J160: 0 | K160: 2 | L160: 4 | M160: 9 | N160: 2 | O160: 9 | P160: 4 | Q160: 4 | R160: 5 | S160: 6 | T160: 9 | V160: 65 | W160: 0.002669404517 | Y160: 3 | Z160: 4 | AB160: 3.985420945 | AC160: 0.1960762633 | AD160: -1.629251597 | AF160: 5.443938013 | AG160: 4.242363091 | AH160: 0.182909969 | AI160: -1.69876122 | AJ160: -0.06950962303 | AK160: 0.3638222419 | BL160: to be able
A161: δύναμις | B161: 3 | C161: 1 | D161: 3 | E161: 0 | F161: 2 | G161: 0 | H161: 1 | I161: 1 | J161: 3 | K161: 1 | L161: 1 | M161: 0 | N161: 0 | O161: 1 | P161: 1 | Q161: 3 | R161: 0 | S161: 1 | T161: 4 | V161: 23 | W161: 0.0009445585216 | Y161: 3 | Z161: 1 | AB161: 1.410225873 | AC161: 0.1140936488 | AD161: -2.170735687 | AF161: 1.360984503 | AG161: 1.401551183 | AH161: 0.1129769098 | AI161: -2.180571819 | AJ161: -0.009836132018 | AK161: 1.823007716 | BL161: power, miracle
A162: δυνατός | B162: 1 | C162: 0 | D162: 0 | E162: 0 | F162: 1 | G162: 0 | H162: 1 | I162: 0 | J162: 0 | K162: 0 | L162: 1 | M162: 0 | N162: 0 | O162: 1 | P162: 0 | Q162: 0 | R162: 0 | S162: 0 | T162: 3 | V162: 7 | W162: 0.0002874743326 | Y162: 1 | Z162: 1 | AB162: 0.4291991786 | AC162: 0.2794216464 | AD162: -1.275033361 | AF162: 1.360984503 | AG162: 0.5933487296 | AH162: 0.3278098037 | AI162: -1.115321706 | AJ162: 0.159711655 | BL162: powerful, possible
A163: δύο | B163: 4 | C163: 3 | D163: 1 | E163: 0 | F163: 3 | G163: 0 | H163: 4 | I163: 1 | J163: 1 | K163: 0 | L163: 5 | M163: 0 | N163: 5 | O163: 0 | P163: 3 | Q163: 5 | R163: 2 | S163: 12 | T163: 17 | V163: 62 | W163: 0.002546201232 | Y163: 4 | Z163: 5 | AB163: 3.801478439 | AC163: 0.1943738226 | AD163: -1.637972053 | AF163: 6.804922516 | AG163: 4.330585288 | AH163: 0.1928527557 | AI163: -1.645828305 | AJ163: -0.007856251576 | AK163: 0.02523599588 | BL163: two
A164: δώδεκα | B164: 6 | C164: 1 | D164: 1 | E164: 0 | F164: 2 | G164: 1 | H164: 1 | I164: 1 | J164: 0 | K164: 0 | L164: 0 | M164: 3 | N164: 0 | O164: 1 | P164: 1 | Q164: 1 | R164: 0 | S164: 2 | T164: 2 | V164: 17 | W164: 0.0006981519507 | Y164: 6 | Z164: 0 | AB164: 1.042340862 | AC164: 0.000628120836 | AD164: -7.372777996 | AF164: 0 | AG164: 0.8587151066 | AH164: 0.0002359537533 | AI164: -8.351874733 | AJ164: -0.9790967369 | BL164: twelve
A165: δῶρον | B165: 0 | C165: 1 | D165: 0 | E165: 0 | F165: 0 | G165: 0 | H165: 0 | I165: 0 | J165: 2 | K165: 0 | L165: 1 | M165: 0 | N165: 0 | O165: 0 | P165: 0 | Q165: 0 | R165: 0 | S165: 7 | T165: 0 | V165: 11 | W165: 0.0004517453799 | Y165: 0 | Z165: 1 | AB165: 0.6744558522 | AC165: 0.5094335524 | AD165: -0.6744558522 | AF165: 1.360984503 | AG165: 0.7953993429 | AH165: 0.4514009352 | AI165: -0.7953993429 | AJ165: -0.1209434907 | BL165: gift
A166: ἐάν | B166: 4 | C166: 4 | D166: 0 | E166: 2 | F166: 2 | G166: 0 | H166: 5 | I166: 0 | J166: 0 | K166: 2 | L166: 6 | M166: 8 | N166: 4 | O166: 8 | P166: 10 | Q166: 15 | R166: 4 | S166: 17 | T166: 11 | V166: 98 | W166: 0.004024640657 | Y166: 4 | Z166: 6 | AB166: 6.008788501 | AC166: 0.1334604979 | AD166: -2.013949741 | AF166: 8.165907019 | AG166: 6.388800964 | AH166: 0.1166393759 | AI166: -2.148668361 | AJ166: -0.1347186209 | AK166: 0.8931832557 | BL166: if
A167: ἑαυτοῦ | B167: 3 | C167: 2 | D167: 8 | E167: 0 | F167: 3 | G167: 0 | H167: 4 | I167: 0 | J167: 0 | K167: 3 | L167: 1 | M167: 3 | N167: 4 | O167: 7 | P167: 7 | Q167: 3 | R167: 10 | S167: 9 | T167: 29 | V167: 93 | W167: 0.003819301848 | Y167: 3 | Z167: 1 | AB167: 5.702217659 | AC167: 0.1031664432 | AD167: -2.271411642 | AF167: 1.360984503 | AG167: 4.937436916 | AH167: 0.1438970272 | AI167: -1.938657324 | AJ167: 0.3327543175 | AK167: 0.7602450152 | BL167: of himself
A168: ἐγγίζω | B168: 1 | C168: 2 | D168: 7 | E168: 0 | F168: 0 | G168: 0 | H168: 0 | I168: 0 | J168: 0 | K168: 0 | L168: 2 | M168: 0 | N168: 1 | O168: 0 | P168: 1 | Q168: 0 | R168: 2 | S168: 0 | T168: 7 | V168: 22 | W168: 0.0009034907598 | Y168: 1 | Z168: 2 | AB168: 1.348911704 | AC168: 0.3500729975 | AD168: -1.049613582 | AF168: 2.721969006 | AG168: 1.590798686 | AH168: 0.3241456012 | AI168: -1.126562478 | AJ168: -0.07694889564 | AK168: 0.2194137387 | BL168: to draw near
A169: ἐγείρω | B169: 4 | C169: 7 | D169: 0 | E169: 1 | F169: 3 | G169: 2 | H169: 3 | I169: 2 | J169: 0 | K169: 0 | L169: 3 | M169: 0 | N169: 1 | O169: 1 | P169: 3 | Q169: 3 | R169: 0 | S169: 11 | T169: 6 | V169: 46 | W169: 0.001889117043 | Y169: 4 | Z169: 3 | AB169: 2.820451745 | AC169: 0.1570929966 | AD169: -1.850917314 | AF169: 4.08295351 | AG169: 3.042862522 | AH169: 0.1703804184 | AI169: -1.769721587 | AJ169: 0.0811957271 | AK169: 0.3010691891 | BL169: to raise, rise
A170: ἐγώ | B170: 2 | C170: 2 | D170: 2 | E170: 1 | F170: 4 | G170: 2 | H170: 1 | I170: 0 | J170: 1 | K170: 0 | L170: 2 | M170: 4 | N170: 0 | O170: 1 | P170: 5 | Q170: 9 | R170: 2 | S170: 12 | T170: 11 | V170: 59 | W170: 0.002422997947 | Y170: 2 | Z170: 2 | AB170: 3.617535934 | AC170: 0.1756789866 | AD170: -1.739096889 | AF170: 2.721969006 | AG170: 3.459766859 | AH170: 0.1881507775 | AI170: -1.67051163 | AJ170: 0.06858525944 | AK170: 0.6159141264 | BL170: I
A171: ἐμοῦ | B171: 2 | C171: 1 | D171: 0 | E171: 0 | F171: 1 | G171: 1 | H171: 1 | I171: 0 | J171: 1 | K171: 0 | L171: 3 | M171: 0 | N171: 2 | O171: 0 | P171: 4 | Q171: 2 | R171: 3 | S171: 3 | T171: 8 | V171: 30 | W171: 0.001232032854 | Y171: 2 | Z171: 3 | AB171: 1.839425051 | AC171: 0.2688326719 | AD171: -1.313666131 | AF171: 4.08295351 | AG171: 2.234660069 | AH171: 0.2672344261 | AI171: -1.319629005 | AJ171: -0.00596287483 | AK171: 0.02464148736 | BL171: of me
A172: μου | B172: 16 | C172: 5 | D172: 5 | E172: 0 | F172: 4 | G172: 1 | H172: 2 | I172: 1 | J172: 0 | K172: 0 | L172: 8 | M172: 2 | N172: 5 | O172: 5 | P172: 14 | Q172: 10 | R172: 6 | S172: 22 | T172: 45 | V172: 135 | W172: 0.005544147844 | Y172: 16 | Z172: 8 | AB172: 8.277412731 | AC172: 0.005900101779 | AD172: -5.132785678 | AF172: 10.88787603 | AG172: 8.73728945 | AH172: 0.008848127745 | AI172: -4.727549397 | AJ172: 0.405236281 | AK172: 6.036994064 | BL172: my, of me
A173: ἐμοί | B173: 0 | C173: 0 | D173: 0 | E173: 0 | F173: 0 | G173: 1 | H173: 0 | I173: 0 | J173: 0 | K173: 0 | L173: 0 | M173: 1 | N173: 1 | O173: 0 | P173: 2 | Q173: 0 | R173: 1 | S173: 4 | T173: 3 | V173: 13 | W173: 0.0005338809035 | Y173: 0 | Z173: 0 | AB173: 0.7970841889 | AC173: 0.4506410344 | AD173: -0.7970841889 | AF173: 0 | AG173: 0.6566644933 | AH173: 0.5185781739 | AI173: -0.6566644933 | AJ173: 0.1404196956 | BL173: to me
A174: μοι | B174: 5 | C174: 3 | D174: 1 | E174: 0 | F174: 0 | G174: 0 | H174: 1 | I174: 0 | J174: 0 | K174: 1 | L174: 2 | M174: 0 | N174: 1 | O174: 0 | P174: 3 | Q174: 6 | R174: 0 | S174: 9 | T174: 19 | V174: 46 | W174: 0.001889117043 | Y174: 5 | Z174: 2 | AB174: 2.820451745 | AC174: 0.08861464332 | AD174: -2.423458161 | AF174: 2.721969006 | AG174: 2.803102366 | AH174: 0.08742621044 | AI174: -2.436960151 | AJ174: -0.01350199008 | AK174: 1.721791995 | BL174: to me
A175: ἐμέ | B175: 1 | C175: 0 | D175: 1 | E175: 0 | F175: 1 | G175: 1 | H175: 1 | I175: 0 | J175: 0 | K175: 0 | L175: 1 | M175: 0 | N175: 1 | O175: 0 | P175: 1 | Q175: 4 | R175: 1 | S175: 0 | T175: 4 | V175: 16 | W175: 0.0006570841889 | Y175: 1 | Z175: 1 | AB175: 0.981026694 | AC175: 0.3678123818 | AD175: -1.000182303 | AF175: 1.360984503 | AG175: 1.04796261 | AH175: 0.3674695936 | AI175: -1.001114702 | AJ175: -0.0009323994204 | AK175: 0.002195127853 | BL175: me
A176: με | B176: 7 | C176: 0 | D176: 0 | E176: 0 | F176: 3 | G176: 6 | H176: 1 | I176: 0 | J176: 1 | K176: 0 | L176: 6 | M176: 2 | N176: 3 | O176: 2 | P176: 3 | Q176: 0 | R176: 6 | S176: 15 | T176: 19 | V176: 67 | W176: 0.002751540041 | Y176: 7 | Z176: 6 | AB176: 4.108049281 | AC176: 0.0644044452 | AD176: -2.742572623 | AF176: 8.165907019 | AG176: 4.822908711 | AH176: 0.09686572084 | AI176: -2.334429581 | AJ176: 0.4081430427 | AK176: 0.9827526844 | BL176: me
A177: ἔθνος | B177: 4 | C177: 1 | D177: 2 | E177: 0 | F177: 0 | G177: 0 | H177: 1 | I177: 0 | J177: 0 | K177: 0 | L177: 1 | M177: 0 | N177: 0 | O177: 0 | P177: 1 | Q177: 0 | R177: 0 | S177: 8 | T177: 6 | V177: 20 | W177: 0.0008213552361 | Y177: 4 | Z177: 1 | AB177: 1.226283368 | AC177: 0.02764292592 | AD177: -3.588385428 | AF177: 1.360984503 | AG177: 1.250013223 | AH177: 0.02914562291 | AI177: -3.535450535 | AJ177: 0.05293489255 | AK177: 6.049877822 | BL177: nation, gentiles
A178: εἰ (if) | B178: 4 | C178: 7 | D178: 3 | E178: 2 | F178: 3 | G178: 4 | H178: 3 | I178: 1 | J178: 0 | K178: 0 | L178: 6 | M178: 6 | N178: 5 | O178: 8 | P178: 12 | Q178: 5 | R178: 5 | S178: 11 | T178: 22 | V178: 103 | W178: 0.004229979466 | Y178: 4 | Z178: 6 | AB178: 6.315359343 | AC178: 0.119854767 | AD178: -2.121474544 | AF178: 8.165907019 | AG178: 6.641364231 | AH178: 0.1058059561 | AI178: -2.246148466 | AJ178: -0.1246739215 | AK178: 1.050507811 | BL178: if
A179: εἰμί | B179: 1 | C179: 2 | D179: 3 | E179: 0 | F179: 0 | G179: 1 | H179: 0 | I179: 0 | J179: 0 | K179: 0 | L179: 1 | M179: 0 | N179: 0 | O179: 1 | P179: 3 | Q179: 0 | R179: 1 | S179: 7 | T179: 7 | V179: 26 | W179: 0.001067761807 | Y179: 1 | Z179: 1 | AB179: 1.594168378 | AC179: 0.3237394767 | AD179: -1.127816171 | AF179: 1.360984503 | AG179: 1.553089143 | AH179: 0.3286232898 | AI179: -1.1128432 | AJ179: 0.01497297087 | AK179: 0.1969671872 | BL179: person singular present indicative
A180: εἶ (second person sigular present indicative of ΕΙΜΙ) | B180: 2 | C180: 0 | D180: 2 | E180: 0 | F180: 3 | G180: 1 | H180: 1 | I180: 2 | J180: 0 | K180: 1 | L180: 0 | M180: 0 | N180: 3 | O180: 0 | P180: 4 | Q180: 1 | R180: 0 | S180: 4 | T180: 5 | V180: 27 | W180: 0.001108829569 | Y180: 2 | Z180: 0 | AB180: 1.655482546 | AC180: 0.261729263 | AD180: -1.340444657 | AF180: 0 | AG180: 1.36384164 | AH180: 0.2377874873 | AI180: -1.436377915 | AJ180: -0.09593325796 | AK180: 0.2967334676 | BL180: you are (2 sg. of εἰμί)
A181: ἐστίν, ἕστιν | B181: 16 | C181: 16 | D181: 13 | E181: 4 | F181: 6 | G181: 3 | H181: 14 | I181: 3 | J181: 1 | K181: 5 | L181: 10 | M181: 7 | N181: 4 | O181: 9 | P181: 15 | Q181: 11 | R181: 21 | S181: 36 | T181: 26 | V181: 204 | W181: 0.008377823409 | Y181: 16 | Z181: 10 | AB181: 12.50809035 | AC181: 0.06342229335 | AD181: -2.757939849 | AF181: 13.60984503 | AG181: 12.70218284 | AH181: 0.06682612034 | AI181: -2.705661252 | AJ181: 0.05227859738 | AK181: 0.8561991387 | BL181: he/she/it is
A182: ἐστέ | B182: 0 | C182: 0 | D182: 0 | E182: 0 | F182: 1 | G182: 0 | H182: 0 | I182: 0 | J182: 0 | K182: 0 | L182: 2 | M182: 1 | N182: 0 | O182: 0 | P182: 1 | Q182: 2 | R182: 4 | S182: 3 | T182: 3 | V182: 17 | W182: 0.0006981519507 | Y182: 0 | Z182: 2 | AB182: 1.042340862 | AC182: 0.3526282608 | AD182: -1.042340862 | AF182: 2.721969006 | AG182: 1.338235419 | AH182: 0.2623081243 | AI182: -1.338235419 | AJ182: -0.2958945567 | AK182: 1.338235419 | BL182: you are (pl.)
A183: εἰσίν | B183: 2 | C183: 1 | D183: 3 | E183: 0 | F183: 0 | G183: 3 | H183: 3 | I183: 0 | J183: 0 | K183: 0 | L183: 2 | M183: 0 | N183: 0 | O183: 0 | P183: 1 | Q183: 4 | R183: 4 | S183: 12 | T183: 6 | V183: 39 | W183: 0.00160164271 | Y183: 2 | Z183: 2 | AB183: 2.391252567 | AC183: 0.2616454026 | AD183: -1.340765117 | AF183: 2.721969006 | AG183: 2.449513792 | AH183: 0.2590117459 | AI183: -1.350881867 | AJ183: -0.01011675042 | AK183: 0.08249092133 | BL183: they are
A184: ἤμην, ἦς, ἦν (imperfect indicative of EIMI) | B184: 8 | C184: 4 | D184: 17 | E184: 1 | F184: 1 | G184: 5 | H184: 19 | I184: 2 | J184: 6 | K184: 3 | L184: 5 | M184: 7 | N184: 3 | O184: 6 | P184: 0 | Q184: 8 | R184: 3 | S184: 8 | T184: 56 | V184: 154 | W184: 0.006324435318 | Y184: 8 | Z184: 5 | AB184: 9.44238193 | AC184: 0.1242675146 | AD184: -2.085318661 | AF184: 6.804922516 | AG184: 8.977749394 | AH184: 0.1320785466 | AI184: -2.024358484 | AJ184: 0.06096017765 | AK184: 0.1064848032 | BL184: I was (imperfect of εἰμί)
A185: ἔσομαι | B185: 5 | C185: 2 | D185: 6 | E185: 0 | F185: 3 | G185: 0 | H185: 4 | I185: 0 | J185: 0 | K185: 0 | L185: 2 | M185: 2 | N185: 1 | O185: 1 | P185: 11 | Q185: 6 | R185: 8 | S185: 19 | T185: 17 | V185: 82 | W185: 0.003367556468 | Y185: 5 | Z185: 2 | AB185: 5.027761807 | AC185: 0.1754538966 | AD185: -1.740378968 | AF185: 2.721969006 | AG185: 4.621557886 | AH185: 0.1728397587 | AI185: -1.755390364 | AJ185: -0.01501139544 | AK185: 0.03098921133 | BL185: I will be
A186: ῶ, ᾖς, ᾖ (present subjunctive of ΕΙΜΙ) | B186: 0 | C186: 0 | D186: 1 | E186: 0 | F186: 0 | G186: 0 | H186: 0 | I186: 0 | J186: 0 | K186: 2 | L186: 0 | M186: 0 | N186: 0 | O186: 0 | P186: 3 | Q186: 2 | R186: 0 | S186: 2 | T186: 1 | V186: 11 | W186: 0.0004517453799 | Y186: 0 | Z186: 0 | AB186: 0.6744558522 | AC186: 0.5094335524 | AD186: -0.6744558522 | AF186: 0 | AG186: 0.5556391866 | AH186: 0.5737054391 | AI186: -0.5556391866 | AJ186: 0.1188166655 | BL186: (present subjunctive of εἰμί)
A187: εἶναι | B187: 4 | C187: 1 | D187: 6 | E187: 0 | F187: 1 | G187: 0 | H187: 0 | I187: 0 | J187: 2 | K187: 0 | L187: 0 | M187: 1 | N187: 0 | O187: 1 | P187: 0 | Q187: 0 | R187: 2 | S187: 0 | T187: 9 | V187: 23 | W187: 0.0009445585216 | Y187: 4 | Z187: 0 | AB187: 1.410225873 | AC187: 0.04022445386 | AD187: -3.213280163 | AF187: 0 | AG187: 1.161791027 | AH187: 0.02375425407 | AI187: -3.739993646 | AJ187: -0.5267134824 | AK187: 6.933630913 | BL187: to be
A188: ὤν, οὖσα, ὄν | B188: 0 | C188: 0 | D188: 5 | E188: 0 | F188: 0 | G188: 1 | H188: 1 | I188: 0 | J188: 0 | K188: 0 | L188: 0 | M188: 5 | N188: 0 | O188: 0 | P188: 2 | Q188: 1 | R188: 0 | S188: 2 | T188: 7 | V188: 24 | W188: 0.0009856262834 | Y188: 0 | Z188: 0 | AB188: 1.471540041 | AC188: 0.229571663 | AD188: -1.471540041 | AF188: 0 | AG188: 1.21230368 | AH188: 0.297511119 | AI188: -1.21230368 | AJ188: 0.2592363611 | AK188: 1.21230368 | BL188: being (participle)
A189: εἰρήνη | B189: 0 | C189: 0 | D189: 2 | E189: 0 | F189: 0 | G189: 1 | H189: 0 | I189: 0 | J189: 0 | K189: 0 | L189: 0 | M189: 0 | N189: 0 | O189: 0 | P189: 2 | Q189: 2 | R189: 2 | S189: 0 | T189: 7 | V189: 16 | W189: 0.0006570841889 | Y189: 0 | Z189: 0 | AB189: 0.981026694 | AC189: 0.3749259669 | AD189: -0.981026694 | AF189: 0 | AG189: 0.8082024533 | AH189: 0.4456584385 | AI189: -0.8082024533 | AJ189: 0.1728242408 | BL189: peace
A190: εἰς (into) | B190: 39 | C190: 14 | D190: 20 | E190: 2 | F190: 14 | G190: 10 | H190: 19 | I190: 8 | J190: 7 | K190: 7 | L190: 33 | M190: 23 | N190: 9 | O190: 12 | P190: 19 | Q190: 19 | R190: 21 | S190: 69 | T190: 100 | V190: 406 | W190: 0.01667351129 | Y190: 39 | Z190: 33 | AB190: 24.89355236 | AC190: 0.002121634906 | AD190: -6.155568305 | AF190: 44.91248861 | AG190: 28.42022241 | AH190: 0.01094310522 | AI190: -4.515045681 | AJ190: 1.640522624 | AK190: 3.938452426 | BL190: into, to
A191: εἷς (one) | B191: 8 | C191: 0 | D191: 7 | E191: 0 | F191: 13 | G191: 1 | H191: 12 | I191: 0 | J191: 0 | K191: 3 | L191: 5 | M191: 2 | N191: 4 | O191: 0 | P191: 8 | Q191: 8 | R191: 4 | S191: 20 | T191: 15 | V191: 102 | W191: 0.004188911704 | Y191: 8 | Z191: 5 | AB191: 6.254045175 | AC191: 0.1116015636 | AD191: -2.192820219 | AF191: 6.804922516 | AG191: 6.351091421 | AH191: 0.1145572111 | AI191: -2.16668092 | AJ191: 0.02613929869 | AK191: 0.4280995693 | BL191: one
A192: εἰσέρχομαι | B192: 4 | C192: 3 | D192: 10 | E192: 1 | F192: 2 | G192: 3 | H192: 6 | I192: 2 | J192: 2 | K192: 2 | L192: 3 | M192: 6 | N192: 1 | O192: 2 | P192: 9 | Q192: 5 | R192: 3 | S192: 8 | T192: 16 | V192: 84 | W192: 0.003449691992 | Y192: 4 | Z192: 3 | AB192: 5.150390144 | AC192: 0.169966469 | AD192: -1.772154103 | AF192: 4.08295351 | AG192: 4.962343348 | AH192: 0.1767737054 | AI192: -1.732884865 | AJ192: 0.0392692376 | AK192: 0.1866264898 | BL192: to enter
A193: εἰσπορεύομαι | B193: 0 | C193: 0 | D193: 2 | E193: 0 | F193: 0 | G193: 1 | H193: 2 | I193: 0 | J193: 1 | K193: 1 | L193: 1 | M193: 3 | N193: 0 | O193: 0 | P193: 0 | Q193: 0 | R193: 1 | S193: 0 | T193: 0 | V193: 12 | W193: 0.0004928131417 | Y193: 0 | Z193: 1 | AB193: 0.7357700205 | AC193: 0.479136372 | AD193: -0.7357700205 | AF193: 1.360984503 | AG193: 0.8459119962 | AH193: 0.4291657821 | AI193: -0.8459119962 | AJ193: -0.1101419757 | BL193: to enter
A194: ἐκ | B194: 11 | C194: 1 | D194: 6 | E194: 0 | F194: 7 | G194: 4 | H194: 14 | I194: 3 | J194: 1 | K194: 4 | L194: 10 | M194: 6 | N194: 6 | O194: 6 | P194: 11 | Q194: 5 | R194: 11 | S194: 31 | T194: 40 | V194: 166 | W194: 0.00681724846 | Y194: 11 | Z194: 10 | AB194: 10.17815195 | AC194: 0.1155812232 | AD194: -2.157781765 | AF194: 13.60984503 | AG194: 10.78270202 | AH194: 0.1191186972 | AI194: -2.127634828 | AJ194: 0.03014693746 | AK194: 0.004379089218 | BL194: out of, from
A195: ἕκαστος | B195: 0 | C195: 2 | D195: 1 | E195: 0 | F195: 0 | G195: 0 | H195: 0 | I195: 0 | J195: 0 | K195: 0 | L195: 0 | M195: 0 | N195: 0 | O195: 1 | P195: 0 | Q195: 1 | R195: 1 | S195: 1 | T195: 3 | V195: =SUM(B195:T195)-Y195 -> 10 | W195: =V195/V$811 -> 0.0004106776181 | Y195: 0 | Z195: 0 | AB195: =W195*Y$811 -> 0.6131416838 | AC195: =EXP(-AB195)*(AB195)^Y195/FACT(Y195) -> 0.5416465111 | AD195: =LN(AC195) -> -0.6131416838 | AF195: =Z195*Y$811/Z$811 -> 0 | AG195: =AB195*$AM$3+(1-$AM$3)*AF195 -> 0.5051265333 | AH195: =EXP(-AG195)*(AG195)^Y195/FACT(Y195) -> 0.6034292167 | AI195: =LN(AH195) -> -0.5051265333 | AJ195: =AI195-AD195 -> 0.1080151505 | BL195: each, every
A196: ἑκατόν | B196: 0 | C196: 0 | D196: 0 | E196: 0 | F196: 2 | G196: 0 | H196: 1 | I196: 0 | J196: 0 | K196: 0 | L196: 0 | M196: 0 | N196: 0 | O196: 0 | P196: 1 | Q196: 0 | R196: 0 | S196: 1 | T196: 2 | V196: 7 | W196: 0.0002874743326 | Y196: 0 | Z196: 0 | AB196: 0.4291991786 | AC196: 0.6510302449 | AD196: -0.4291991786 | AF196: 0 | AG196: 0.3535885733 | AH196: 0.7021637969 | AI196: -0.3535885733 | AJ196: 0.07561060533 | AK196: =IF(AG196>1,((Y196-AG196)^2)/AG196,"") ->  | BL196: hundred
A197: ἑκατοντάρχης, ἑκατόνταρχος | B197: 0 | C197: 0 | D197: 0 | E197: 1 | F197: 0 | G197: 0 | H197: 0 | I197: 0 | J197: 0 | K197: 0 | L197: 0 | M197: 0 | N197: 0 | O197: 0 | P197: 2 | Q197: 1 | R197: 0 | S197: 0 | T197: 0 | V197: 4 | W197: 0.0001642710472 | Y197: 0 | Z197: 0 | AB197: 0.2452566735 | AC197: 0.7825036645 | AD197: -0.2452566735 | AF197: 0 | AG197: 0.2020506133 | AH197: 0.8170535731 | AI197: -0.2020506133 | AJ197: 0.04320606019 | BL197: centurion, captain
A198: ἐκβάλλω | B198: 2 | C198: 1 | D198: 1 | E198: 0 | F198: 2 | G198: 1 | H198: 1 | I198: 1 | J198: 0 | K198: 1 | L198: 2 | M198: 2 | N198: 1 | O198: 4 | P198: 9 | Q198: 6 | R198: 3 | S198: 5 | T198: 3 | V198: 43 | W198: 0.001765913758 | Y198: 2 | Z198: 2 | AB198: 2.63650924 | AC198: 0.2488898496 | AD198: -1.390744851 | AF198: 2.721969006 | AG198: 2.651564406 | AH198: 0.2479788122 | AI198: -1.394411971 | AJ198: -0.003667119722 | AK198: 0.1601078118 | BL198: to cast out
A199: ἐκεῖ | B199: 1 | C199: 4 | D199: 1 | E199: 0 | F199: 0 | G199: 2 | H199: 2 | I199: 1 | J199: 1 | K199: 3 | L199: 2 | M199: 1 | N199: 5 | O199: 0 | P199: 4 | Q199: 2 | R199: 2 | S199: 13 | T199: 4 | V199: 47 | W199: 0.001930184805 | Y199: 1 | Z199: 2 | AB199: 2.881765914 | AC199: 0.1614818312 | AD199: -1.823362643 | AF199: 2.721969006 | AG199: 2.853615019 | AH199: 0.1644697854 | AI199: -1.805028401 | AJ199: 0.01833424223 | AK199: 1.204047713 | BL199: there
A200: ἐκεῖθεν | B200: 0 | C200: 5 | D200: 0 | E200: 0 | F200: 0 | G200: 1 | H200: 1 | I200: 0 | J200: 0 | K200: 0 | L200: 2 | M200: 2 | N200: 2 | O200: 0 | P200: 1 | Q200: 0 | R200: 0 | S200: 2 | T200: 2 | V200: 18 | W200: 0.0007392197125 | Y200: 0 | Z200: 2 | AB200: 1.103655031 | AC200: 0.3316566504 | AD200: -1.103655031 | AF200: 2.721969006 | AG200: 1.388748072 | AH200: 0.2493873241 | AI200: -1.388748072 | AJ200: -0.2850930417 | AK200: 1.388748072 | BL200: from there
... 613 more rows
